{"text_format":"1","workbook":"xlsx","n_sheets":10,"sheets":["JPK-Nagłówek","JPK-Obroty i Salda","JPK-Dzienniki","JPK-Zapisy","JPK-RPD","JPK-Kontrahenci","Znaczniki OiS","Parametry","techniczne","przypisania"],"not_rendered":{"charts":0,"images":1,"macros":1,"external_links":0,"defined_names":125,"comments":8,"pivot_tables":0},"unopened":[],"bounds":{"document_bytes":16777216,"sheet_cells":100000,"rows_first":2000,"rows_last":500,"rows_between":2000,"halvings":0,"cell_chars":16384,"cell_head_chars":4096},"cells_cut":0,"cells_raw":0,"read":"whole","date_system":"1900"}

{"sheet":"JPK-Nagłówek","index":0,"n_rows":20,"n_cols":15,"rows_kept":20,"cut":false,"hidden":false,"merged":[[3,8,3,15],[10,8,10,11],[13,8,13,9],[14,8,14,9],[7,8,7,11],[12,8,12,11]]}
[null,null,null,null,null,"JPK_KR_PD(1)"]
[null,null,null,{"$f":"DataWytworzenia()","v":"2024-10-14T20:51:56"}]
[]
[null,null,"Cel złożenia:",1,null,null,null,"Pełna nazwa podmiotu:","Pełna nazwa przedsiębiorstwa"]
[null,null,null,null,null,null,null,"NIP:","1111111111"]
[null,"Raportowany okres","od:","2016-05-01",null,null,null,"REGON:","000000000"]
[null,null,"do:","2016-05-31"]
[null,null,null,null,null,null,null,"Ulica:","Magnoliowa"]
[null,"Rok obrotowy","od:","2016-01-01",null,null,null,"Nr domu:","12","Nr lokalu:",""]
[null,null,"do:","2016-12-31",null,null,null,"Kod pocztowy:","62-052"]
[null,null,null,null,null,null,null,"Miejscowość:","Komorniki",null,null,null,null,"Kod kraju:","PL"]
[null,"Podatkowy rok obrotowy","od:"]
[null,null,"do:",null,null,null,null,"Gmina:","Komorniki"]
[null,null,null,null,null,null,null,"Powiat:","Poznań"]
[null,null,"Domyślny kod waluty:","PLN",null,null,null,"Województwo:","Wielkopolskie"]
[null,null,null,null,null,null,null,null,null,null,null,null,null,null,"Pola obowiązkowe:"]
[null,null,"Kod urzędu skarbowego:","3023",null,null,null,"Podmiot używa MSSF: ",null,null,null,null,null,null,"Pola opcjonalne:"]
[]
[]
[null,null,"Estoński CIT: "]

{"sheet":"JPK-Obroty i Salda","index":1,"n_rows":19,"n_cols":18,"rows_kept":19,"cut":false,"hidden":false,"merged":[]}
[null,null,null,"Zestawienie dla danych od dnia:",{"$f":"IF(DataOd = \"\",\"\",DataOd)","v":"2016-05-01"}]
[null,null,null,"do dnia:",{"$f":"IF(DataDo=\"\",\"\",DataDo)","v":"2016-05-31"},null,null,"Wariant dla:",7]
[]
[null,null,null,null,null,null,null,{"$f":"SUBTOTAL(9,H7:H1048576)","v":73173459.299999997},0,38515804.719999999,36997523.190000005,192151704.05999994,192781120.56999999,72544042.789999977,0]
[]
[null,null,null,"Błąd","S_1 Kod konta","S_2 Nazwa konta","S_3 Konto nadrzędne","S_4 BO Wn","S5 BO Ma","S6 Obroty Wn","S7 Obroty Ma","S8 Obroty narastająco Wn","S9 Obroty narastająco Ma","S10 Saldo Wn","S_11 Saldo Ma","S_12_1 Znacznik kont","S_12_2 Znacznik dodatkowy","S_12_3 Znacznik podatkowy"]
[null,null,null,null,"1510D","Należności handlowe-grupa DAHL","1510",1047379.42,0,1553399.5,524931.02,2343073.14,1837175.49,1553277.07,0]
[null,null,null,null,"1510P","Należności handlowe-pozostali odbiorcy","1510",72121098.430000007,0,36951220.200000003,36431861.840000004,189654754.97999999,190795479.44,70980373.969999999,0]
[null,null,null,null,"1510P     :0","Należności handlowe-pozostali odbiorcy","1510",0,0,0,0,0,0,0,0]
[null,null,null,null,"1510S","Należności handlowe-grupa SG","1510",0,0,5323.1,0,6312.98,989.88,5323.1,0]
[null,null,null,null,"1510T","Należności handlowe od odb. gr.TADMAR","1510",1612.94,0,0,0,0,0,1612.94,0]
[null,null,null,null,"1515D","Należności pozostałe-grupa DAHL","1515",0,0,0,0,0,0,0,0]
[null,null,null,null,"1515P","Należności pozostałe-pozostali odbiorcy","1515",2.46,0,4014.98,35994.980000000003,109667.51,109669.97,0,0]
[null,null,null,null,"1515S","Należności pozostałe-grupa SG","1515",0,0,0,0,0,0,0,0]
[null,null,null,null,"1515T","Należności pozostałe - gr.TADMAR","1515",0,0,0,0,0,0,0,0]
[null,null,null,null,"1520D     :24102","Subskrybcja akcji","1520",0,0,0,0,0,0,0,0]
[null,null,null,null,"1520P     :23101","Rozrach.-osobowy fundusz płac","1520",0,0,0,0,0,0,0,0]
[null,null,null,null,"1520P     :23102","Rozrach.-bezosobowy fundusz płac","1520",0,0,0,0,0,0,0,0]
[null,null,null,null,"1520P     :24301","Rozliczenie niedoborów","1520",3366.05,0,1846.94,4735.3500000000004,37895.449999999997,37805.79,3455.71,0]

{"sheet":"JPK-Dzienniki","index":2,"n_rows":29,"n_cols":16,"rows_kept":29,"cut":false,"hidden":false,"merged":[]}
[null,null,null,"Zestawienie dla danych od dnia:",{"$f":"IF(DataOd = \"\",\"\",DataOd)","v":"2016-05-01"},null,null,"Liczba wierszy:",{"$f":"COUNTA(D_1)-3","v":23}]
[null,null,null,"do dnia:",{"$f":"IF(DataDo=\"\",\"\",DataDo)","v":"2016-05-31"},null,null,"Suma kwot:",{"$f":"O4","v":25549.32}]
[null,null,null,null,null,null,null,null,null,{"$f":"IF(J7=\"\",\"\",SUBTOTAL(5,J7:J1048576))","v":"2016-03-17"},{"$f":"IF(K7=\"\",\"\",SUBTOTAL(5,K7:K1048576))","v":"2016-04-05"},{"$f":"IF(L7=\"\",\"\",SUBTOTAL(5,L7:L1048576))","v":"2016-05-02"}]
[null,null,null,null,null,null,null,null,null,{"$f":"IF(J7=\"\",\"\",SUBTOTAL(4,J7:J1048576))","v":"2016-05-02"},{"$f":"IF(K7=\"\",\"\",SUBTOTAL(4,K7:K1048576))","v":"2016-05-02"},{"$f":"IF(L7=\"\",\"\",SUBTOTAL(4,L7:L1048576))","v":"2016-05-04"},null,null,{"$f":"SUBTOTAL(9,O7:O1048576)","v":25549.32}]
[]
[null,null,null,"Błąd","D_1 Nr zapisu w dzienniku","D_2 Opis dziennika","D_3 Kod kontrahenta","D_4 Nr dowodu księgowego","D_5 Rodzaj dowodu","D_6 Data \noperacji","D_7 Data \ndowodu","D_8 Data księgowania","D_9 Kod operatora","D_10 Opis operacji","D_11 Kwota operacji","D_12 Numer faktury w KSeF"]
[null,null,null,null,"6183068","Zakup towarów",null,"60915085","MZAKTKR","2016-03-17","2016-04-05","2016-05-04","XJOB","T000009248 FS-1249/2016/S2016 8820003786",4997.6099999999997]
[null,null,null,null,"6186947","Zakup towarów",null,"60915843","MZAKTKR","2016-03-17","2016-04-08","2016-05-04","TMGR","STORNO: 60915085",-4997.6099999999997]
[null,null,null,null,"6212730","Sprzedaż towarów",null,"65810380","KPLNHUR","2016-05-02","2016-05-02","2016-05-02","TESM","ZA 160075150 /20160429",74.98]
[null,null,null,null,"6212732","Sprzedaż towarów",null,"62582302","MSTWKRF","2016-05-02","2016-05-02","2016-05-02","PSUR","T000001831  160075350   7870004439",626.12]
[null,null,null,null,"6212733","Sprzedaż towarów",null,"65810388","KPLNHUR","2016-05-02","2016-05-02","2016-05-02","TESM","ZA 160074841 /20160429",7194.45]
[null,null,null,null,"6212734","Sprzedaż towarów",null,"62582303","MSTWKRF","2016-05-02","2016-05-02","2016-05-02","GMMA","T510093823  160075351   5781144089",96.21]
[null,null,null,null,"6212735","Sprzedaż towarów",null,"62582304","MSTWKRF","2016-05-02","2016-05-02","2016-05-02","BZBO","T000011329  160075352   9531552553",29.08]
[null,null,null,null,"6212736","Sprzedaż towarów",null,"63509007","MKSTKRF","2016-05-02","2016-05-02","2016-05-02","XJOB","T500120983  167007850   5782261638",21.76]
[null,null,null,null,"6212737","Sprzedaż towarów",null,"62582305","MSTWKRF","2016-05-02","2016-05-02","2016-05-02","BMSA","T000002999  160075353   5621263833",220.42]
[null,null,null,null,"6212738","Sprzedaż towarów",null,"62582306","MSTWKRF","2016-05-02","2016-05-02","2016-05-02","KTJA","T500085530  160075354   6792354520",492]
[null,null,null,null,"6212739","Sprzedaż towarów",null,"62582307","MSTWKRF","2016-05-02","2016-05-02","2016-05-02","WBKO","T000008888  160075355   8861035435",49.96]
[null,null,null,null,"6212740","Sprzedaż towarów",null,"62582308","MSTWKRF","2016-05-02","2016-05-02","2016-05-02","GMMA","T500047524  160075356   5780127893",190.96]
[null,null,null,null,"6212742","Sprzedaż towarów",null,"63509008","MKSTKRF","2016-05-02","2016-05-02","2016-05-02","XJOB","T500030024  167007851   7851266121",25.26]
[null,null,null,null,"6212743","Sprzedaż towarów",null,"62582309","MSTWKRF","2016-05-02","2016-05-02","2016-05-02","AWWO","T510097567  160075357   6251666946",224.3]
[null,null,null,null,"6212744","Sprzedaż towarów",null,"62582310","MSTWKRF","2016-05-02","2016-05-02","2016-05-02","WARO","T500133078  160075358   8981035426",144.6]
[null,null,null,null,"6212745","Sprzedaż towarów",null,"62582311","MSTWKRF","2016-05-02","2016-05-02","2016-05-02","TESM","T500039033  160075359   8651432756",758.6]
[null,null,null,null,"6212746","Sprzedaż towarów",null,"62582312","MSTWKRF","2016-05-02","2016-05-02","2016-05-02","PBTR","T500044899  160075360   7811011840",1645]
[null,null,null,null,"6212747","Sprzedaż towarów",null,"62582313","MSTWKRF","2016-05-02","2016-05-02","2016-05-02","RDMA","T500100055  160075361   5170272160",6073.99]
[null,null,null,null,"6212749","Sprzedaż towarów",null,"62582314","MSTWKRF","2016-05-02","2016-05-02","2016-05-02","PSUR","T000001831  160075362   7870004439",4674.76]
[null,null,null,null,"6212750","Sprzedaż towarów",null,"62582315","MSTWKRF","2016-05-02","2016-05-02","2016-05-02","TBCI","T000015760  160075363   9670228365",198.13]
[null,null,null,null,"6212751","Sprzedaż towarów",null,"62582316","MSTWKRF","2016-05-02","2016-05-02","2016-05-02","RESZ","T000027408  160075364   8131885463",881.04]
[null,null,null,null,"6212752","Sprzedaż towarów",null,"62582317","MSTWKRF","2016-05-02","2016-05-02","2016-05-02","TBCI","T500046653  160075365   8522231903",686.86]
[null,null,null,null,"6212753","Sprzedaż towarów",null,"65810395","KASAWPL","2016-05-02","2016-05-02","2016-05-02","TBCI","Przeksięgowanie",1240.8399999999999]

{"sheet":"JPK-Zapisy","index":3,"n_rows":75,"n_cols":14,"rows_kept":75,"cut":false,"hidden":false,"merged":[]}
[null,null,null,"Zestawienie dla danych od dnia:",{"$f":"IF(DataOd = \"\",\"\",DataOd)","v":"2016-05-01"}]
[null,null,null,"do dnia:",{"$f":"IF(DataDo=\"\",\"\",DataDo)","v":"2016-05-31"},null,null,null,"Suma kwot Wn:",{"$f":"I4","v":25549.32},null,"Suma kwot Ma:",{"$f":"L4","v":25549.32}]
[null,null,null,null,"Liczba wierszy:",{"$f":"COUNTA(E:E)-4","v":69}]
[null,null,null,null,null,null,null,null,{"$f":"SUBTOTAL(9,I7:I1048576)","v":25549.32},{"$f":"SUBTOTAL(9,J7:J1048576)","v":0},null,{"$f":"SUBTOTAL(9,L7:L1048576)","v":25549.32},{"$f":"SUBTOTAL(9,M7:M1048576)","v":0}]
[]
[null,null,null,"Błąd","Nr w dzienniku (z pola D_1)","Z_1 Numer zapisu","Z_2 Opis zapisu","Z_3 Konto","Z_4 Wn: kwota","Z_5 Wn: kwota w walucie","Z_6 Wn: waluta","Z_7 Ma: kwota","Z_8 Ma: kwota w walucie","Z_9 Ma: waluta"]
[null,null,null,null,"6183068",1,"Brutto","2510P",null,null,null,4997.6099999999997]
[null,null,null,null,"6183068",2,"VAT","15500",934.51]
[null,null,null,null,"6183068",3,"Netto","14100",4063.1]
[null,null,null,null,"6186947",1,"Brutto","2510P",null,null,null,-4997.6099999999997]
[null,null,null,null,"6186947",2,"VAT","15500",-934.51]
[null,null,null,null,"6186947",3,"Netto","14100",-4063.1]
[null,null,null,null,"6212730",1,"Wpłata","1510P",null,null,null,74.98]
[null,null,null,null,"6212730",2,"Wpłata","19554",74.98]
[null,null,null,null,"6212732",1,"Brutto","1510P",626.12]
[null,null,null,null,"6212732",2,"VAT","25510",null,null,null,117.08]
[null,null,null,null,"6212732",3,"Netto","3030P   :73111",null,null,null,509.04]
[null,null,null,null,"6212733",1,"Wpłata","1510P",null,null,null,7194.45]
[null,null,null,null,"6212733",2,"Wpłata","19554",7194.45]
[null,null,null,null,"6212734",1,"Brutto","1510P",96.21]
[null,null,null,null,"6212734",2,"VAT","25510",null,null,null,17.989999999999998]
[null,null,null,null,"6212734",3,"Netto","3030P   :73111",null,null,null,78.22]
[null,null,null,null,"6212735",1,"Brutto","1510P",29.08]
[null,null,null,null,"6212735",2,"VAT","25510",null,null,null,5.44]
[null,null,null,null,"6212735",3,"Netto","3030P   :73111",null,null,null,23.64]
[null,null,null,null,"6212736",1,"Brutto","1510P",null,null,null,17.12]
[null,null,null,null,"6212736",2,"VAT","25510",3.2]
[null,null,null,null,"6212736",3,"Netto","3030P   :73111",null,null,null,4.6399999999999997]
[null,null,null,null,"6212736",4,"Netto","3030P   :73111",18.559999999999999]
[null,null,null,null,"6212737",1,"Brutto","1510P",220.42]
[null,null,null,null,"6212737",2,"VAT","25510",null,null,null,41.22]
[null,null,null,null,"6212737",3,"Netto","3030P   :73111",null,null,null,179.2]
[null,null,null,null,"6212738",1,"Brutto","1510P",492]
[null,null,null,null,"6212738",2,"VAT","25510",null,null,null,92]
[null,null,null,null,"6212738",3,"Netto","3030P   :73111",null,null,null,400]
[null,null,null,null,"6212739",1,"Brutto","1510P",49.96]
[null,null,null,null,"6212739",2,"VAT","25510",null,null,null,9.34]
[null,null,null,null,"6212739",3,"Netto","3030P   :73111",null,null,null,40.619999999999997]
[null,null,null,null,"6212740",1,"Brutto","1510P",190.96]
[null,null,null,null,"6212740",2,"VAT","25510",null,null,null,35.71]
[null,null,null,null,"6212740",3,"Netto","3030P   :73111",null,null,null,155.25]
[null,null,null,null,"6212742",1,"Brutto","1510P",null,null,null,16.36]
[null,null,null,null,"6212742",2,"VAT","25510",3.06]
[null,null,null,null,"6212742",3,"Netto","3030P   :73111",null,null,null,8.9]
[null,null,null,null,"6212742",4,"Netto","3030P   :73111",22.2]
[null,null,null,null,"6212743",1,"Brutto","1510P",224.3]
[null,null,null,null,"6212743",2,"VAT","25510",null,null,null,41.94]
[null,null,null,null,"6212743",3,"Netto","3030P   :73111",null,null,null,182.36]
[null,null,null,null,"6212744",1,"Brutto","1510P",144.6]
[null,null,null,null,"6212744",2,"VAT","25510",null,null,null,27.04]
[null,null,null,null,"6212744",3,"Netto","3030P   :73111",null,null,null,117.56]
[null,null,null,null,"6212745",1,"Brutto","1510P",758.6]
[null,null,null,null,"6212745",2,"VAT","25510",null,null,null,141.85]
[null,null,null,null,"6212745",3,"Netto","3030P   :73111",null,null,null,616.75]
[null,null,null,null,"6212746",1,"Brutto","1510P",1645]
[null,null,null,null,"6212746",2,"VAT","25510",null,null,null,307.60000000000002]
[null,null,null,null,"6212746",3,"Netto","3030P   :73111",null,null,null,1337.4]
[null,null,null,null,"6212747",1,"Brutto","1510P",6073.99]
[null,null,null,null,"6212747",2,"VAT","25510",null,null,null,1135.79]
[null,null,null,null,"6212747",3,"Netto","3030P   :73111",null,null,null,4938.2]
[null,null,null,null,"6212749",1,"Brutto","1510P",4674.76]
[null,null,null,null,"6212749",2,"VAT","25510",null,null,null,874.14]
[null,null,null,null,"6212749",3,"Netto","3030P   :73111",null,null,null,3800.62]
[null,null,null,null,"6212750",1,"Brutto","1510P",198.13]
[null,null,null,null,"6212750",2,"VAT","25510",null,null,null,37.049999999999997]
[null,null,null,null,"6212750",3,"Netto","3030P   :73111",null,null,null,161.08000000000001]
[null,null,null,null,"6212751",1,"Brutto","1510P",881.04]
[null,null,null,null,"6212751",2,"VAT","25510",null,null,null,164.75]
[null,null,null,null,"6212751",3,"Netto","3030P   :73111",null,null,null,716.29]
[null,null,null,null,"6212752",1,"Brutto","1510P",686.86]
[null,null,null,null,"6212752",2,"VAT","25510",null,null,null,128.44]
[null,null,null,null,"6212752",3,"Netto","3030P   :73111",null,null,null,558.41999999999996]
[null,null,null,null,"6212753",1,"PK","1510P",null,null,null,707.56]
[null,null,null,null,"6212753",2,"PK","1510P",null,null,null,533.28]
[null,null,null,null,"6212753",3,"PK","1510P",1240.8399999999999]

{"sheet":"JPK-RPD","index":4,"n_rows":12,"n_cols":3,"rows_kept":12,"cut":false,"hidden":false,"merged":[[3,1,3,2]]}
[null,"Dotyczy okresu od dnia:",{"$f":"IF(DataOd = \"\",\"\",DataOd)","v":"2016-05-01"}]
[null,"do dnia:",{"$f":"IF(DataDo=\"\",\"\",DataDo)","v":"2016-05-31"}]
[]
[null,"Rozliczenie podatku dochodowego na zasadach ogólnych"]
[null,"K_1 Przychody zwolnione z opodatkowania (trwałe różnice pomiędzy zyskiem/stratą dla celów rachunkowych a dochodem/stratą dla celów podatkowych)",0]
[null,"K_2 Przychody niepodlegające opodatkowaniu w roku bieżącym",0]
[null,"K_3 Przychody podlegające opodatkowaniu w roku bieżącym, ujęte w księgach rachunkowych lat ubiegłych",0]
[null,"K_4 Koszty niestanowiące kosztów uzyskania przychodów (trwałe różnice pomiędzy zyskiem/stratą dla celów rachunkowych a dochodem/stratą dla celów podatkowych)",0]
[null,"K_5 Koszty nieuznawane za koszty uzyskania przychodów w bieżącym roku",0]
[null,"K_6 Koszty uznawane za koszty uzyskania przychodów w roku bieżącym, ujęte w księgach lat ubiegłych",0]
[null,"K_7 Przychody podlegające opodatkowaniu nie ujmowane w księgach rachunkowych",0]
[null,"K_8 Koszty uznawane za koszty uzyskania przychodów nie ujmowane w księgach rachunkowych",0]

{"sheet":"JPK-Kontrahenci","index":5,"n_rows":6,"n_cols":8,"rows_kept":6,"cut":false,"hidden":false,"merged":[]}
[null,null,null,"Zestawienie dla danych od dnia:",{"$f":"IF(DataOd = \"\",\"\",DataOd)","v":"2016-05-01"}]
[null,null,null,"do dnia:",{"$f":"IF(DataDo=\"\",\"\",DataDo)","v":"2016-05-31"},null,"Liczba wierszy:",{"$f":"COUNTA(E:E)-3","v":0}]
[]
[]
[]
[null,null,null,"Błąd","T_1 Kod kontrahenta","T_2 Kod kraju","T_3 Nr id. podatkowej "]

{"sheet":"Znaczniki OiS","index":6,"n_rows":1394,"n_cols":11,"rows_kept":1394,"cut":false,"hidden":false,"merged":[]}
[]
[]
[null,null,"znaczniki dla kolumn S_12_1, S_12_2:"]
[7,null,"dla:",{"$f":"VLOOKUP(A4,WariantyZOiS,2,FALSE)","v":"jednostek pozostałych"}]
[null,null,null,null,{"$f":"IF(N4=N5,\"\",N5)","v":""}]
[null,null,null,null,"AKTYWA"]
[null,null,null,null,null,"Aktywa trwałe"]
[null,null,null,null,null,null,"Wartości niematerialne i prawne"]
[null,"BAAI1_W",null,{"$f":"B9","v":"BAAI1_W"},null,null,null,"Koszty zakończonych prac rozwojowych"]
[null,"BAAI1_A",null,{"$f":"B10","v":"BAAI1_A"},null,null,null,null,"Odpisy aktualizujące wartość kosztów zakończonych prac rozwojowych"]
[null,"BAAI1_U",null,"BAAI1_U",null,null,null,null,"Umorzenie zakończonych prac rozwojowych"]
[null,"BAAI2_W",null,"BAAI2_W",null,null,null,"Wartość firmy"]
[null,"BAAI2_A",null,"BAAI2_A",null,null,null,null,"Odpisy aktualizujące wartość firmy"]
[null,"BAAI2_U",null,"BAAI2_U",null,null,null,null,"Umorzenie wartości firmy"]
[null,"BAAI3_W",null,"BAAI3_W",null,null,null,"Inne wartości niematerialne i prawne"]
[null,"BAAI3_A",null,"BAAI3_A",null,null,null,null,"Odpisy aktualizujące inne wartości niematerialne i prawne"]
[null,"BAAI3_U",null,"BAAI3_U",null,null,null,null,"Umorzenie innych wartości niematerialnych i prawnych"]
[null,"BAAI4_W",null,"BAAI4_W",null,null,null,"Zaliczki na wartości niematerialne i prawne"]
[null,"BAAI4_A",null,"BAAI4_A",null,null,null,null,"Odpisy aktualizujące zaliczki na wartości niematerialne i prawne"]
[null,null,null,null,null,null,"Rzeczowe aktywa trwałe"]
[null,null,null,null,null,null,null,"Środki trwałe"]
[null,"BAAII1a_W",null,"BAAII1a_W",null,null,null,null,"Grunty (w tym prawo użytkowania wieczystego gruntu)"]
[null,"BAAII1a_A",null,"BAAII1a_A",null,null,null,null,null,"Odpisy aktualizujące wartość gruntów (w tym prawa użytkowania wieczystego gruntu)"]
[null,"BAAII1a_U",null,"BAAII1a_U",null,null,null,null,null,"Umorzenie gruntów (w tym prawa użytkowania wieczystego gruntu)"]
[null,"BAAII1b_W",null,"BAAII1b_W",null,null,null,null,"Budynki, lokale i obiekty inżynierii lądowej i wodnej"]
[null,"BAAII1b_A",null,"BAAII1b_A",null,null,null,null,null,"Odpisy aktualizujące wartość budynków, lokali i obiektów inżynierii lądowej i wodnej"]
[null,"BAAII1b_U",null,"BAAII1b_U",null,null,null,null,null,"Umorzenie budynków, lokali i obiektów inżynierii lądowej i wodnej"]
[null,"BAAII1c_W",null,"BAAII1c_W",null,null,null,null,"Urządzenia techniczne i maszyny"]
[null,"BAAII1c_A",null,"BAAII1c_A",null,null,null,null,null,"Odpisy aktualizujące wartość urządzeń technicznych i maszyn"]
[null,"BAAII1c_U",null,"BAAII1c_U",null,null,null,null,null,"Umorzenie urządzeń technicznych i maszyn"]
[null,"BAAII1d_W",null,"BAAII1d_W",null,null,null,null,"Środki transportu"]
[null,"BAAII1d_A",null,"BAAII1d_A",null,null,null,null,null,"Odpisy aktualizujące wartość środków transportu"]
[null,"BAAII1d_U",null,"BAAII1d_U",null,null,null,null,null,"Umorzenie środków transportu"]
[null,"BAAII1e_W",null,"BAAII1e_W",null,null,null,null,"Inne środki trwałe"]
[null,"BAAII1e_A",null,"BAAII1e_A",null,null,null,null,null,"Odpisy aktualizujące wartość innych środków trwałych"]
[null,"BAAII1e_U",null,"BAAII1e_U",null,null,null,null,null,"Umorzenie innych środków trwałych"]
[null,"BAAII2_W",null,"BAAII2_W",null,null,null,"Środki trwałe w budowie"]
[null,"BAAII2_A",null,"BAAII2_A",null,null,null,null,"Odpisy aktualizujące wartość środków trwałych w budowie"]
[null,"BAAII3_W",null,"BAAII3_W",null,null,null,"Zaliczki na środki trwałe w budowie"]
[null,"BAAII3_A",null,"BAAII3_A",null,null,null,null,"Odpisy aktualizujące wartość zaliczek na środki trwałe w budowie"]
[null,null,null,null,null,null,"Należności długoterminowe"]
[null,"BAAIII1_W",null,"BAAIII1_W",null,null,null,"Od jednostek powiązanych"]
[null,"BAAIII1_A",null,"BAAIII1_A",null,null,null,null,"Odpisy aktualizujące wartość należności od jednostek powiązanych"]
[null,"BAAIII2_W",null,"BAAIII2_W",null,null,null,"Od pozostałych jednostek, w których jednostka posiada zaangażowanie w kapitale"]
[null,"BAAIII2_A",null,"BAAIII2_A",null,null,null,null,"Odpisy aktualizujące wartość należności od pozostałych jednostek, w których jednostka posiada zaangażowanie w kapitale"]
[null,"BAAIII3_W",null,"BAAIII3_W",null,null,null,"Od pozostałych jednostek"]
[null,"BAAIII3_A",null,"BAAIII3_A",null,null,null,null,"Odpisy aktualizujące wartość należności od pozostałych jednostek"]
[null,null,null,null,null,null,"Inwestycje długoterminowe"]
[null,"BAAIV1_W",null,"BAAIV1_W",null,null,null,"Nieruchomości"]
[null,"BAAIV1_A",null,"BAAIV1_A",null,null,null,null,"Odpisy aktualizujące wartość inwestycji długoterminowych w nieruchomości"]
[null,"BAAIV1_U",null,"BAAIV1_U",null,null,null,null,"Umorzenie inwestycji długoterminowych w nieruchomości"]
[null,"BAAIV2_W",null,"BAAIV2_W",null,null,null,"Wartości niematerialne i prawne"]
[null,"BAAIV2_A",null,"BAAIV2_A",null,null,null,null,"Odpisy aktualizujące wartość inwestycji długoterminowych w wartości niematerialne i prawne"]
[null,"BAAIV2_U",null,"BAAIV2_U",null,null,null,null,"Umorzenie wartości inwestycji długoterminowych w wartości niematerialne i prawne"]
[null,null,null,null,null,null,null,"Długoterminowe aktywa finansowe"]
[null,null,null,null,null,null,null,null,"W jednostkach powiązanych"]
[null,"BAAIV3a_ULA_W",null,"BAAIV3a_ULA_W",null,null,null,null,null,"Udziały lub akcje"]
[null,"BAAIV3a_ULA_A",null,"BAAIV3a_ULA_A",null,null,null,null,null,null,"Odpisy aktualizujące wartość udziałów lub akcji w jednostkach powiązanych"]
[null,"BAAIV3a_IPW_W",null,"BAAIV3a_IPW_W",null,null,null,null,null,"Inne papiery wartościowe"]
[null,"BAAIV3a_IPW_A",null,"BAAIV3a_IPW_A",null,null,null,null,null,null,"Odpisy aktualizujące wartość innych papierów wartościowych w jednostkach powiązanych"]
[null,"BAAIV3a_UP_W",null,"BAAIV3a_UP_W",null,null,null,null,null,"Udzielone pożyczki"]
[null,"BAAIV3a_UP_A",null,"BAAIV3a_UP_A",null,null,null,null,null,null,"Odpisy aktualizujące wartość udzielonych pożyczek w jednostkach powiązanych"]
[null,"BAAIV3a_IDAF_W",null,"BAAIV3a_IDAF_W",null,null,null,null,null,"Inne długoterminowe aktywa finansowe"]
[null,"BAAIV3a_IDAF_A",null,"BAAIV3a_IDAF_A",null,null,null,null,null,null,"Odpisy aktualizujące wartość innych długoterminowych aktywów finansowych w jednostkach powiązanych"]
[null,null,null,null,null,null,null,null,"W pozostałych jednostkach, w których jednostka posiada zaangażowanie w kapitale"]
[null,"BAAIV3b_ULA_W",null,"BAAIV3b_ULA_W",null,null,null,null,null,"Udziały lub akcje"]
[null,"BAAIV3b_ULA_A",null,"BAAIV3b_ULA_A",null,null,null,null,null,null,"Odpisy aktualizujące wartość udziałów lub akcji w pozostałych jednostkach, w których jednostka posiada zaangażowanie w kapitale"]
[null,"BAAIV3b_IPW_W",null,"BAAIV3b_IPW_W",null,null,null,null,null,"Inne papiery wartościowe"]
[null,"BAAIV3b_IPW_A",null,"BAAIV3b_IPW_A",null,null,null,null,null,null,"Odpisy aktualizujące wartość innych papierów wartościowych w pozostałych jednostkach, w których jednostka posiada zaangażowanie w kapitale"]
[null,"BAAIV3b_UP_W",null,"BAAIV3b_UP_W",null,null,null,null,null,"Udzielone pożyczki"]
[null,"BAAIV3b_UP_A",null,"BAAIV3b_UP_A",null,null,null,null,null,null,"Odpisy aktualizujące wartość udzielonych pożyczek w pozostałych jednostkach, w których jednostka posiada zaangażowanie w kapitale"]
[null,"BAAIV3b_IDAF_W",null,"BAAIV3b_IDAF_W",null,null,null,null,null,"Inne długoterminowe aktywa finansowe"]
[null,"BAAIV3b_IDAF_A",null,"BAAIV3b_IDAF_A",null,null,null,null,null,null,"Odpisy aktualizujące wartość innych długoterminowych aktywów finansowych w pozostałych jednostkach, w których jednostka posiada zaangażowanie w kapitale"]
[null,null,null,null,null,null,null,null,"W pozostałych jednostkach"]
[null,"BAAIV3c_ULA_W",null,{"$f":"B75","v":"BAAIV3c_ULA_W"},null,null,null,null,null,"Udziały lub akcje"]
[null,"BAAIV3c_ULA_A",null,"BAAIV3c_ULA_A",null,null,null,null,null,null,"Odpisy aktualizujące wartość udziałów lub akcji w pozostałych jednostkach"]
[null,"BAAIV3c_IPW_W",null,"BAAIV3c_IPW_W",null,null,null,null,null,"Inne papiery wartościowe"]
[null,"BAAIV3c_IPW_A",null,"BAAIV3c_IPW_A",null,null,null,null,null,null,"Odpisy aktualizujące wartość innych papierów wartościowych w pozostałych jednostkach"]
[null,"BAAIV3c_UP_W",null,"BAAIV3c_UP_W",null,null,null,null,null,"Udzielone pożyczki"]
[null,"BAAIV3c_UP_A",null,"BAAIV3c_UP_A",null,null,null,null,null,null,"Odpisy aktualizujące wartość udzielonych pożyczek w pozostałych jednostkach"]
[null,"BAAIV3c_IDAF_W",null,"BAAIV3c_IDAF_W",null,null,null,null,null,"Inne długoterminowe aktywa finansowe"]
[null,"BAAIV3c_IDAF_A",null,"BAAIV3c_IDAF_A",null,null,null,null,null,null,"Odpisy aktualizujące wartość innych długoterminowych aktywów finansowych w pozostałych jednostkach"]
[null,"BAAIV4_W",null,"BAAIV4_W",null,null,null,"Inne inwestycje długoterminowe"]
[null,"BAAIV4_A",null,"BAAIV4_A",null,null,null,null,"Odpisy aktualizujące wartość innych inwestycji długoterminowych"]
[null,null,null,null,null,null,"Długoterminowe rozliczenia międzyokresowe"]
[null,"BAAV1_W",null,"BAAV1_W",null,null,null,"Aktywa z tytułu odroczonego podatku dochodowego"]
[null,"BAAV1_A",null,"BAAV1_A",null,null,null,null,"Odpisy aktualizujące aktywa z tytułu odroczonego podatku dochodowego"]
[null,"BAAV2_W",null,"BAAV2_W",null,null,null,"Inne rozliczenia międzyokresowe"]
[null,"BAAV2_A",null,"BAAV2_A",null,null,null,null,"Odpisy aktualizujące inne rozliczenia międzyokresowe"]
[null,null,null,null,null,"Aktywa obrotowe"]
[null,null,null,null,null,null,"Zapasy"]
[null,"BABI1",null,"BABI1",null,null,null,"Materiały"]
[null,"BABI1_O",null,"BABI1_O",null,null,null,null,"Odchylenia od cen ewidencyjnych materiałów"]
[null,"BABI1_A",null,"BABI1_A",null,null,null,null,"Odpisy aktualizujące wartość materiałów"]
[null,"BABI2",null,"BABI2",null,null,null,"Półprodukty i produkty w toku"]
[null,"BABI2_O",null,"BABI2_O",null,null,null,null,"Odchylenia od cen ewidencyjnych półproduktów i produktów w toku"]
[null,"BABI2_A",null,"BABI2_A",null,null,null,null,"Odpisy aktualizujące wartość półproduktów i produktów w toku"]
[null,"BABI3",null,"BABI3",null,null,null,"Produkty gotowe"]
[null,"BABI3_O",null,"BABI3_O",null,null,null,null,"Odchylenia od cen ewidencyjnych produktów gotowych"]
[null,"BABI3_A",null,"BABI3_A",null,null,null,null,"Odpisy aktualizujące wartość produktów gotowych"]
[null,"BABI4",null,"BABI4",null,null,null,"Towary"]
[null,"BABI4_O",null,"BABI4_O",null,null,null,null,"Odchylenia od cen ewidencyjnych towarów"]
[null,"BABI4_A",null,"BABI4_A",null,null,null,null,"Odpisy aktualizujące wartość towarów"]
[null,"BABI5",null,"BABI5",null,null,null,"Zaliczki na dostawy i usługi"]
[null,"BABI5_A",null,"BABI5_A",null,null,null,null,"Odpisy aktualizujące zaliczki na dostawy i usługi"]
[null,null,null,null,null,null,"Należności krótkoterminowe"]
[null,null,null,null,null,null,null,"Należności od jednostek powiązanych"]
[null,null,null,null,null,null,null,null,"Z tytułu dostaw i usług"]
[null,"BABII1a_D12",null,"BABII1a_D12",null,null,null,null,null,"o okresie spłaty do 12 miesięcy"]
[null,"BABII1a_D12_A",null,"BABII1a_D12_A",null,null,null,null,null,null,"Odpisy aktualizujące wartość należności z tytułu dostaw i usług, od jednostek powiązanych w okresie spłaty do 12 miesięcy"]
[null,"BABII1a_P12",null,"BABII1a_P12",null,null,null,null,null,"o okresie spłaty powyżej 12 miesięcy"]
[null,"BABII1a_P12_A",null,"BABII1a_P12_A",null,null,null,null,null,null,"Odpisy aktualizujące wartość należności z tytułu dostaw i usług, od jednostek powiązanych w okresie spłaty powyżej 12 miesięcy"]
[null,"BABII1b",null,"BABII1b",null,null,null,null,"Inne"]
[null,"BABII1b_A",null,"BABII1b_A",null,null,null,null,null,"Odpisy aktualizujące wartość innych należności od jednostek powiązanych"]
[null,null,null,null,null,null,null,"Należności od pozostałych jednostek, w których jednostka posiada zaangażowanie w kapitale"]
[null,null,null,null,null,null,null,null,"Z tytułu dostaw i usług"]
[null,"BABII2a_D12",null,"BABII2a_D12",null,null,null,null,null,"o okresie spłaty do 12 miesięcy"]
[null,"BABII2a_D12_A",null,"BABII2a_D12_A",null,null,null,null,null,null,"Odpisy aktualizujące wartość należności z tytułu dostaw i usług, od pozostałych jednostek, w których jednostka posiada zaangażowanie w kapitale o okresie spłaty do 12 m-cy"]
[null,"BABII2a_P12",null,"BABII2a_P12",null,null,null,null,null,"o okresie spłaty powyżej 12 miesięcy"]
[null,"BABII2a_P12_A",null,"BABII2a_P12_A",null,null,null,null,null,null,"Odpisy aktualizujące wartość należności z tytułu dostaw i usług od pozostałych jednostek , w których jednostka posiada zaangażowanie w kapitale o okresie spłaty powyżej 12 m-cy"]
[null,"BABII2b",null,"BABII2b",null,null,null,null,"Inne"]
[null,"BABII2b_A",null,"BABII2b_A",null,null,null,null,null,"Odpisy aktualizujące wartość innych należności od pozostałych jednostek, w których jednostka posiada zaangażowanie w kapitale"]
[null,null,null,null,null,null,null,"Należności od pozostałych jednostek"]
[null,null,null,null,null,null,null,null,"Z tytułu dostaw i usług"]
[null,"BABII3a_D12",null,"BABII3a_D12",null,null,null,null,null,"o okresie spłaty do 12 miesięcy"]
[null,"BABII3a_D12_A",null,"BABII3a_D12_A",null,null,null,null,null,null,"Odpisy aktualizujące wartość należności z tytułu dostaw i usług, należności od pozostałych jednostek okresie spłaty do 12 miesięcy"]
[null,"BABII3a_P12",null,"BABII3a_P12",null,null,null,null,null,"o okresie spłaty powyżej 12 miesięcy"]
[null,"BABII3a_P12_A",null,"BABII3a_P12_A",null,null,null,null,null,null,"Odpisy aktualizujące wartość należności z tytułu dostaw i usług, należności od pozostałych jednostek o okresie spłaty powyżej 12 miesięcy"]
[null,"BABII3b",null,"BABII3b",null,null,null,null,"Z tytułu podatków, dotacji, ceł, ubezpieczeń społecznych i zdrowotnych oraz innych świadczeń"]
[null,"BABII3b_A",null,"BABII3b_A",null,null,null,null,null,"Odpisy aktualizujące wartość należności z tytułu podatków, dotacji, ceł, ubezpieczeń, społecznych i zdrowotnych oraz innych świadczeń"]
[null,"BABII3c_W",null,"BABII3c_W",null,null,null,null,"Inne"]
[null,"BABII3c_A",null,"BABII3c_A",null,null,null,null,null,"Odpisy aktualizujące wartość innych należności"]
[null,"BABII3d_W",null,"BABII3d_W",null,null,null,null,"Dochodzone na drodze sądowej"]
[null,"BABII3d_A",null,"BABII3d_A",null,null,null,null,null,"Odpisy aktualizujące wartość należności dochodzonych na drodze sądowej"]
[null,null,null,null,null,null,"Inwestycje krótkoterminowe"]
[null,null,null,null,null,null,null,"Krótkoterminowe aktywa finansowe"]
[null,null,null,null,null,null,null,null,"W jednostkach powiązanych"]
[null,"BABIII1a1_ULA_W",null,{"$f":"B138","v":"BABIII1a1_ULA_W"},null,null,null,null,null,"Udziały lub akcje"]
[null,"BABIII1a1_ULA_A",null,"BABIII1a1_ULA_A",null,null,null,null,null,null,"Odpisy aktualizujące wartość udziałów lub akcji w jednostkach powiązanych"]
[null,"BABIII1a2_IPW_W",null,"BABIII1a2_IPW_W",null,null,null,null,null,"Inne papiery wartościowe"]
[null,"BABIII1a2_IPW_A",null,"BABIII1a2_IPW_A",null,null,null,null,null,null,"Odpisy aktualizujące wartość innych papierów wartościowych w jednostkach powiązanych"]
[null,"BABIII1a3_UP_W",null,"BABIII1a3_UP_W",null,null,null,null,null,"Udzielone pożyczki"]
[null,"BABIII1a3_UP_A",null,"BABIII1a3_UP_A",null,null,null,null,null,null,"Odpisy aktualizujące wartość udzielonych pożyczek w jednostkach powiązanych"]
[null,"BABIII1a4_IKAF_W",null,"BABIII1a4_IKAF_W",null,null,null,null,null,"Inne krótkoterminowe aktywa finansowe"]
[null,"BABIII1a4_IKAF_A",null,"BABIII1a4_IKAF_A",null,null,null,null,null,null,"Odpisy aktualizujące wartość innych krótkoterminowych aktywów finansowych w jednostkach powiązanych"]
[null,null,null,null,null,null,null,null,"W pozostałych jednostkach"]
[null,"BABIII1b1_ULA_W",null,"BABIII1b1_ULA_W",null,null,null,null,null,"Udziały lub akcje"]
[null,"BABIII1b1_ULA_A",null,"BABIII1b1_ULA_A",null,null,null,null,null,null,"Odpisy aktualizujące wartość udziałów lub akcji w pozostałych jednostkach"]
[null,"BABIII1b2_IPW_W",null,"BABIII1b2_IPW_W",null,null,null,null,null,"Inne papiery wartościowe"]
[null,"BABIII1b2_IPW_A",null,"BABIII1b2_IPW_A",null,null,null,null,null,null,"Odpisy aktualizujące wartość innych papierów wartościowych w pozostałych jednostkach"]
[null,"BABIII1b3_UP_W",null,"BABIII1b3_UP_W",null,null,null,null,null,"Udzielone pożyczki"]
[null,"BABIII1b3_UP_A",null,"BABIII1b3_UP_A",null,null,null,null,null,null,"Odpisy aktualizujące wartość udzielonych pożyczek w pozostałych jednostkach"]
[null,"BABIII1b4_IKAF_W",null,"BABIII1b4_IKAF_W",null,null,null,null,null,"Inne krótkoterminowe aktywa finansowe"]
[null,"BABIII1b4_IKAF_A",null,"BABIII1b4_IKAF_A",null,null,null,null,null,null,"Odpisy aktualizujące wartość innych krótkoterminowych aktywów finansowych w pozostałych jednostkach"]
[null,null,null,null,null,null,null,null,"Środki pieniężne i inne aktywa pieniężne"]
[null,"BABIII1c1_SPKR",null,"BABIII1c1_SPKR",null,null,null,null,null,"Środki pieniężne w kasie i na rachunkach"]
[null,"BABIII1c2_ISP",null,"BABIII1c2_ISP",null,null,null,null,null,"Inne środki pieniężne"]
[null,"BABIII1c2_ISP_A",null,"BABIII1c2_ISP_A",null,null,null,null,null,null,"Odpisy aktualizujące wartość innych środków pieniężnych"]
[null,"BABIII1c3_IAP",null,"BABIII1c3_IAP",null,null,null,null,null,"Inne aktywa pieniężne"]
[null,"BABIII1c3_IAP_A",null,"BABIII1c3_IAP_A",null,null,null,null,null,null,"Odpisy aktualizujące wartość innych aktywów pieniężnych"]
[null,"BABIII2_W",null,"BABIII2_W",null,null,null,"Inne inwestycje krótkoterminowe"]
[null,"BABIII2_A",null,"BABIII2_A",null,null,null,null,"Odpisy aktualizujące wartość innych inwestycji krótkoterminowych"]
[null,"BABIV",null,"BABIV",null,null,"Krótkoterminowe rozliczenia międzyokresowe"]
[null,"BABIV_A",null,"BABIV_A",null,null,null,"Odpisy aktualizujące wartość krótkoterminowych rozliczeń międzyokresowych"]
[null,"BAC",null,"BAC",null,"Należne wpłaty na kapitał (fundusz) podstawowy"]
[null,"BAD",null,"BAD",null,"Udziały (akcje) własne"]
[null,null,null,null,"PASYWA"]
[null,null,null,null,null,"Kapitał (fundusz) własny"]
[null,"BPAI",null,"BPAI",null,null,"Kapitał (fundusz) podstawowy"]
[null,null,null,null,null,null,"Kapitał (fundusz) zapasowy"]
[null,"BPAIIWS",null,"BPAIIWS",null,null,null,"Z nadwyżki wartości sprzedaży (wartości emisyjnej) nad wartością nominalną udziałów (akcji)"]
[null,"BPAII_INN",null,"BPAII_INN",null,null,null,"Z innych źródeł"]
[null,"BPAII_ES_ZP",null,"BPAII_ES_ZP",null,null,null,"Kwota zysku wypracowanego w latach przed opodatkowaniem ryczałtem od dochodów spółek"]
[null,"BPAII_ES_ZR",null,"BPAII_ES_ZR",null,null,null,"Kwota zysku wypracowanego w latach opodatkowania ryczałtem od dochodów spółek"]
[null,null,null,null,null,null,"Kapitał (fundusz) z aktualizacji wyceny"]
[null,"BPAIIIAWG",null,"BPAIIIAWG",null,null,null,"Z tytułu aktualizacji wartości godziwej"]
[null,"BPAIII_INN",null,"BPAIII_INN",null,null,null,"Z innego tytułu"]
[null,null,null,null,null,null,"Pozostałe kapitały (fundusze) rezerwowe"]
[null,"BPAIVU",null,"BPAIVU",null,null,null,"Tworzone zgodnie z umową (ze statutem)"]
[null,"BPAIVUW",null,"BPAIVUW",null,null,null,"Na udziały (akcje) własne"]
[null,"BPAIV_INN",null,"BPAIV_INN",null,null,null,"Inne"]
[null,"BPAIV_ES_ZP",null,"BPAIV_ES_ZP",null,null,null,"Kwota zysku wypracowanego w latach przed opodatkowaniem ryczałtem od dochodów spółek"]
[null,"BPAIV_ES_ZR",null,"BPAIV_ES_ZR",null,null,null,"Kwota zysku wypracowanego w latach opodatkowania ryczałtem od dochodów spółek"]
[null,"BPAV",null,"BPAV",null,null,"Zysk (strata) z lat ubiegłych"]
[null,"BPAV_ES_NZP",null,"BPAV_ES_NZP",null,null,null,"Kwota niepodzielonych zysków wypracowanych w latach przed opodatkowaniem ryczałtem od dochodów spółek"]
[null,"BPAV_ES_NPR",null,"BPAV_ES_NPR",null,null,null,"Kwota niepodzielonych zysków wypracowanych w latach opodatkowania ryczałtem od dochodów spółek"]
[null,"BPAV_ES_NSP",null,"BPAV_ES_NSP",null,null,null,"Kwota niepokrytych strat poniesionych w latach przed opodatkowaniem ryczałtem od dochodów spółek"]
[null,"BPAV_ES_NSR",null,"BPAV_ES_NSR",null,null,null,"Kwota niepokrytych strat poniesionych w latach opodatkowania ryczałtem od dochodów spółek"]
[null,"BPAVI",null,"BPAVI",null,null,"Zysk (strata) netto"]
[null,"BPAVII",null,"BPAVII",null,null,"Odpisy z zysku netto w ciągu roku obrotowego (wielkość ujemna)"]
[null,null,null,null,null,"Zobowiązania i rezerwy na zobowiązania"]
[null,null,null,null,null,null,"Rezerwy na zobowiązania"]
[null,"BPBI1",null,"BPBI1",null,null,null,"Rezerwa z tytułu odroczonego podatku dochodowego"]
[null,null,null,null,null,null,null,"Rezerwa na świadczenia emerytalne i podobne"]
[null,"BPBI2_D",null,"BPBI2_D",null,null,null,null,"Długoterminowa"]
[null,"BPBI2_K",null,"BPBI2_K",null,null,null,null,"Krótkoterminowa"]
[null,null,null,null,null,null,null,"Pozostałe rezerwy"]
[null,"BPBI3_D",null,"BPBI3_D",null,null,null,null,"Długoterminowe"]
[null,"BPBI3_K",null,"BPBI3_K",null,null,null,null,"Krótkoterminowe"]
[null,null,null,null,null,null,"Zobowiązania długoterminowe"]
[null,"BPBII1",null,"BPBII1",null,null,null,"Wobec jednostek powiązanych"]
[null,"BPBII2",null,{"$f":"B202","v":"BPBII2"},null,null,null,"Wobec pozostałych jednostek, w których jednostka posiada zaangażowanie w kapitale"]
[null,null,null,null,null,null,null,"Wobec pozostałych jednostek"]
[null,"BPBII3a",null,"BPBII3a",null,null,null,null,"Kredyty i pożyczki"]
[null,"BPBII3b",null,"BPBII3b",null,null,null,null,"Z tytułu emisji dłużnych papierów wartościowych"]
[null,"BPBII3c",null,"BPBII3c",null,null,null,null,"Inne zobowiązania finansowe"]
[null,"BPBII3d",null,"BPBII3d",null,null,null,null,"Zobowiązania wekslowe"]
[null,"BPBII3e",null,"BPBII3e",null,null,null,null,"Inne"]
[null,null,null,null,null,null,"Zobowiązania krótkoterminowe"]
[null,null,null,null,null,null,null,"Wobec jednostek powiązanych"]
[null,null,null,null,null,null,null,null,"Z tytułu dostaw i usług"]
[null,"BPBIII1a_D12",null,"BPBIII1a_D12",null,null,null,null,null,"O okresie wymagalności do 12 miesięcy"]
[null,"BPBIII1a_P12",null,"BPBIII1a_P12",null,null,null,null,null,"O okresie wymagalności powyżej 12 miesięcy"]
[null,"BPBIII1b",null,"BPBIII1b",null,null,null,null,"Inne"]
[null,null,null,null,null,null,null,"Wobec pozostałych jednostek, w których jednostka posiada zaangażowanie w kapitale"]
[null,null,null,null,null,null,null,null,"Z tytułu dostaw i usług"]
[null,"BPBIII2a_D12",null,"BPBIII2a_D12",null,null,null,null,null,"O okresie wymagalności do 12 miesięcy"]
[null,"BPBIII2a_P12",null,"BPBIII2a_P12",null,null,null,null,null,"O okresie wymagalności powyżej 12 miesięcy"]
[null,"BPBIII2b",null,"BPBIII2b",null,null,null,null,"Inne"]
[null,null,null,null,null,null,null,"Wobec pozostałych jednostek"]
[null,"BPBIII3a",null,"BPBIII3a",null,null,null,null,"Kredyty i pożyczki"]
[null,"BPBIII3b",null,"BPBIII3b",null,null,null,null,"Z tytułu emisji dłużnych papierów wartościowych"]
[null,"BPBIII3c",null,"BPBIII3c",null,null,null,null,"Inne zobowiązania finansowe"]
[null,null,null,null,null,null,null,null,"Z tytułu dostaw i usług"]
[null,"BPBIII3d_D12",null,"BPBIII3d_D12",null,null,null,null,null,"O okresie wymagalności do 12 miesięcy"]
[null,"BPBIII3d_P12",null,"BPBIII3d_P12",null,null,null,null,null,"O okresie wymagalności powyżej 12 miesięcy"]
[null,"BPBIII3e",null,"BPBIII3e",null,null,null,null,"Zaliczki otrzymane na dostawy i usługi"]
[null,"BPBIII3f",null,"BPBIII3f",null,null,null,null,"Zobowiązania wekslowe"]
[null,"BPBIII3g",null,"BPBIII3g",null,null,null,null,"Z tytułu podatków, ceł, ubezpieczeń i innych świadczeń"]
[null,"BPBIII3h",null,"BPBIII3h",null,null,null,null,"Z tytułu wynagrodzeń"]
[null,"BPBIII3i",null,"BPBIII3i",null,null,null,null,"Inne"]
[null,"BPBIII4",null,"BPBIII4",null,null,null,"Fundusze specjalne"]
[null,null,null,null,null,null,"Rozliczenia międzyokresowe"]
[null,"BPBIV1",null,"BPBIV1",null,null,null,"Ujemna wartość firmy"]
[null,null,null,null,null,null,null,"Inne rozliczenia międzyokresowe"]
[null,"BPBIV2_D",null,"BPBIV2_D",null,null,null,null,"Długoterminowe"]
[null,"BPBIV2_K",null,"BPBIV2_K",null,null,null,null,"Krótkoterminowe"]
[null,null,null,null,"WYNIKOWE"]
[null,null,null,null,null,"Przychody netto ze sprzedaży i zrównane z nimi / przychody netto ze sprzedaży produktów, towarów i materiałów"]
[null,null,null,null,null,null,"Przychody netto ze sprzedaży produktów"]
[null,"RPAI_RKAI_POW",null,"RPAI_RKAI_POW",null,null,null,"Od jednostek powiązanych"]
[null,"RPAI_RKAI_POZ",null,"RPAI_RKAI_POZ",null,null,null,"Od pozostałych jednostek"]
[null,null,null,null,null,"Przychody netto ze sprzedaży i zrównane z nimi "]
[null,"RPAII",null,"RPAII",null,null,"Zmiana stanu produktów"]
[null,"RPAIII",null,"RPAIII",null,null,"Koszt wytworzenia produktów na własne potrzeby"]
[null,null,null,null,null,"Przychody netto ze sprzedaży i zrównane z nimi / przychody netto ze sprzedaży produktów, towarów i materiałów"]
[null,null,null,null,null,null,"Przychody netto ze sprzedaży towarów i materiałów"]
[null,"RPAIV_RKAII_POW",null,"RPAIV_RKAII_POW",null,null,null,"Od jednostek powiązanych"]
[null,"RPAIV_RKAII_POZ",null,"RPAIV_RKAII_POZ",null,null,null,"Od pozostałych jednostek"]
[null,null,null,null,null,"Koszty działalności operacyjnej"]
[null,"RPBI",null,"RPBI",null,null,"Amortyzacja"]
[null,"RPBII",null,"RPBII",null,null,"Zużycie materiałów i energii"]
[null,"RPBIII",null,"RPBIII",null,null,"Usługi obce"]
[null,null,null,null,null,null,"Podatki i opłaty"]
[null,"RPBIV_AKC",null,"RPBIV_AKC",null,null,null,"Podatek akcyzowy"]
[null,"RPBIV_POZ",null,"RPBIV_POZ",null,null,null,"Pozostałe podatki i opłaty"]
[null,"RPBV",null,"RPBV",null,null,"Wynagrodzenia"]
[null,"RPBVI",null,"RPBVI",null,null,"Ubezpieczenia społeczne i inne świadczenia"]
[null,"RPBVI_E",null,"RPBVI_E",null,null,null,"Emerytalne"]
[null,"RPBVII",null,"RPBVII",null,null,"Pozostałe koszty rodzajowe"]
[null,null,null,null,null,"Koszty działalności operacyjnej / koszty sprzedanych produktów, towarów i materiałów"]
[null,null,null,null,null,null,"Wartość sprzedanych towarów i materiałów"]
[null,"RPBVIII_RKBII_POW",null,"RPBVIII_RKBII_POW",null,null,null,"Dla jednostek powiązanych"]
[null,"RPBVIII_RKBII_POZ",null,"RPBVIII_RKBII_POZ",null,null,null,"Dla pozostałych jednostek"]
[null,null,null,null,null,"Koszty sprzedanych produktów, towarów i materiałów"]
[null,null,null,null,null,null,"Koszt wytworzenia sprzedanych produktów"]
[null,"RKBI_POW",null,{"$f":"B267","v":"RKBI_POW"},null,null,null,"Jednostkom powiązanym"]
[null,"RKBI_POZ",null,"RKBI_POZ",null,null,null,"Pozostałym jednostkom"]
[null,"RKD",null,"RKD",null,"Koszty sprzedaży"]
[null,"RKE",null,"RKE",null,"Koszty ogólnego zarządu"]
[null,null,null,null,null,"Pozostałe przychody operacyjne"]
[null,null,null,null,null,null,"Przychody ze zbycia niefinansowych aktywów trwałych"]
[null,"RPDI_RKGI_POW",null,"RPDI_RKGI_POW",null,null,null,"Od jednostek powiązanych"]
[null,"RPDI_RKGI_POZ",null,"RPDI_RKGI_POZ",null,null,null,"Od pozostałych jednostek"]
[null,"RPDII_RKGII",null,"RPDII_RKGII",null,null,"Dotacje"]
[null,"RPDIII_RKGIII",null,"RPDIII_RKGIII",null,null,"Aktualizacja wartości aktywów niefinansowych"]
[null,"RPDIV_RKGIV",null,"RPDIV_RKGIV",null,null,"Inne pozostałe przychody operacyjne"]
[null,"RPDIV_RKGIV_ZCP",null,"RPDIV_RKGIV_ZCP",null,null,null,"Ze zbycia zorganizowanej części przedsiębiorstwa"]
[null,"RPDIV_RKGIV_WF",null,"RPDIV_RKGIV_WF",null,null,null,"Odpis ujemnej wartości firmy"]
[null,"RPDIV_RKGIV_P",null,"RPDIV_RKGIV_P",null,null,null,"Pozostałe"]
[null,null,null,null,null,"Pozostałe koszty operacyjne"]
[null,null,null,null,null,null,"Koszty zbycia niefinansowych aktywów trwałych"]
[null,"RPEI_RKHI_POW",null,"RPEI_RKHI_POW",null,null,null,"Dla jednostek powiązanych"]
[null,"RPEI_RKHI_POZ",null,"RPEI_RKHI_POZ",null,null,null,"Dla pozostałych jednostek"]
[null,"RPEII_RKHII",null,"RPEII_RKHII",null,null,"Aktualizacja wartości aktywów niefinansowych"]
[null,"RPEIII_RKHIII",null,"RPEIII_RKHIII",null,null,"Inne"]
[null,"RPEIII_RKHIII_ZCP",null,"RPEIII_RKHIII_ZCP",null,null,null,"Koszty zbycia zorganizowanej części przedsiębiorstwa"]
[null,"RPEIII_RKHIII_WF",null,"RPEIII_RKHIII_WF",null,null,null,"Odpis wartości firmy"]
[null,"RPEIII_RKHIII_P",null,"RPEIII_RKHIII_P",null,null,null,"Pozostałe"]
[null,null,null,null,null,"Przychody finansowe"]
[null,null,null,null,null,null,"Dywidendy i udziały w zyskach"]
[null,null,null,null,null,null,null,"Od jednostek powiązanych"]
[null,"RPGIa_RKJIa_POW_k",null,"RPGIa_RKJIa_POW_k",null,null,null,null,"W których jednostka posiada zaangażowanie w kapitale"]
[null,"RPGIa_RKJIa_POW_p",null,"RPGIa_RKJIa_POW_p",null,null,null,null,"W innych jednostkach powiązanych"]
[null,null,null,null,null,null,null,"Od pozostałych jednostek"]
[null,"RPGIb_RKJIb_POZ_k",null,"RPGIb_RKJIb_POZ_k",null,null,null,null,"W których jednostka posiada zaangażowanie w kapitale"]
[null,"RPGIb_RKJIb_POZ_p",null,"RPGIb_RKJIb_POZ_p",null,null,null,null,"W innych pozostałych jednostkach"]
[null,null,null,null,null,null,"Odsetki"]
[null,"RPGII_RKJII_POW",null,"RPGII_RKJII_POW",null,null,null,"Od jednostek powiązanych"]
[null,"RPGII_RKJII_POZ",null,"RPGII_RKJII_POZ",null,null,null,"Od pozostałych jednostek"]
[null,null,null,null,null,null,"Przychód z tytułu rozchodu aktywów finansowych"]
[null,"RPGIII_RKJIII_POW",null,"RPGIII_RKJIII_POW",null,null,null,"W jednostkach powiązanych"]
[null,"RPGIII_RKJIII_POZ",null,"RPGIII_RKJIII_POZ",null,null,null,"W pozostałych jednostkach"]
[null,"RPGIV_RKJIV",null,"RPGIV_RKJIV",null,null,"Aktualizacja wartości aktywów finansowych"]
[null,null,null,null,null,null,"Inne"]
[null,"RPGV_RKJV_RK",null,"RPGV_RKJV_RK",null,null,null,"Przychody z tytułu dodatnich różnic kursowych"]
[null,"RPGV_RKJV_POZ",null,"RPGV_RKJV_POZ",null,null,null,"Pozostałe"]
[null,null,null,null,null,"Koszty finansowe"]
[null,null,null,null,null,null,"Odsetki"]
[null,"RPHI_RKKI_POW",null,"RPHI_RKKI_POW",null,null,null,"Dla jednostek powiązanych"]
[null,"RPHI_RKKI_POZ",null,"RPHI_RKKI_POZ",null,null,null,"Dla pozostałych jednostek"]
[null,null,null,null,null,null,"Koszty z tytułu rozchodu aktywów finansowych"]
[null,"RPHII_RKKII_POW",null,"RPHII_RKKII_POW",null,null,null,"W jednostkach powiązanych"]
[null,"RPHII_RKKII_POZ",null,"RPHII_RKKII_POZ",null,null,null,"W pozostałych jednostkach"]
[null,"RPHIII_RKKIII",null,"RPHIII_RKKIII",null,null,"Aktualizacja wartości aktywów finansowych"]
[null,null,null,null,null,null,"Inne"]
[null,"RPHIV_RKKIV_RK",null,"RPHIV_RKKIV_RK",null,null,null,"Koszty z tytułu ujemnych różnic kursowych"]
[null,"RPHIV_RKKIV_POZ",null,"RPHIV_RKKIV_POZ",null,null,null,"Pozostałe"]
[null,null,null,null,null,"Podatek dochodowy"]
[null,"RPJ_RKM_B",null,"RPJ_RKM_B",null,null,"Bieżący"]
[null,"RPJ_RKM_O",null,"RPJ_RKM_O",null,null,"Odroczony"]
[null,"RPK_RKN",null,"RPK_RKN",null,"Pozostałe obowiązkowe zmniejszenia zysku (zwiększenia straty)"]
[null,"INNE",null,"INNE","Inne, niewskazane w słowniku"]
[]
[1,null,"dla:",{"$f":"VLOOKUP(A325,WariantyZOiS,2,FALSE)","v":"banków"}]
[]
[null,null,null,null,"AKTYWA"]
[null,null,null,null,null,"Kasa, operacje z Bankiem Centralnym"]
[null,"B2AI1",null,{"$f":"B329","v":"B2AI1"},null,null,"W rachunku bieżącym"]
[null,"B2AI2",null,"B2AI2",null,null,"Rezerwa obowiązkowa"]
[null,"B2AI3",null,"B2AI3",null,null,"Inne środki"]
[null,"B2AI_A",null,"B2AI_A",null,null,"Odpisy aktualizujące wartość należności / odpisy z tytułu utraty wartości"]
[null,"B2AII_W",null,"B2AII_W",null,"Dłużne papiery wartościowe uprawnione do redyskontowania w Banku Centralnym"]
[null,"B2AII_A",null,"B2AII_A",null,null,"Odpisy aktualizujące wartość dłużnych papierów wartościowych uprawnionych do redyskontowania w Banku Centralnym / odpisy z tytułu utraty wartości"]
[null,null,null,null,null,"Należności od sektora finansowego"]
[null,"B2AIII1_W",null,"B2AIII1_W",null,null,"W rachunku bieżącym"]
[null,"B2AIII1_rc",null,"B2AIII1_rc",null,null,null,"Rezerwy celowe"]
[null,"B2AIII1_A",null,"B2AIII1_A",null,null,null,"Odpisy aktualizujące wartość należności kredytowych od sektora finansowego w rachunku bieżącym / odpisy z tytułu utraty wartości"]
[null,"B2AIII2_W",null,"B2AIII2_W",null,null,"Terminowe"]
[null,"B2AIII2_rc",null,"B2AIII2_rc",null,null,null,"Rezerwy celowe"]
[null,"B2AIII2_A",null,"B2AIII2_A",null,null,null,"Odpisy aktualizujące wartość należności kredytowych terminowych od sektora finansowego / odpisy z tytułu utraty wartości"]
[null,null,null,null,null,"Należności od sektora niefinansowego"]
[null,"B2AIV1_W",null,"B2AIV1_W",null,null,"W rachunku bieżącym"]
[null,"B2AIV1_rc",null,"B2AIV1_rc",null,null,null,"Rezerwy celowe"]
[null,"B2AIV1_A",null,"B2AIV1_A",null,null,null,"Odpisy aktualizujące wartość należności kredytowych od sektora niefinansowego w rachunku bieżącym / odpisy z tytułu utraty wartości"]
[null,"B2AIV2_W",null,"B2AIV2_W",null,null,"Terminowe"]
[null,"B2AIV2_rc",null,"B2AIV2_rc",null,null,null,"Rezerwy celowe"]
[null,"B2AIV2_A",null,"B2AIV2_A",null,null,null,"Odpisy aktualizujące wartość należności kredytowych terminowych od sektora niefinansowego / odpisy z tytułu utraty wartości"]
[null,null,null,null,null,"Należności od sektora budżetowego"]
[null,"B2AV1_W",null,"B2AV1_W",null,null,"W rachunku bieżącym"]
[null,"B2AV1_rc",null,"B2AV1_rc",null,null,null,"Rezerwy celowe"]
[null,"B2AV1_A",null,"B2AV1_A",null,null,null,"Odpisy aktualizujące wartość należności kredytowych od sektora budżetowego w rachunku bieżącym / odpisy z tytułu utraty wartości"]
[null,"B2AV2_W",null,"B2AV2_W",null,null,"Terminowe"]
[null,"B2AV2_rc",null,"B2AV2_rc",null,null,null,"Rezerwy celowe"]
[null,"B2AV2_A",null,"B2AV2_A",null,null,null,"Odpisy aktualizujące wartość należności kredytowych terminowych od sektora budżetowego / odpisy z tytułu utraty wartości"]
[null,"B2AVI_W",null,"B2AVI_W",null,"Należności z tytułu zakupionych papierów wartościowych z otrzymanym przyrzeczeniem odkupu"]
[null,"B2AVI_A",null,"B2AVI_A",null,null,"Odpisy aktualizujące wartość należności z tytułu zakupionych papierów wartościowych z otrzymanym przyrzeczeniem odkupu / odpisy z tytułu utraty wartości"]
[null,null,null,null,null,"Dłużne papiery wartościowe"]
[null,"B2AVII1",null,"B2AVII1",null,null,"Banków"]
[null,"B2AVII1_A",null,"B2AVII1_A",null,null,null,"Odpisy aktualizujące wartość dłużnych papierów wartościowych banków / odpisy z tytułu utraty wartości"]
[null,"B2AVII2",null,"B2AVII2",null,null,"Budżetu Państwa i budżetów terenowych"]
[null,"B2AVII2_A",null,"B2AVII2_A",null,null,null,"Odpisy aktualizujące wartość należności dłużnych papierów wartościowych Budżetu Państwa i budżetów terenowych / odpisy z tytułu utraty wartości"]
[null,"B2AVII3_W",null,"B2AVII3_W",null,null,"Pozostałe"]
[null,"B2AVII3_A",null,"B2AVII3_A",null,null,null,"Odpisy aktualizujące wartość należności pozostałych dłużnych papierów wartościowych / odpisy z tytułu utraty wartości"]
[null,null,null,null,null,"Udziały lub akcje w jednostkach zależnych"]
[null,"B2AVIII1_W",null,"B2AVIII1_W",null,null,"W instytucjach finansowych"]
[null,"B2AVIII1_A",null,"B2AVIII1_A",null,null,null,"Odpisy aktualizujące wartość udziałów lub akcji w jednostkach zależnych w instytucjach finansowych / odpisy z tytułu utraty wartości"]
[null,"B2AVIII2_W",null,"B2AVIII2_W",null,null,"W pozostałych jednostkach"]
[null,"B2AVIII2_A",null,"B2AVIII2_A",null,null,null,"Odpisy aktualizujące wartość udziałów lub akcji w pozostałych jednostkach zależnych / odpisy z tytułu utraty wartości"]
[null,null,null,null,null,"Udziały lub akcje w jednostkach współzależnych"]
[null,"B2AIX1_W",null,"B2AIX1_W",null,null,"W instytucjach finansowych"]
[null,"B2AIX1_A",null,"B2AIX1_A",null,null,null,"Odpisy aktualizujące wartość udziałów lub akcji w jednostkach współzależnych w instytucjach finansowych / odpisy z tytułu utraty wartości"]
[null,"B2AIX2_W",null,"B2AIX2_W",null,null,"W pozostałych jednostkach"]
[null,"B2AIX2_A",null,"B2AIX2_A",null,null,null,"Odpisy aktualizujące wartość udziałów lub akcji w pozostałych jednostkach współzależnych / odpisy z tytułu utraty wartości"]
[null,null,null,null,null,"Udziały lub akcje w jednostkach stowarzyszonych"]
[null,"B2AX1_W",null,"B2AX1_W",null,null,"W instytucjach finansowych"]
[null,"B2AX1_A",null,"B2AX1_A",null,null,null,"Odpisy aktualizujące wartość udziałów lub akcji w jednostkach stowarzyszonych w instytucjach finansowych / odpisy z tytułu utraty wartości"]
[null,"B2AX2_W",null,"B2AX2_W",null,null,"W pozostałych jednostkach"]
[null,"B2AX2_A",null,"B2AX2_A",null,null,null,"Odpisy aktualizujące wartość udziałów lub akcji w pozostałych jednostkach stowarzyszonych / odpisy z tytułu utraty wartości"]
[null,null,null,null,null,"Udziały lub akcje w innych jednostkach"]
[null,"B2AXI1_W",null,"B2AXI1_W",null,null,"W instytucjach finansowych"]
[null,"B2AXI1_A",null,"B2AXI1_A",null,null,null,"Odpisy aktualizujące wartość udziałów lub akcji w innych jednostkach w instytucjach finansowych / odpisy z tytułu utraty wartości"]
[null,"B2AXI2_W",null,"B2AXI2_W",null,null,"W pozostałych jednostkach"]
[null,"B2AXI2_A",null,"B2AXI2_A",null,null,null,"Odpisy aktualizujące wartość udziałów lub akcji w innych jednostkach w pozostałych instytucjach finansowych / odpisy z tytułu utraty wartości"]
[null,"B2AXII_W",null,"B2AXII_W",null,"Pozostałe papiery wartościowe i inne aktywa finansowe"]
[null,"B2AXII_A",null,"B2AXII_A",null,null,"Odpisy aktualizujące wartość pozostałych papierów wartościowych i innych aktywów finansowych / odpisy z tytułu utraty wartości"]
[null,null,null,null,null,"Wartości niematerialne i prawne"]
[null,"B2AXIII1_WF",null,"B2AXIII1_WF",null,null,"Wartość firmy"]
[null,"B2AXIII1_WF_A",null,"B2AXIII1_WF_A",null,null,null,"Odpisy aktualizujące wartość firmy / odpisy z tytułu utraty wartości"]
[null,"B2AXIII1_WF_U",null,"B2AXIII1_WF_U",null,null,null,"Umorzenie wartości firmy"]
[null,"B2AXIII2_inne_W",null,"B2AXIII2_inne_W",null,null,"Inne wartości niematerialne i prawne"]
[null,"B2AXIII1_inne_A",null,"B2AXIII1_inne_A",null,null,null,"Odpisy aktualizujące inne wartości niematerialne i prawne / odpisy z tytułu utraty wartości"]
[null,"B2AXIII1_inne_U",null,{"$f":"B393","v":"B2AXIII1_inne_U"},null,null,null,"Umorzenie innych wartości niematerialnych i prawnych"]
[null,"B2AXIV_W",null,"B2AXIV_W",null,"Rzeczowe aktywa trwałe"]
[null,"B2AXIV_U",null,"B2AXIV_U",null,null,"Umorzenie rzeczowych aktywów trwałych"]
[null,"B2AXIV_A",null,"B2AXIV_A",null,null,"Odpisy aktualizujące wartość rzeczowych aktywów trwałych / odpisy z tytułu utraty wartości"]
[null,null,null,null,null,"Inne aktywa"]
[null,"B2AXV1_W",null,"B2AXV1_W",null,null,"Przejęte aktywa do zbycia"]
[null,"B2AXV1_A",null,"B2AXV1_A",null,null,null,"Odpisy aktualizujące wartość innych aktywów przejętych do zbycia / odpisy z tytułu utraty wartości"]
[null,"B2AXV2_W",null,"B2AXV2_W",null,null,"Pozostałe"]
[null,"B2AXV2_A",null,"B2AXV2_A",null,null,null,"Odpisy aktualizujące wartość innych aktywów pozostałych / odpisy z tytułu utraty wartości"]
[null,null,null,null,null,"Rozliczenia międzyokresowe"]
[null,"B2AXVI1_W",null,"B2AXVI1_W",null,null,"Aktywa z tytułu odroczonego podatku dochodowego"]
[null,"B2AXVI1_A",null,"B2AXVI1_A",null,null,null,"Odpisy aktualizujące wartość aktywów z tytułu odroczonego podatku dochodowego / odpisy z tytułu utraty wartości"]
[null,"B2AXVI2_W",null,"B2AXVI2_W",null,null,"Pozostałe rozliczenia międzyokresowe"]
[null,"B2AXVI2_A",null,"B2AXVI2_A",null,null,null,"Odpisy aktualizujące wartość pozostałych rozliczeń międzyokresowych / odpisy z tytułu utraty wartości"]
[null,"B2AXVII",null,"B2AXVII",null,"Należne wpłaty na kapitał (fundusz) podstawowy"]
[null,"B2AXVIII",null,"B2AXVIII",null,"Akcje własne"]
[null,null,null,null,"PASYWA"]
[null,"B2PI1",null,"B2PI1",null,"Zobowiązania wobec Banku Centralnego"]
[null,null,null,null,null,"Zobowiązania wobec sektora finansowego"]
[null,"B2PII1",null,"B2PII1",null,null,"W rachunku bieżącym"]
[null,"B2PII2",null,"B2PII2",null,null,"Terminowe"]
[null,null,null,null,null,"Zobowiązania wobec sektora niefinansowego"]
[null,null,null,null,null,null,"Rachunki oszczędnościowe, w tym:"]
[null,"B2PIII1a",null,"B2PIII1a",null,null,null,"Bieżące"]
[null,"B2PIII1b",null,"B2PIII1b",null,null,null,"Terminowe"]
[null,null,null,null,null,null,"Pozostałe, w tym:"]
[null,"B2PIII2a",null,"B2PIII2a",null,null,null,"Bieżące"]
[null,"B2PIII2b",null,"B2PIII2b",null,null,null,"Terminowe"]
[null,null,null,null,null,"Zobowiązania wobec sektora budżetowego"]
[null,"B2PIV1",null,"B2PIV1",null,null,"Bieżące"]
[null,"B2PIV2",null,"B2PIV2",null,null,"Terminowe"]
[null,"B2PV",null,"B2PV",null,"Zobowiązania z tytułu sprzedanych papierów wartościowych z udzielonym przyrzeczeniem odkupu"]
[null,"B2PVI",null,"B2PVI",null,"Zobowiązania z tytułu emisji dłużnych papierów wartościowych"]
[null,"B2PVII",null,"B2PVII",null,"Inne zobowiązania z tytułu instrumentów finansowych"]
[null,"B2PVIII",null,"B2PVIII",null,"Fundusze specjalne i inne zobowiązania"]
[null,null,null,null,null,"Koszty i przychody rozliczane w czasie"]
[null,"B2PIX1",null,"B2PIX1",null,null,"Rozliczenia międzyokresowe kosztów"]
[null,"B2PIX2",null,"B2PIX2",null,null,"Ujemna wartość firmy"]
[null,"B2PIX3",null,"B2PIX3",null,null,"Pozostałe rozliczenia międzyokresowe przychodów"]
[null,null,null,null,null,"Rezerwy"]
[null,"B2PX1",null,"B2PX1",null,null,"Rezerwa z tytułu odroczonego podatku dochodowego"]
[null,"B2PX2",null,"B2PX2",null,null,"Pozostałe rezerwy"]
[null,"B2PXI",null,"B2PXI",null,"Zobowiązania podporządkowane"]
[null,"B2PXII",null,"B2PXII",null,"Kapitał (fundusz) podstawowy"]
[null,"B2PXIII",null,"B2PXIII",null,"Kapitał (fundusz) zapasowy"]
[null,"B2PXIV",null,"B2PXIV",null,"Kapitał (fundusz) z aktualizacji wyceny"]
[null,null,null,null,null,"Pozostałe kapitały (fundusze) rezerwowe"]
[null,"B2PXV1",null,"B2PXV1",null,null,"Fundusz ogólnego ryzyka bankowego"]
[null,"B2PXVI",null,"B2PXVI",null,"Zysk (strata) z lat ubiegłych"]
[null,"B2PXVII",null,"B2PXVII",null,"Zysk (strata) netto"]
[null,"B2PXVIII",null,"B2PXVIII",null,"Odpisy z zysku netto w ciągu roku obrotowego (wielkość ujemna)"]
[null,null,null,null,"WYNIKOWE"]
[null,null,null,null,null,"Przychody z tytułu odsetek"]
[null,"R2I1",null,"R2I1",null,null,"Od sektora finansowego"]
[null,"R2I2",null,"R2I2",null,null,"Od sektora niefinansowego"]
[null,"R2I3",null,"R2I3",null,null,"Od sektora budżetowego"]
[null,"R2I4",null,"R2I4",null,null,"Z papierów wartościowych o stałej kwocie dochodu"]
[null,null,null,null,null,"Koszty odsetek"]
[null,"R2II1",null,"R2II1",null,null,"Od sektora finansowego"]
[null,"R2II2",null,"R2II2",null,null,"Od sektora niefinansowego"]
[null,"R2II3",null,"R2II3",null,null,"Od sektora budżetowego"]
[null,"R2IV",null,"R2IV",null,"Przychody z tytułu prowizji"]
[null,"R2V",null,"R2V",null,"Koszty prowizji"]
[null,null,null,null,null,"Przychody z udziałów lub akcji, pozostałych papierów wartościowych i innych instrumentów finansowych, o zmiennej kwocie dochodu"]
[null,"R2VII1",null,{"$f":"B457","v":"R2VII1"},null,null,"Od jednostek zależnych"]
[null,"R2VII2",null,"R2VII2",null,null,"Od jednostek współzależnych"]
[null,"R2VII3",null,"R2VII3",null,null,"Od jednostek stowarzyszonych"]
[null,"R2VII4",null,"R2VII4",null,null,"Od pozostałych jednostek"]
[null,"R2VIII1_P",null,"R2VIII1_P",null,"Przychody z tytułu operacji finansowych papierami wartościowymi i innymi instrumentami finansowymi"]
[null,"R2VIII1_K",null,"R2VIII1_K",null,"Koszty z tytułu operacji finansowych papierami wartościowymi i innymi instrumentami finansowymi"]
[null,"R2VIII2_P",null,"R2VIII2_P",null,"Przychody z tytułu pozostałych operacji finansowych"]
[null,"R2VIII2_K",null,"R2VIII2_K",null,"Koszty z tytułu pozostałych operacji finansowych"]
[null,"R2IX_P",null,"R2IX_P",null,"Przychody z pozycji wymiany"]
[null,"R2IX_K",null,"R2IX_K",null,"Koszty z pozycji wymiany"]
[null,"R2XI",null,"R2XI",null,"Pozostałe przychody operacyjne"]
[null,"R2XII",null,"R2XII",null,"Pozostałe koszty operacyjne"]
[null,null,null,null,null,"Koszty działania banku"]
[null,"R2XIII1",null,"R2XIII1",null,null,"Wynagrodzenia"]
[null,"R2XIII2",null,"R2XIII2",null,null,"Ubezpieczenia i inne świadczenia"]
[null,"R2XIII3",null,"R2XIII3",null,null,"Pozostałe"]
[null,"R2XIV",null,"R2XIV",null,"Amortyzacja środków trwałych oraz wartości niematerialnych i prawnych"]
[null,null,null,null,null,"Odpisy na rezerwy i aktualizacja wartości"]
[null,"R2XV1",null,"R2XV1",null,null,"Odpisy na rezerwy celowe i na ogólne ryzyko bankowe"]
[null,"R2XV2",null,"R2XV2",null,null,"Aktualizacja wartości aktywów finansowych"]
[null,null,null,null,null,"Rozwiązanie rezerw i aktualizacja wartości"]
[null,"R2XVI1",null,"R2XVI1",null,null,"Rozwiązanie rezerw celowych i rezerw na ogólne ryzyko bankowe"]
[null,"R2XVI2",null,"R2XVI2",null,null,"Aktualizacja wartości aktywów finansowych"]
[null,"R2XIX1",null,"R2XIX1",null,"Zyski nadzwyczajne"]
[null,"R2XIX2",null,"R2XIX2",null,"Straty nadzwyczajne"]
[null,null,null,null,null,"Podatek dochodowy"]
[null,"R2XXI_B",null,"R2XXI_B",null,null,"Bieżący"]
[null,"R2XXI_O",null,"R2XXI_O",null,null,"Odroczony"]
[null,"R2XXII",null,"R2XXII",null,"Pozostałe obowiązkowe zmniejszenie zysku (zwiększenie straty)"]
[null,"INNE",null,"INNE","Inne, niewskazane w słowniku"]
[]
[2,null,"dla:",{"$f":"VLOOKUP(A488,WariantyZOiS,2,FALSE)","v":"ubezpieczycieli i zakładów reasekuracji"}]
[]
[null,null,null,null,"AKTYWA"]
[null,null,null,null,null,"Wartości niematerialne i prawne"]
[null,"B3AA1_W",null,{"$f":"B492","v":"B3AA1_W"},null,null,"Wartość firmy"]
[null,"B3AA1_A",null,"B3AA1_A",null,null,null,"Odpisy aktualizujące wartość firmy / odpisy z tytułu utraty wartości"]
[null,"B3AA1_U",null,"B3AA1_U",null,null,null,"Umorzenie wartości firmy"]
[null,"B3AA2_W",null,"B3AA2_W",null,null,"Inne wartości niematerialne i prawne i zaliczki na poczet wartości niematerialnych i prawnych"]
[null,"B3AA2_A",null,"B3AA2_A",null,null,null,"Odpisy aktualizujące inne wartości niematerialne i prawne / odpisy z tytułu utraty wartości"]
[null,"B3AA2_U",null,"B3AA2_U",null,null,null,"Umorzenie innych wartości niematerialnych i prawnych"]
[null,null,null,null,null,"Lokaty"]
[null,null,null,null,null,null,"Nieruchomości"]
[null,"B3ABI1_W",null,"B3ABI1_W",null,null,null,"Grunty własne oraz prawo wieczystego użytkowania gruntu"]
[null,"B3ABI1_A",null,"B3ABI1_A",null,null,null,null,"Odpisy aktualizujące wartość gruntów własnych oraz prawa wieczystego użytkowania gruntu / odpisy z tytułu utraty wartości"]
[null,"B3ABI2_W",null,"B3ABI2_W",null,null,null,"Budynki, budowle oraz spółdzielcze własnościowe prawo do lokalu"]
[null,"B3ABI2_A",null,"B3ABI2_A",null,null,null,null,"Odpisy aktualizujące wartość budynków, budowli oraz spółdzielczego własnościowego prawa do lokalu / odpisy z tytułu utraty wartości"]
[null,"B3ABI2_U",null,"B3ABI2_U",null,null,null,null,"Umorzenie wartości budynków, budowli oraz spółdzielczego własnościowego prawa do lokalu"]
[null,"B3ABI3_W",null,"B3ABI3_W",null,null,null,"Inwestycje budowlane i zaliczki na poczet tych inwestycji"]
[null,"B3ABI3_A",null,"B3ABI3_A",null,null,null,null,"Odpisy aktualizujące wartość inwestycji budowlanych/ odpisy z tytułu utraty wartości"]
[null,"B3ABI3_U",null,"B3ABI3_U",null,null,null,null,"Umorzenie inwestycji budowlanych"]
[null,null,null,null,null,null,"Lokaty w jednostkach podporządkowanych"]
[null,"B3ABII1_W",null,"B3ABII1_W",null,null,null,"Udziały lub akcje w jednostkach podporządkowanych"]
[null,"B3ABII1_A",null,"B3ABII1_A",null,null,null,null,"Odpisy aktualizujące wartość udziałów lub akcji w jednostkach podporządkowanych"]
[null,"B3ABII2_W",null,"B3ABII2_W",null,null,null,"Pożyczki udzielone jednostkom podporządkowanym oraz dłużne papiery wartościowe emitowane przez te jednostki"]
[null,"B3ABII2_A",null,"B3ABII2_A",null,null,null,null,"Odpisy aktualizujące wartość pożyczek udzielonych jednostkom podporządkowanym oraz dłużnych papierów wartościowych emitowanych przez te jednostki"]
[null,"B3ABII3_W",null,"B3ABII3_W",null,null,null,"Pozostałe lokaty"]
[null,"B3ABII3_A",null,"B3ABII3_A",null,null,null,null,"Odpisy aktualizujące wartość pozostałych lokat"]
[null,null,null,null,null,null,"Inne lokaty finansowe"]
[null,"B3ABIII1_W",null,"B3ABIII1_W",null,null,null,"Udziały, akcje oraz inne papiery wartościowe, o zmiennej kwocie dochodu oraz jednostki uczestnictwa i certyfikaty inwestycyjne w funduszach inwestycyjnych"]
[null,"B3ABIII1_A",null,"B3ABIII1_A",null,null,null,null,"Odpisy aktualizujące wartość udziałów, akcji oraz innych papierów wartościowych o zmiennej kwocie dochodu oraz jednostki uczestnictwa i certyfikatów inwestycyjnych w funduszach inwestycyjnych"]
[null,"B3ABIII2_W",null,"B3ABIII2_W",null,null,null,"Dłużne papiery wartościowe i inne papiery wartościowe o stałej kwocie dochodu"]
[null,"B3ABIII2_A",null,"B3ABIII2_A",null,null,null,null,"Odpisy aktualizujące wartość dłużnych papierów wartościowych i innych papierów wartościowych o stałej kwocie dochodu"]
[null,"B3ABIII3_W",null,"B3ABIII3_W",null,null,null,"Udziały we wspólnych przedsięwzięciach lokacyjnych"]
[null,"B3ABIII3_A",null,"B3ABIII3_A",null,null,null,null,"Odpisy aktualizujące wartość udziałów we wspólnych przedsięwzięciach lokacyjnych"]
[null,"B3ABIII4_W",null,"B3ABIII4_W",null,null,null,"Pożyczki zabezpieczone hipotecznie"]
[null,"B3ABIII4_A",null,"B3ABIII4_A",null,null,null,null,"Odpisy aktualizujące wartość pożyczek zabezpieczonych hipotecznie"]
[null,"B3ABIII5_W",null,"B3ABIII5_W",null,null,null,"Pozostałe pożyczki"]
[null,"B3ABIII5_A",null,"B3ABIII5_A",null,null,null,null,"Odpisy aktualizujące wartość pozostałych pożyczek"]
[null,"B3ABIII6_W",null,"B3ABIII6_W",null,null,null,"Lokaty terminowe w instytucjach kredytowych"]
[null,"B3ABIII6_A",null,"B3ABIII6_A",null,null,null,null,"Odpisy aktualizujące wartość lokat terminowych w instytucjach kredytowych"]
[null,"B3ABIII7_W",null,"B3ABIII7_W",null,null,null,"Pozostałe lokaty"]
[null,"B3ABIII7_A",null,"B3ABIII7_A",null,null,null,null,"Odpisy aktualizujące wartość pozostałych lokat"]
[null,"B3ABIV_W",null,"B3ABIV_W",null,null,"Należności depozytowe od cedentów"]
[null,"B3ABIV_A",null,"B3ABIV_A",null,null,null,"Odpisy aktualizujące wartość należności depozytowych od cedentów"]
[null,"B3AC",null,"B3AC",null,"Aktywa netto ubezpieczeń na życie, gdy ryzyko lokaty (inwestycyjne) ponosi ubezpieczający"]
[null,"B3AC_K",null,"B3AC_K",null,null,"Korekta wartości aktywów wynikająca z korekty zobowiązań dot. tych aktywów"]
[null,null,null,null,null,"Należności"]
[null,null,null,null,null,null,"Należności z tytułu ubezpieczeń bezpośrednich"]
[null,null,null,null,null,null,null,"Należności od ubezpieczających"]
[null,"B3ADI11_1_W",null,"B3ADI11_1_W",null,null,null,null,"Od jednostek podporządkowanych"]
[null,"B3ADI11_1_A",null,"B3ADI11_1_A",null,null,null,null,null,"Odpisy aktualizujące wartość należności z tytułu ubezpieczeń bezpośrednich należności od ubezpieczających / utrata wartości – od jednostek podporządkowanych"]
[null,"B3ADI11_2_W",null,"B3ADI11_2_W",null,null,null,null,"Od pozostałych jednostek"]
[null,"B3ADI11_2_A",null,"B3ADI11_2_A",null,null,null,null,null,"Odpisy aktualizujące wartość należności z tytułu ubezpieczeń bezpośrednich należności od ubezpieczających / utrata wartości – od pozostałych jednostek"]
[null,null,null,null,null,null,null,"Należności od pośredników ubezpieczeniowych"]
[null,"B3ADI22_1_W",null,"B3ADI22_1_W",null,null,null,null,"Od jednostek podporządkowanych"]
[null,"B3ADI22_1_A",null,"B3ADI22_1_A",null,null,null,null,null,"Odpisy aktualizujące wartość należności od pośredników ubezpieczeniowych / utrata wartości – od jednostek podporządkowanych"]
[null,"B3ADI22_2_W",null,"B3ADI22_2_W",null,null,null,null,"Od pozostałych jednostek"]
[null,"B3ADI22_2_A",null,"B3ADI22_2_A",null,null,null,null,null,"Odpisy aktualizujące wartość należności od pośredników ubezpieczeniowych /utrata wartości – od pozostałych jednostek"]
[null,null,null,null,null,null,null,"Inne należności"]
[null,"B3ADI33_1_W",null,"B3ADI33_1_W",null,null,null,null,"Od jednostek podporządkowanych"]
[null,"B3ADI33_1_A",null,"B3ADI33_1_A",null,null,null,null,null,"Odpisy aktualizujące wartość innych należności / utrata wartości – od jednostek podporządkowanych"]
[null,"B3ADI33_2_W",null,"B3ADI33_2_W",null,null,null,null,"Od pozostałych jednostek"]
[null,"B3ADI33_2_A",null,"B3ADI33_2_A",null,null,null,null,null,"Odpisy aktualizujące wartość innych należności / utrata wartości – od pozostałych jednostek"]
[null,null,null,null,null,null,"Należności z tytułu reasekuracji"]
[null,"B3ADII1_W",null,"B3ADII1_W",null,null,null,"Od jednostek podporządkowanych"]
[null,"B3ADII1_A",null,"B3ADII1_A",null,null,null,null,"Odpisy aktualizujące wartość należności z tytułu reasekuracji / utrata wartości – od jednostek podporządkowanych"]
[null,"B3ADII2_W",null,{"$f":"B554","v":"B3ADII2_W"},null,null,null,"Od pozostałych jednostek"]
[null,"B3ADII2_A",null,"B3ADII2_A",null,null,null,null,"Odpisy aktualizujące wartość należności z tytułu reasekuracji / utrata wartości – od pozostałych jednostek"]
[null,null,null,null,null,null,"Inne należności"]
[null,"B3ADIII1",null,"B3ADIII1",null,null,null,"Należności od budżetu"]
[null,null,null,null,null,null,null,"Pozostałe należności"]
[null,"B3ADIII22_1_W",null,"B3ADIII22_1_W",null,null,null,null,"Od jednostek podporządkowanych"]
[null,"B3ADIII22_1_A",null,"B3ADIII22_1_A",null,null,null,null,null,"Odpisy aktualizujące wartość pozostałych należności / utrata wartości –od jednostek podporządkowanych"]
[null,"B3ADIII22_2_W",null,"B3ADIII22_2_W",null,null,null,null,"Od pozostałych jednostek"]
[null,"B3ADIII22_2_A",null,"B3ADIII22_2_A",null,null,null,null,null,"Odpisy aktualizujące wartość pozostałych należności / utrata wartości – od pozostałych jednostek"]
[null,null,null,null,null,"Inne składniki aktywów"]
[null,"B3AEI_W",null,"B3AEI_W",null,null,"Rzeczowe składniki aktywów"]
[null,"B3AEI_U",null,"B3AEI_U",null,null,null,"Umorzenie rzeczowych składników aktywów"]
[null,"B3AEI_A",null,"B3AEI_A",null,null,null,"Odpisy aktualizujące wartość rzeczowych składników aktywów / utrata wartości"]
[null,"B3AEII",null,"B3AEII",null,null,"Środki pieniężne"]
[null,"B3AEIII_W",null,"B3AEIII_W",null,null,"Pozostałe składniki aktywów"]
[null,"B3AEIII_A",null,"B3AEIII_A",null,null,null,"Odpisy aktualizujące wartość pozostałych składników aktywów / utrata wartości"]
[null,null,null,null,null,"Rozliczenia międzyokresowe"]
[null,"B3AFI_W",null,"B3AFI_W",null,null,"Aktywa z tytułu odroczonego podatku dochodowego"]
[null,"B3AFI_A",null,"B3AFI_A",null,null,null,"Odpisy aktualizujące aktywa z tytułu odroczonego podatku dochodowego"]
[null,"B3AFII_W",null,"B3AFII_W",null,null,"Aktywowane koszty akwizycji"]
[null,"B3AFII_A",null,"B3AFII_A",null,null,null,"Odpisy aktualizujące aktywowane koszty akwizycji"]
[null,"B3AFIII_W",null,"B3AFIII_W",null,null,"Zarachowane odsetki i czynsze"]
[null,"B3AFIII_A",null,"B3AFIII_A",null,null,null,"Odpisy aktualizujące zarachowane odsetki i czynsze"]
[null,"B3AFIV_W",null,"B3AFIV_W",null,null,"Inne rozliczenia międzyokresowe"]
[null,"B3AFIV_A",null,"B3AFIV_A",null,null,null,"Odpisy aktualizujące inne rozliczenia międzyokresowe"]
[null,"B3AG",null,"B3AG",null,"Należne wpłaty na kapitał podstawowy"]
[null,"B3AH",null,"B3AH",null,"Akcje własne"]
[null,null,null,null,"PASYWA"]
[null,null,null,null,null,"Kapitał własny"]
[null,"B3PAI",null,"B3PAI",null,null,"Kapitał podstawowy"]
[null,"B3PAII",null,"B3PAII",null,null,"Kapitał zapasowy"]
[null,"B3PAIII",null,"B3PAIII",null,null,"Kapitał z aktualizacji wyceny"]
[null,"B3PAIV",null,"B3PAIV",null,null,"Pozostałe kapitały rezerwowe"]
[null,"B3PAV",null,"B3PAV",null,null,"Zysk (strata) z lat ubiegłych"]
[null,"B3PAVI",null,"B3PAVI",null,null,"Zysk (strata) netto"]
[null,"B3PAVII",null,"B3PAVII",null,null,"Odpisy z zysku netto w ciągu roku obrotowego (wielkość ujemna)"]
[null,"B3PB",null,"B3PB",null,"Zobowiązania podporządkowane"]
[null,null,null,null,null,"Rezerwy techniczno-ubezpieczeniowe"]
[null,"B3PCI",null,"B3PCI",null,null,"Rezerwa składek i rezerwa na pokrycie ryzyka niewygasłego"]
[null,"B3PCII",null,"B3PCII",null,null,"Rezerwa ubezpieczeń na życie"]
[null,"B3PCIII",null,"B3PCIII",null,null,"Rezerwy na niewypłacone odszkodowania i świadczenia"]
[null,"B3PCIV",null,"B3PCIV",null,null,"Rezerwy na premie i rabaty dla ubezpieczonych"]
[null,"B3PCV",null,"B3PCV",null,null,"Rezerwy na wyrównanie szkodowości (ryzyka)"]
[null,"B3PCVI",null,"B3PCVI",null,null,"Rezerwy na zwrot składek dla członków"]
[null,"B3PCVII",null,"B3PCVII",null,null,"Pozostałe rezerwy techniczno-ubezpieczeniowe określone w statucie"]
[null,"B3PCVIII",null,"B3PCVIII",null,null,"Rezerwa ubezpieczeń na życie, gdy ryzyko lokaty (inwestycyjne) ponosi ubezpieczający"]
[null,null,null,null,null,"Udział reasekuratorów w rezerwach techniczno-ubezpieczeniowych (wartość ujemna)"]
[null,"B3PDI",null,"B3PDI",null,null,"Udział reasekuratorów w rezerwie składek i w rezerwie na pokrycie ryzyka niewygasłego"]
[null,"B3PDII",null,"B3PDII",null,null,"Udział reasekuratorów w rezerwie ubezpieczeń na życie"]
[null,"B3PDIII",null,"B3PDIII",null,null,"Udział reasekuratorów w rezerwie na niewypłacone odszkodowania i świadczenia"]
[null,"B3PDIV",null,"B3PDIV",null,null,"Udział reasekuratorów w rezerwie na premie i rabaty dla ubezpieczonych"]
[null,"B3PDV",null,"B3PDV",null,null,"Udział reasekuratorów w pozostałych rezerwach techniczno-ubezpieczeniowych określonych w statucie"]
[null,"B3PDVI",null,"B3PDVI",null,null,"Udział reasekuratorów w rezerwie ubezpieczeń na życie, gdy ryzyko lokaty (inwestycyjne) ponosi ubezpieczający"]
[null,null,null,null,null,"Oszacowane regresy i odzyski (wielkość ujemna)"]
[null,"B3PE1",null,"B3PE1",null,null,"Oszacowane regresy i odzyski brutto"]
[null,"B3PE2",null,"B3PE2",null,null,"Udział reasekuratorów w oszacowanych regresach i odzyskach"]
[null,null,null,null,null,"Pozostałe rezerwy"]
[null,"B3PFI",null,"B3PFI",null,null,"Rezerwy na świadczenia emerytalne oraz inne obowiązkowe świadczenia pracowników"]
[null,"B3PFII",null,"B3PFII",null,null,"Rezerwa z tytułu odroczonego podatku dochodowego"]
[null,"B3PFIII",null,"B3PFIII",null,null,"Inne rezerwy"]
[null,"B3PG",null,"B3PG",null,"Zobowiązania z tytułu depozytów reasekuratorów"]
[null,null,null,null,null,"Pozostałe zobowiązania i fundusze specjalne"]
[null,null,null,null,null,null,"Zobowiązania z tytułu ubezpieczeń bezpośrednich"]
[null,null,null,null,null,null,null,"Zobowiązania wobec ubezpieczających"]
[null,"B3PHI11_1",null,{"$f":"B618","v":"B3PHI11_1"},null,null,null,null,"Wobec jednostek podporządkowanych"]
[null,"B3PHI11_2",null,"B3PHI11_2",null,null,null,null,"Wobec pozostałych jednostek"]
[null,null,null,null,null,null,null,"Zobowiązania wobec pośredników ubezpieczeniowych"]
[null,"B3PHI22_1",null,"B3PHI22_1",null,null,null,null,"Wobec jednostek podporządkowanych"]
[null,"B3PHI22_2",null,"B3PHI22_2",null,null,null,null,"Wobec pozostałych jednostek"]
[null,null,null,null,null,null,null,"Inne zobowiązania z tytułu ubezpieczeń"]
[null,"B3PHI33_1",null,"B3PHI33_1",null,null,null,null,"Wobec jednostek podporządkowanych"]
[null,"B3PHI33_2",null,"B3PHI33_2",null,null,null,null,"Wobec pozostałych jednostek"]
[null,null,null,null,null,null,"Zobowiązania z tytułu reasekuracji"]
[null,"B3PHII1",null,"B3PHII1",null,null,null,"Wobec jednostek podporządkowanych"]
[null,"B3PHII2",null,"B3PHII2",null,null,null,"Wobec pozostałych jednostek"]
[null,null,null,null,null,null,"Zobowiązania z tytułu emisji własnych dłużnych papierów wartościowych oraz pobranych pożyczek"]
[null,"B3PHIII1",null,"B3PHIII1",null,null,null,"Zobowiązania zamienne na akcje zakładu ubezpieczeń"]
[null,"B3PHIII2",null,"B3PHIII2",null,null,null,"Pozostałe"]
[null,"B3PHIV",null,"B3PHIV",null,null,"Zobowiązania wobec instytucji kredytowych"]
[null,null,null,null,null,null,"Inne zobowiązania"]
[null,"B3PHV1",null,"B3PHV1",null,null,null,"Zobowiązania wobec budżetu"]
[null,null,null,null,null,null,null,"Pozostałe zobowiązania"]
[null,"B3PHV22_1",null,"B3PHV22_1",null,null,null,null,"Wobec jednostek podporządkowanych"]
[null,"B3PHV22_2",null,"B3PHV22_2",null,null,null,null,"Wobec pozostałych jednostek"]
[null,"B3PHVI",null,"B3PHVI",null,null,"Fundusze specjalne"]
[null,null,null,null,null,"Rozliczenia międzyokresowe"]
[null,"B3PI1",null,"B3PI1",null,null,"Rozliczenia międzyokresowe kosztów"]
[null,"B3PI2",null,"B3PI2",null,null,"Ujemna wartość firmy"]
[null,"B3PI3",null,"B3PI3",null,null,"Przychody przyszłych okresów"]
[null,null,null,null,"WYNIKOWE"]
[null,null,null,null,null,"Ogólny rachunek zysków i strat"]
[null,null,null,null,null,null,"Przychody z lokat"]
[null,"R3OII1",null,"R3OII1",null,null,null,"Przychody z lokat w nieruchomości"]
[null,null,null,null,null,null,null,"Przychody z lokat w jednostkach podporządkowanych"]
[null,"R3OII22_1",null,"R3OII22_1",null,null,null,null,"Z udziałów i akcji"]
[null,"R3OII22_2",null,"R3OII22_2",null,null,null,null,"Z pożyczek i dłużnych papierów wartościowych"]
[null,"R3OII22_3",null,"R3OII22_3",null,null,null,null,"Z pozostałych lokat"]
[null,null,null,null,null,null,null,"Przychody z innych lokat finansowych"]
[null,"R3OII33_1",null,"R3OII33_1",null,null,null,null,"Z udziałów, akcji, innych papierów wartościowych o zmiennej kwocie dochodu oraz jednostek uczestnictwa i certyfikatów inwestycyjnych w funduszach inwestycyjnych,"]
[null,"R3OII33_2",null,"R3OII33_2",null,null,null,null,"Z dłużnych papierów wartościowych oraz innych papierów wartościowych o stałej kwocie dochodu"]
[null,"R3OII33_3",null,"R3OII33_3",null,null,null,null,"Z lokat terminowych w instytucjach kredytowych"]
[null,"R3OII33_4",null,"R3OII33_4",null,null,null,null,"Z pozostałych lokat"]
[null,null,null,null,null,null,null,"Wynik dodatni z rewaloryzacji lokat"]
[null,"R3OII_4",null,"R3OII_4",null,null,null,null,"Przychody z rewaloryzacji lokat"]
[null,null,null,null,null,null,null,"Wynik dodatni z realizacji lokat"]
[null,"R3OII_5",null,"R3OII_5",null,null,null,null,"Przychody z realizacji lokat"]
[null,"R3OIII",null,"R3OIII",null,null,"Niezrealizowane zyski z lokat"]
[null,null,null,null,null,null,"Przychody z lokat netto po uwzględnieniu kosztów, przeniesione z technicznego rachunku ubezpieczeń na życie"]
[null,"R3OIV_1",null,"R3OIV_1",null,null,null,"Przychody z łącznego inwestowania przypadające na część techniczną ubezpieczeń na życie (przeniesione z technicznego rachunku ubezpieczeń na życie)"]
[null,"R3OIV_2",null,"R3OIV_2",null,null,null,"Koszty z łącznego inwestowania przypadające na część techniczną ubezpieczeń na życie (przeniesione z technicznego rachunku ubezpieczeń na życie)"]
[null,null,null,null,null,null,"Koszty działalności lokacyjnej"]
[null,"R3OV1",null,"R3OV1",null,null,null,"Koszty utrzymania nieruchomości"]
[null,"R3OV2",null,"R3OV2",null,null,null,"Pozostałe koszty działalności lokacyjnej"]
[null,null,null,null,null,null,null,"Wynik ujemny z rewaloryzacji lokat"]
[null,"R3OV3",null,"R3OV3",null,null,null,null,"Koszt własny rewaloryzacji lokat"]
[null,null,null,null,null,null,null,"Wynik ujemny z realizacji lokat"]
[null,"R3OV4",null,"R3OV4",null,null,null,null,"Koszt własny realizacji lokat"]
[null,"R3OVI",null,"R3OVI",null,null,"Niezrealizowane straty na lokatach"]
[null,"R3OVIII",null,"R3OVIII",null,null,"Pozostałe przychody operacyjne"]
[null,"R3OIX",null,"R3OIX",null,null,"Pozostałe koszty operacyjne"]
[null,"R3OXI",null,"R3OXI",null,null,"Zyski nadzwyczajne"]
[null,"R3OXII",null,"R3OXII",null,null,"Straty nadzwyczajne"]
[null,"R3OXIV",null,"R3OXIV",null,null,"Podatek dochodowy"]
[null,"R3OXV",null,"R3OXV",null,null,"Pozostałe obowiązkowe zmniejszenia zysku (zwiększenia straty)"]
[null,null,null,null,null,"Techniczny rachunek ubezpieczeń majątkowych i osobowych"]
[null,null,null,null,null,null,"Składki"]
[null,"R3MI1",null,"R3MI1",null,null,null,"Składki przypisane brutto"]
[null,"R3MI2",null,"R3MI2",null,null,null,"Udział reasekuratorów w składce przypisanej"]
[null,"R3MI3",null,{"$f":"B682","v":"R3MI3"},null,null,null,"Zmiana stanu rezerw składek i rezerwy na ryzyko niewygasłe brutto"]
[null,"R3MI4",null,"R3MI4",null,null,null,"Udział reasekuratorów w zmianie stanu rezerw składek"]
[null,null,null,null,null,null,"Przychody z lokat netto po uwzględnieniu kosztów, przeniesione z ogólnego rachunku zysków i strat"]
[null,"R3MII1",null,"R3MII1",null,null,null,"Przychody z łącznego inwestowania przypadające na część techniczną ubezpieczeń majątkowych i osobowych"]
[null,"R3MII2",null,"R3MII2",null,null,null,"Koszty z łącznego inwestowania przypadające na część techniczną ubezpieczeń majątkowych i osobowych"]
[null,"R3MIII",null,"R3MIII",null,null,"Pozostałe przychody techniczne na udziale własnym"]
[null,null,null,null,null,null,"Odszkodowania i świadczenia"]
[null,null,null,null,null,null,null,"Odszkodowania i świadczenia wypłacone na udziale własnym"]
[null,"R3MIV11_1",null,"R3MIV11_1",null,null,null,null,"Odszkodowania i świadczenia wypłacone brutto"]
[null,"R3MIV11_2",null,"R3MIV11_2",null,null,null,null,"Udział reasekuratorów w odszkodowaniach i świadczeniach wypłaconych"]
[null,null,null,null,null,null,null,"Zmiana stanu rezerwy na niewypłacone odszkodowania i świadczenia na udziale własnym"]
[null,"R3MIV22_1",null,"R3MIV22_1",null,null,null,null,"Zmiana stanu rezerw na niewypłacone odszkodowania i świadczenia brutto"]
[null,"R3MIV22_2",null,"R3MIV22_2",null,null,null,null,"Udział reasekuratorów w zmianie stanu rezerw na niewypłacone odszkodowania i świadczenia"]
[null,null,null,null,null,null,"Zmiany stanu pozostałych rezerw techniczno-ubezpieczeniowych na udziale własnym"]
[null,"R3MV1",null,"R3MV1",null,null,null,"Zmiany stanu pozostałych rezerw techniczno-ubezpieczeniowych brutto"]
[null,"R3MV2",null,"R3MV2",null,null,null,"Udział reasekuratorów w zmianie stanu pozostałych rezerw techniczno-ubezpieczeniowych"]
[null,"R3MVI",null,"R3MVI",null,null,"Premie i rabaty na udziale własnym łącznie ze zmianą stanu rezerw"]
[null,null,null,null,null,null,"Koszty działalności ubezpieczeniowej"]
[null,null,null,null,null,null,null,"Koszty akwizycji"]
[null,"R3MVII11_1",null,"R3MVII11_1",null,null,null,null,"Zmiana stanu aktywowanych kosztów akwizycji"]
[null,"R3MVII11_2",null,"R3MVII11_2",null,null,null,null,"Koszty akwizycji poniesione w okresie sprawozdawczym"]
[null,"R3MVII2",null,"R3MVII2",null,null,null,"Koszty administracyjne"]
[null,"R3MVII3",null,"R3MVII3",null,null,null,"Prowizje reasekuracyjne i udział w zyskach reasekuratorów"]
[null,"R3MVIII",null,"R3MVIII",null,null,"Pozostałe koszty techniczne na udziale własnym"]
[null,"R3MIX",null,"R3MIX",null,null,"Zmiany stanu rezerw na wyrównanie szkodowości (ryzyka)"]
[null,null,null,null,null,"Techniczny rachunek ubezpieczeń na życie"]
[null,null,null,null,null,null,"Składki"]
[null,"R3ZI1",null,"R3ZI1",null,null,null,"Składki przypisane brutto"]
[null,"R3ZI2",null,"R3ZI2",null,null,null,"Udział reasekuratorów w składce przypisanej brutto"]
[null,"R3ZI3",null,"R3ZI3",null,null,null,"Zmiana stanu rezerw składek i na ryzyko niewygasłe brutto"]
[null,"R3ZI4",null,"R3ZI4",null,null,null,"Udział reasekuratorów w zmianie stanu rezerw składek"]
[null,null,null,null,null,null,"Przychody z lokat"]
[null,"R3ZII1",null,"R3ZII1",null,null,null,"Przychody z lokat w nieruchomości"]
[null,null,null,null,null,null,null,"Przychody z lokat w jednostkach podporządkowanych"]
[null,"R3ZII22_1",null,"R3ZII22_1",null,null,null,null,"Z udziałów lub akcji"]
[null,"R3ZII22_2",null,"R3ZII22_2",null,null,null,null,"Z pożyczek i dłużnych papierów wartościowych"]
[null,"R3ZII22_3",null,"R3ZII22_3",null,null,null,null,"Z pozostałych lokat"]
[null,null,null,null,null,null,null,"Przychody z innych lokat finansowych"]
[null,"R3ZII33_1",null,"R3ZII33_1",null,null,null,null,"Z udziałów, akcji, innych papierów wartościowych o zmiennej kwocie dochodu oraz jednostek uczestnictwa i certyfikatów inwestycyjnych w funduszach inwestycyjnych"]
[null,"R3ZII33_2",null,"R3ZII33_2",null,null,null,null,"Z dłużnych papierów wartościowych oraz innych papierów wartościowych o stałej kwocie dochodu"]
[null,"R3ZII33_3",null,"R3ZII33_3",null,null,null,null,"Z lokat terminowych w instytucjach kredytowych"]
[null,"R3ZII33_4",null,"R3ZII33_4",null,null,null,null,"Z pozostałych lokat"]
[null,null,null,null,null,null,null,"Wynik dodatni z rewaloryzacji lokat"]
[null,"R3ZII4",null,"R3ZII4",null,null,null,null,"Przychody z rewaloryzacji lokat"]
[null,null,null,null,null,null,null,"Wynik dodatni z realizacji lokat"]
[null,"R3ZII5",null,"R3ZII5",null,null,null,null,"Przychody z realizacji lokat"]
[null,"R3ZIII",null,"R3ZIII",null,null,"Niezrealizowane zyski z lokat"]
[null,"R3ZIV",null,"R3ZIV",null,null,"Pozostałe przychody techniczne na udziale własnym"]
[null,"R3ZV",null,"R3ZV",null,null,"Odszkodowania i świadczenia"]
[null,null,null,null,null,null,null,"Odszkodowania i świadczenia wypłacone na udziale własnym"]
[null,"R3ZV11_1",null,"R3ZV11_1",null,null,null,null,"Odszkodowania i świadczenia wypłacone brutto"]
[null,"R3ZV11_2",null,"R3ZV11_2",null,null,null,null,"Udział reasekuratorów w odszkodowaniach i świadczeniach wypłaconych"]
[null,null,null,null,null,null,null,"Zmiana stanu rezerw na niewypłacone odszkodowania i świadczenia na udziale własnym"]
[null,"R3ZV22_1",null,"R3ZV22_1",null,null,null,null,"Rezerwy brutto"]
[null,"R3ZV22_2",null,"R3ZV22_2",null,null,null,null,"Udział reasekuratorów"]
[null,null,null,null,null,null,"Zmiany stanu innych rezerw techniczno-ubezpieczeniowych na udziale własnym"]
[null,null,null,null,null,null,null,"Zmiana stanu rezerw w ubezpieczeniach na życie na udziale własnym"]
[null,"R3ZVI11_1",null,"R3ZVI11_1",null,null,null,null,"Rezerw brutto"]
[null,"R3ZVI11_2",null,"R3ZVI11_2",null,null,null,null,"Na udziale reasekuratorów"]
[null,null,null,null,null,null,null,"Zmiana stanu rezerw techniczno-ubezpieczeniowych na udziale własnym dla ubezpieczeń na życie, jeżeli ryzyko lokaty ponosi ubezpieczający"]
[null,"R3ZVI22_1",null,"R3ZVI22_1",null,null,null,null,"Rezerw brutto"]
[null,"R3ZVI22_2",null,"R3ZVI22_2",null,null,null,null,"Na udziale reasekuratorów"]
[null,null,null,null,null,null,null,"Zmiana stanu pozostałych rezerw techniczno-ubezpieczeniowych przewidzianych w statucie na udziale własnym"]
[null,"R3ZVI33_1",null,"R3ZVI33_1",null,null,null,null,"Rezerw brutto"]
[null,"R3ZVI33_2",null,{"$f":"B746","v":"R3ZVI33_2"},null,null,null,null,"Na udziale reasekuratorów"]
[null,"R3ZVII",null,"R3ZVII",null,null,"Premie i rabaty łącznie ze zmianą stanu rezerw na udziale własnym"]
[null,null,null,null,null,null,"Koszty działalności ubezpieczeniowej"]
[null,null,null,null,null,null,null,"Koszty akwizycji"]
[null,"R3ZVIII11_1",null,"R3ZVIII11_1",null,null,null,null,"Zmiana stanu aktywowanych kosztów akwizycji"]
[null,"R3ZVIII11_2",null,"R3ZVIII11_2",null,null,null,null,"Koszty akwizycji poniesione w okresie sprawozdawczym"]
[null,"R3ZVIII2",null,"R3ZVIII2",null,null,null,"Koszty administracyjne"]
[null,"R3ZVIII3",null,"R3ZVIII3",null,null,null,"Prowizje reasekuracyjne i udziały w zyskach"]
[null,null,null,null,null,null,"Koszty działalności lokacyjnej"]
[null,"R3ZIX1",null,"R3ZIX1",null,null,null,"Koszty utrzymania nieruchomości"]
[null,"R3ZIX2",null,"R3ZIX2",null,null,null,"Pozostałe koszty działalności lokacyjnej"]
[null,null,null,null,null,null,null,"Wynik ujemny z rewaloryzacji lokat"]
[null,"R3ZIX3",null,"R3ZIX3",null,null,null,null,"Koszt własny z rewaloryzacji lokat"]
[null,null,null,null,null,null,null,"Wynik ujemny z realizacji lokat"]
[null,"R3ZIX4",null,"R3ZIX4",null,null,null,null,"Koszt własny z realizacji lokat"]
[null,"R3ZX",null,"R3ZX",null,null,"Niezrealizowane straty na lokatach"]
[null,"R3ZXI",null,"R3ZXI",null,null,"Pozostałe koszty techniczne na udziale własnym"]
[null,"R3ZXII",null,"R3ZXII",null,null,"Przychody z lokat netto po uwzględnieniu kosztów, przeniesione do ogólnego rachunku zysków i strat"]
[null,"INNE",null,"INNE","Inne, niewskazane w słowniku"]
[]
[3,null,"dla:",{"$f":"VLOOKUP(A766,WariantyZOiS,2,FALSE)","v":"organizacji pożytku publicznego i wolontariatu"}]
[]
[null,null,null,null,"AKTYWA"]
[null,null,null,null,null,"Aktywa trwałe"]
[null,"B6AAI1_W",null,{"$f":"B770","v":"B6AAI1_W"},null,null,"Wartości niematerialne i prawne"]
[null,"B6AAI1_A",null,"B6AAI1_A",null,null,null,"Odpisy aktualizujące wartości niematerialne i prawne"]
[null,"B6AAI1_U",null,"B6AAI1_U",null,null,null,"Umorzenie wartości niematerialnych i prawnych"]
[null,null,null,null,null,null,"Rzeczowe aktywa trwałe"]
[null,null,null,null,null,null,null,"Środki trwałe"]
[null,"B6AAII1a_W",null,"B6AAII1a_W",null,null,null,null,"Grunty (w tym prawo użytkowania wieczystego gruntu)"]
[null,"B6AAII1a_A",null,"B6AAII1a_A",null,null,null,null,null,"Odpisy aktualizujące wartość gruntów (w tym prawa użytkowania wieczystego gruntu)"]
[null,"B6AAII1b_W",null,"B6AAII1b_W",null,null,null,null,"Budynki, lokale i obiekty inżynierii lądowej i wodnej"]
[null,"B6AAII1b_A",null,"B6AAII1b_A",null,null,null,null,null,"Odpisy aktualizujące wartość budynków, lokali i obiektów inżynierii lądowej i wodnej"]
[null,"B6AAII1b_U",null,"B6AAII1b_U",null,null,null,null,null,"Umorzenie budynków, lokali i obiektów inżynierii lądowej i wodnej"]
[null,"B6AAII1c_W",null,"B6AAII1c_W",null,null,null,null,"Urządzenia techniczne i maszyny"]
[null,"B6AAII1c_A",null,"B6AAII1c_A",null,null,null,null,null,"Odpisy aktualizujące wartość urządzeń technicznych i maszyn"]
[null,"B6AAII1c_U",null,"B6AAII1c_U",null,null,null,null,null,"Umorzenie urządzeń technicznych i maszyn"]
[null,"B6AAII1d_W",null,"B6AAII1d_W",null,null,null,null,"Środki transportu"]
[null,"B6AAII1d_A",null,"B6AAII1d_A",null,null,null,null,null,"Odpisy aktualizujące wartość środków transportu"]
[null,"B6AAII1d_U",null,"B6AAII1d_U",null,null,null,null,null,"Umorzenie środków transportu"]
[null,"B6AAII1e_W",null,"B6AAII1e_W",null,null,null,null,"Inne środki trwałe"]
[null,"B6AAII1e_A",null,"B6AAII1e_A",null,null,null,null,null,"Odpisy aktualizujące wartość innych środków trwałych"]
[null,"B6AAII1e_U",null,"B6AAII1e_U",null,null,null,null,null,"Umorzenie innych środków trwałych"]
[null,"B6AAII2_W",null,"B6AAII2_W",null,null,null,"Środki trwałe w budowie"]
[null,"B6AAII2_A",null,"B6AAII2_A",null,null,null,null,"Odpisy aktualizujące wartość środków trwałych w budowie"]
[null,"B6AAII3_W",null,"B6AAII3_W",null,null,null,"Zaliczki na środki trwałe w budowie"]
[null,"B6AAII3_A",null,"B6AAII3_A",null,null,null,null,"Odpisy aktualizujące zaliczki na środki trwałe w budowie"]
[null,"B6AAIII_W",null,"B6AAIII_W",null,null,"Należności długoterminowe"]
[null,"B6AAIII_A",null,"B6AAIII_A",null,null,null,"Odpisy aktualizujące wartość należności długoterminowych"]
[null,null,null,null,null,null,"Inwestycje długoterminowe"]
[null,"B6AAIV1_W",null,"B6AAIV1_W",null,null,null,"Inwestycje w nieruchomości"]
[null,"B6AAIV1_A",null,"B6AAIV1_A",null,null,null,null,"Odpisy aktualizujące wartość inwestycji w nieruchomości"]
[null,"B6AAIV1_U",null,"B6AAIV1_U",null,null,null,null,"Umorzenie inwestycji w nieruchomości"]
[null,"B6AAIV2_W",null,"B6AAIV2_W",null,null,null,"Wartości niematerialne i prawne"]
[null,"B6AAIV2_A",null,"B6AAIV2_A",null,null,null,null,"Odpisy aktualizujące wartość inwestycji w wartości niematerialne i prawne"]
[null,"B6AAIV2_U",null,"B6AAIV2_U",null,null,null,null,"Umorzenie wartości inwestycji w wartości niematerialne i prawne"]
[null,null,null,null,null,null,null,"Długoterminowe aktywa finansowe"]
[null,"B6AAIV3_uia_W",null,"B6AAIV3_uia_W",null,null,null,null,"Udziały lub akcje"]
[null,"B6AAIV3_uia_A",null,"B6AAIV3_uia_A",null,null,null,null,null,"Odpisy aktualizujące wartość udziałów lub akcji"]
[null,"B6AAIV3_ipw_W",null,"B6AAIV3_ipw_W",null,null,null,null,"Inne papiery wartościowe"]
[null,"B6AAIV3_ipw_A",null,"B6AAIV3_ipw_A",null,null,null,null,null,"Odpisy aktualizujące wartość innych papierów wartościowych"]
[null,"B6AAIV3_up_W",null,"B6AAIV3_up_W",null,null,null,null,"Udzielone pożyczki"]
[null,"B6AAIV3_up_A",null,"B6AAIV3_up_A",null,null,null,null,null,"Odpisy aktualizujące wartość udzielonych pożyczek"]
[null,"B6AAIV3_inne_W",null,"B6AAIV3_inne_W",null,null,null,null,"Inne długoterminowe aktywa finansowe"]
[null,"B6AAIV3_inne_A",null,"B6AAIV3_inne_A",null,null,null,null,null,"Odpisy aktualizujące wartość innych długoterminowych aktywów finansowych"]
[null,"B6AAIV4_W",null,"B6AAIV4_W",null,null,null,"Inne inwestycje długoterminowe"]
[null,"B6AAIV4_A",null,"B6AAIV4_A",null,null,null,null,"Odpisy aktualizujące wartość innych inwestycji długoterminowych"]
[null,"B6AAV_W",null,"B6AAV_W",null,null,"Długoterminowe rozliczenia międzyokresowe"]
[null,"B6AAV_A",null,"B6AAV_A",null,null,null,"Odpisy aktualizujące wartość innych rozliczeń międzyokresowych"]
[null,null,null,null,null,"Aktywa obrotowe"]
[null,null,null,null,null,null,"Zapasy"]
[null,"B6ABI1_W",null,"B6ABI1_W",null,null,null,"Materiały"]
[null,"B6ABI1_OCE",null,"B6ABI1_OCE",null,null,null,null,"Odchylenia od cen ewidencyjnych materiałów"]
[null,"B6ABI1_A",null,"B6ABI1_A",null,null,null,null,"Odpisy aktualizujące wartość materiałów"]
[null,"B6ABI2_W",null,"B6ABI2_W",null,null,null,"Pozostałe"]
[null,"B6ABI2_OCE",null,"B6ABI2_OCE",null,null,null,null,"Odchylenia od cen ewidencyjnych pozostałych zapasów"]
[null,"B6ABI_A",null,"B6ABI_A",null,null,null,null,"Odpisy aktualizujące wartość pozostałych zapasów"]
[null,"B6ABI3_W",null,"B6ABI3_W",null,null,null,"Zaliczki na dostawy i usługi"]
[null,"B6ABI3_A",null,"B6ABI3_A",null,null,null,null,"Odpisy aktualizujące zaliczki na dostawy i usługi"]
[null,"B6ABII_W",null,"B6ABII_W",null,null,"Należności krótkoterminowe"]
[null,"B6ABII_A",null,"B6ABII_A",null,null,null,"Odpisy aktualizujące wartość należności krótkoterminowych"]
[null,null,null,null,null,null,"Inwestycje krótkoterminowe"]
[null,"B6ABIII_uia_W",null,"B6ABIII_uia_W",null,null,null,"Udziały lub akcje"]
[null,"B6ABIII_uia_A",null,"B6ABIII_uia_A",null,null,null,null,"Odpisy aktualizujące wartość udziałów lub akcji"]
[null,"B6ABIII_ipw_W",null,"B6ABIII_ipw_W",null,null,null,"Inne papiery wartościowe"]
[null,"B6ABIII_ipw_A",null,"B6ABIII_ipw_A",null,null,null,null,"Odpisy aktualizujące wartość innych papierów wartościowych"]
[null,"B6ABIII_up_W",null,{"$f":"B832","v":"B6ABIII_up_W"},null,null,null,"Udzielone pożyczki"]
[null,"B6ABIII_up_A",null,"B6ABIII_up_A",null,null,null,null,"Odpisy aktualizujące wartość udzielonych pożyczek"]
[null,"B6ABIII_inne_W",null,"B6ABIII_inne_W",null,null,null,"Inne krótkoterminowe aktywa finansowe"]
[null,"B6ABIII_inne_A",null,"B6ABIII_inne_A",null,null,null,null,"Odpisy aktualizujące wartość innych krótkoterminowych aktywów finansowych"]
[null,"B6ABIV_W",null,"B6ABIV_W",null,null,"Krótkoterminowe rozliczenia międzyokresowe"]
[null,"B6ABIV_A",null,"B6ABIV_A",null,null,null,"Odpisy aktualizujące wartość krótkoterminowych rozliczeń międzyokresowych"]
[null,"B6AC",null,"B6AC",null,"Należne wpłaty na fundusz statutowy"]
[null,null,null,null,"PASYWA"]
[null,null,null,null,null,"Fundusz własny"]
[null,"B6PAI",null,"B6PAI",null,null,"Fundusz statutowy"]
[null,"B6PAII",null,"B6PAII",null,null,"Pozostałe fundusze"]
[null,"B6PAIII",null,"B6PAIII",null,null,"Zysk (strata) z lat ubiegłych"]
[null,"B6PAIV",null,"B6PAIV",null,null,"Zysk (strata) netto"]
[null,null,null,null,null,"Zobowiązania i rezerwy na zobowiązania"]
[null,"B6PBI",null,"B6PBI",null,null,"Rezerwy na zobowiązania"]
[null,"B6PBII",null,"B6PBII",null,null,"Zobowiązania długoterminowe"]
[null,"B6PBIII",null,"B6PBIII",null,null,"Zobowiązania krótkoterminowe"]
[null,"B6PBIV",null,"B6PBIV",null,null,"Rozliczenia międzyokresowe"]
[null,null,null,null,"WYNIKOWE"]
[null,null,null,null,null,"Przychody z działalności statutowej"]
[null,null,null,null,null,null,"Przychody z nieodpłatnej działalności pożytku publicznego"]
[null,null,null,null,null,null,null,"Darowizny"]
[null,"R6AI_darowizny_PRYW",null,"R6AI_darowizny_PRYW",null,null,null,null,"Ze źródeł prywatnych"]
[null,"R6AI_darowizny_PUBL",null,"R6AI_darowizny_PUBL",null,null,null,null,"Ze źródeł publicznych"]
[null,"R6AI_dotacje",null,"R6AI_dotacje",null,null,null,"Dotacje"]
[null,"R6AI_subwencje",null,"R6AI_subwencje",null,null,null,"Subwencje"]
[null,"R6AI_ofiarnosc",null,"R6AI_ofiarnosc",null,null,null,"Przychody pochodzące z ofiarności publicznej"]
[null,"R6AI_poddoch",null,"R6AI_poddoch",null,null,null,"Przychody z tytułu % podatku dochodowego od osób fizycznych"]
[null,"R6AI_SZ",null,"R6AI_SZ",null,null,null,"Spadki, zapisy"]
[null,null,null,null,null,null,null,"Pozostałe"]
[null,"R6AI_inne_PRYW",null,"R6AI_inne_PRYW",null,null,null,null,"Ze źródeł prywatnych"]
[null,"R6AI_inne_PUBL",null,"R6AI_inne_PUBL",null,null,null,null,"Ze źródeł publicznych"]
[null,null,null,null,null,null,"Przychody z odpłatnej działalności pożytku publicznego"]
[null,"R6AII_sprzedaz",null,"R6AII_sprzedaz",null,null,null,"Przychody netto ze sprzedaży produktów, towarów i materiałów"]
[null,"R6AII_inne",null,"R6AII_inne",null,null,null,"Pozostałe"]
[null,null,null,null,null,null,"Przychody z pozostałej działalności statutowej"]
[null,"R6AIII_skladki",null,"R6AIII_skladki",null,null,null,"Składki członkowskie"]
[null,"R6AIII_inne",null,"R6AIII_inne",null,null,null,"Pozostałe"]
[null,null,null,null,null,"Koszty działalności statutowej"]
[null,"R6BI_poddoch",null,"R6BI_poddoch",null,null,"Koszty nieodpłatnej działalności pożytku publicznego"]
[null,"R6BII_poddoch",null,"R6BII_poddoch",null,null,"Koszty odpłatnej działalności pożytku publicznego"]
[null,"R6BIII",null,"R6BIII",null,null,"Koszty pozostałej działalności statutowej"]
[null,null,null,null,null,"Przychody z działalności gospodarczej"]
[null,"R6DI",null,"R6DI",null,null,"Przychody netto ze sprzedaży produktów, towarów i materiałów"]
[null,null,null,null,null,"Koszty działalności gospodarczej"]
[null,"R6EI",null,"R6EI",null,null,"Koszt sprzedanych produktów, towarów i materiałów"]
[null,"R6G",null,"R6G",null,"Koszty ogólnego zarządu"]
[null,null,null,null,null,"Pozostałe przychody operacyjne"]
[null,"R6I",null,"R6I",null,null,"Przychody z tytułu rozchodu niefinansowych aktywów trwałych"]
[null,"R6II",null,"R6II",null,null,"Dotacje"]
[null,"R6III",null,"R6III",null,null,"Aktualizacja wartości aktywów niefinansowych"]
[null,"R6IV",null,"R6IV",null,null,"Inne przychody operacyjne"]
[null,null,null,null,null,"Pozostałe koszty operacyjne"]
[null,"R6JI",null,"R6JI",null,null,"Koszty z tytułu rozchodu niefinansowych aktywów trwałych"]
[null,"R6JII",null,"R6JII",null,null,"Aktualizacja wartości aktywów niefinansowych"]
[null,"R6JIII",null,"R6JIII",null,null,"Inne koszty operacyjne"]
[null,null,null,null,null,"Przychody finansowe"]
[null,"R6KI",null,"R6KI",null,null,"Dywidendy i udziały w zyskach"]
[null,"R6KII",null,"R6KII",null,null,"Odsetki"]
[null,"R6KIII",null,"R6KIII",null,null,"Przychód z tytułu rozchodu aktywów finansowych"]
[null,"R6KIV",null,"R6KIV",null,null,"Aktualizacja wartości aktywów finansowych"]
[null,null,null,null,null,null,"Inne"]
[null,"R6KVI_RK",null,"R6KVI_RK",null,null,null,"Przychody z tytułu dodatnich różnic kursowych"]
[null,"R6KVI_POZ",null,"R6KVI_POZ",null,null,null,"Pozostałe"]
[null,null,null,null,null,"Koszty finansowe"]
[null,"R6LI",null,{"$f":"B897","v":"R6LI"},null,null,"Odsetki"]
[null,"R6LII",null,"R6LII",null,null,"Koszty z tytułu rozchodu aktywów finansowych"]
[null,"R6LIII",null,"R6LIII",null,null,"Aktualizacja wartości inwestycji"]
[null,null,null,null,null,null,"Inne"]
[null,"R6LV_RK",null,"R6LV_RK",null,null,null,"Koszty z tytułu ujemnych różnic kursowych"]
[null,"R6LV_POZ",null,"R6LV_POZ",null,null,null,"Pozostałe"]
[null,"R6N",null,"R6N",null,"Podatek dochodowy"]
[null,"INNE",null,"INNE","Inne, niewskazane w słowniku"]
[]
[4,null,"dla:",{"$f":"VLOOKUP(A906,WariantyZOiS,2,FALSE)","v":"funduszy inwestycyjnych"}]
[]
[null,null,null,null,"BILANS"]
[null,null,null,null,null,"Aktywa"]
[null,"BFI_I1",null,{"$f":"B910","v":"BFI_I1"},null,null,"Środki pieniężne i ich ekwiwalenty"]
[null,"BFI_I2",null,"BFI_I2",null,null,"Należności"]
[null,"BFI_I3",null,"BFI_I3",null,null,"Transakcje reverse repo / buy-sell back"]
[null,"BFI_I4",null,"BFI_I4",null,null,"Składniki lokat notowane na aktywnym rynku"]
[null,"BFI_I5",null,"BFI_I5",null,null,"Składniki lokat nienotowane na aktywnym rynku"]
[null,"BFI_I7",null,"BFI_I7",null,null,"Pozostałe aktywa"]
[null,"BFI_II",null,"BFI_II",null,"Zobowiązania"]
[null,null,null,null,null,"Kapitał funduszu"]
[null,null,null,null,null,null,"Kapitał wpłacony"]
[null,"BFI_IV1A",null,"BFI_IV1A",null,null,null,"Certyfikaty inwestycyjne nie w pełni opłacone"]
[null,"BFI_IV1B",null,"BFI_IV1B",null,null,null,"Pozostałe"]
[null,"BFI_IV2",null,"BFI_IV2",null,null,"Kapitał wypłacony (wielkość ujemna)"]
[null,null,null,null,null,"Dochody zatrzymane"]
[null,"BFI_V1",null,"BFI_V1",null,null,"Zakumulowane, nierozdysponowane przychody z lokat netto"]
[null,"BFI_V2",null,"BFI_V2",null,null,"Zakumulowany, nierozdysponowany zrealizowany zysk (strata) ze zbycia lokat"]
[null,"BFI_VI",null,"BFI_VI",null,"Wzrost (spadek) wartości lokat w odniesieniu do ceny nabycia"]
[null,null,null,null,"RW"]
[null,null,null,null,null,"Przychody z lokat"]
[null,"RFI_I1",null,"RFI_I1",null,null,"Dywidendy i inne udziały w zyskach"]
[null,"RFI_I2",null,"RFI_I2",null,null,"Przychody odsetkowe"]
[null,"RFI_I3",null,"RFI_I3",null,null,"Przychody związane z posiadaniem nieruchomości"]
[null,"RFI_I4",null,"RFI_I4",null,null,"Dodatnie różnice kursowe"]
[null,"RFI_I5",null,"RFI_I5",null,null,"Pozostałe"]
[null,null,null,null,null,"Koszty funduszu"]
[null,null,null,null,null,null,"Wynagrodzenie dla towarzystwa"]
[null,"RFI_II1A",null,"RFI_II1A",null,null,null,"Stała część wynagrodzenia"]
[null,"RFI_II1B",null,"RFI_II1B",null,null,null,"Zmienna część wynagrodzenia"]
[null,"RFI_II2",null,"RFI_II2",null,null,"Wynagrodzenia dla podmiotów prowadzących dystrybucję"]
[null,"RFI_II3",null,"RFI_II3",null,null,"Opłaty dla depozytariusza"]
[null,"RFI_II4",null,"RFI_II4",null,null,"Opłaty związane z prowadzeniem rejestru aktywów funduszu"]
[null,"RFI_II5",null,"RFI_II5",null,null,"Opłaty za zezwolenia oraz opłaty rejestracyjne"]
[null,"RFI_II6",null,"RFI_II6",null,null,"Usługi w zakresie rachunkowości"]
[null,"RFI_II7",null,"RFI_II7",null,null,"Usługi w zakresie zarządzania aktywami funduszu"]
[null,"RFI_II8",null,"RFI_II8",null,null,"Usługi prawne"]
[null,"RFI_II9",null,"RFI_II9",null,null,"Usługi wydawnicze, w tym poligraficzne"]
[null,"RFI_II10",null,"RFI_II10",null,null,"Koszty odsetkowe"]
[null,"RFI_II11",null,"RFI_II11",null,null,"Koszty związane z posiadaniem nieruchomości"]
[null,"RFI_II12",null,"RFI_II12",null,null,"Ujemne różnice kursowe"]
[null,"RFI_II13",null,"RFI_II13",null,null,"Pozostałe"]
[null,"RFI_III",null,"RFI_III",null,"Koszty pokrywane przez towarzystwo"]
[null,null,null,null,null,"Zrealizowany i niezrealizowany zysk (strata)"]
[null,"RFI_VI1A",null,"RFI_VI1A",null,null,"Przychody ze zbycia lokat"]
[null,"RFI_VI1B",null,"RFI_VI1B",null,null,"Koszty zbycia lokat"]
[null,null,null,null,null,null,"Wzrost (spadek) niezrealizowanego zysku (straty) z wyceny lokat"]
[null,"RFI_VI2A",null,"RFI_VI2A",null,null,null,"Z tytułu różnic kursowych"]
[null,"RFI_VI2B",null,"RFI_VI2B",null,null,null,"Pozostałe"]
[null,"RFI_PD",null,"RFI_PD",null,"Podatek dochodowy"]
[null,"INNE",null,"INNE","Inne, niewskazane w słowniku"]
[]
[]
[5,null,"dla:",{"$f":"VLOOKUP(A960,WariantyZOiS,2,FALSE)","v":"domów maklerskich"}]
[]
[null,null,null,null,"AKTYWA"]
[null,null,null,null,null,"Środki pieniężne i inne aktywa pieniężne"]
[null,"BDMA_I1",null,{"$f":"B964","v":"BDMA_I1"},null,null,"W kasie"]
[null,"BDMA_I2",null,"BDMA_I2",null,null,"Na rachunkach bankowych"]
[null,"BDMA_I3",null,"BDMA_I3",null,null,"Inne środki pieniężne"]
[null,"BDMA_I4",null,"BDMA_I4",null,null,"Inne aktywa pieniężne"]
[null,null,null,null,null,"Należności krótkoterminowe"]
[null,"BDMA_II1",null,"BDMA_II1",null,null,"Od klientów"]
[null,"BDMA_II2",null,"BDMA_II2",null,null,"Od jednostek powiązanych"]
[null,null,null,null,null,null,"Od banków prowadzących działalność maklerską, innych domów maklerskich i towarowych domów maklerskich"]
[null,"BDMA_II3A",null,"BDMA_II3A",null,null,null,"Z tytułu zawartych transakcji"]
[null,"BDMA_II3B",null,"BDMA_II3B",null,null,null,"Pozostałe"]
[null,"BDMA_II4",null,"BDMA_II4",null,null,"Od podmiotów prowadzących rynki regulowane i giełdy towarowe"]
[null,"BDMA_II5",null,"BDMA_II5",null,null,"Od Krajowego Depozytu i izb rozrachunkowych oraz izb rozliczeniowych"]
[null,"BDMA_II5A",null,"BDMA_II5A",null,null,"Od CCP"]
[null,"BDMA_II6",null,"BDMA_II6",null,null,"Od towarzystw funduszy inwestycyjnych i emerytalnych oraz funduszy inwestycyjnych i emerytalnych"]
[null,"BDMA_II7",null,"BDMA_II7",null,null,"Od emitentów papierów wartościowych lub wprowadzających"]
[null,"BDMA_II8",null,"BDMA_II8",null,null,"Od izby gospodarczej"]
[null,"BDMA_II9",null,"BDMA_II9",null,null,"Z tytułu podatków, dotacji i ubezpieczeń społecznych"]
[null,"BDMA_II10",null,"BDMA_II10",null,null,"Dochodzone na drodze sądowej, nieobjęte odpisami aktualizującymi należności"]
[null,"BDMA_II11",null,"BDMA_II11",null,null,"Wynikające z zawartych umów pożyczek papierów wartościowych"]
[null,"BDMA_II12",null,"BDMA_II12",null,null,"Pozostałe"]
[null,null,null,null,null,"Instrumenty finansowe przeznaczone do obrotu"]
[null,"BDMA_III1",null,"BDMA_III1",null,null,"Akcje"]
[null,"BDMA_III2",null,"BDMA_III2",null,null,"Dłużne papiery wartościowe"]
[null,"BDMA_III3",null,"BDMA_III3",null,null,"Certyfikaty inwestycyjne"]
[null,"BDMA_III4",null,"BDMA_III4",null,null,"Warranty"]
[null,"BDMA_III5",null,"BDMA_III5",null,null,"Pozostałe papiery wartościowe"]
[null,"BDMA_III6",null,"BDMA_III6",null,null,"Instrumenty pochodne"]
[null,"BDMA_III7",null,"BDMA_III7",null,null,"Towary giełdowe"]
[null,"BDMA_III8",null,"BDMA_III8",null,null,"Pozostałe"]
[null,"BDMA_IV",null,"BDMA_IV",null,"Krótkoterminowe rozliczenia międzyokresowe"]
[null,null,null,null,null,"Udzielone pożyczki krótkoterminowe"]
[null,"BDMA_IVA1",null,"BDMA_IVA1",null,null,"Jednostce dominującej"]
[null,"BDMA_IVA2",null,"BDMA_IVA2",null,null,"Znaczącemu inwestorowi"]
[null,"BDMA_IVA3",null,"BDMA_IVA3",null,null,"Wspólnikowi jednostki współzależnej"]
[null,"BDMA_IVA4",null,"BDMA_IVA4",null,null,"Jednostkom podporządkowanym"]
[null,"BDMA_IVA5",null,"BDMA_IVA5",null,null,"Pozostałe"]
[null,null,null,null,null,"Instrumenty finansowe utrzymywane do terminu zapadalności"]
[null,"BDMA_V1",null,"BDMA_V1",null,null,"Dłużne papiery wartościowe"]
[null,"BDMA_V2",null,"BDMA_V2",null,null,"Pozostałe papiery wartościowe"]
[null,"BDMA_V3",null,"BDMA_V3",null,null,"Towary giełdowe"]
[null,"BDMA_V4",null,"BDMA_V4",null,null,"Pozostałe"]
[null,null,null,null,null,"Instrumenty finansowe dostępne do sprzedaży"]
[null,null,null,null,null,null,"Akcje i udziały"]
[null,"BDMA_VI1A",null,"BDMA_VI1A",null,null,null,"Jednostki dominującej"]
[null,"BDMA_VI1B",null,"BDMA_VI1B",null,null,null,"Znaczącego inwestora"]
[null,"BDMA_VI1C",null,"BDMA_VI1C",null,null,null,"Wspólnika jednostki współzależnej"]
[null,"BDMA_VI1D",null,"BDMA_VI1D",null,null,null,"Jednostek podporządkowanych"]
[null,"BDMA_VI1E",null,"BDMA_VI1E",null,null,null,"Pozostałe"]
[null,"BDMA_VI2",null,"BDMA_VI2",null,null,"Dłużne papiery wartościowe"]
[null,"BDMA_VI3",null,"BDMA_VI3",null,null,"Jednostki uczestnictwa funduszy inwestycyjnych"]
[null,"BDMA_VI4",null,"BDMA_VI4",null,null,"Certyfikaty inwestycyjne"]
[null,"BDMA_VI5",null,"BDMA_VI5",null,null,"Pozostałe papiery wartościowe"]
[null,"BDMA_VI6",null,"BDMA_VI6",null,null,"Towary giełdowe"]
[null,"BDMA_VI7",null,"BDMA_VI7",null,null,"Pozostałe"]
[null,"BDMA_VII",null,"BDMA_VII",null,"Należności długoterminowe"]
[null,null,null,null,null,"Udzielone pożyczki długoterminowe"]
[null,"BDMA_VIII1",null,"BDMA_VIII1",null,null,"Jednostce dominującej"]
[null,"BDMA_VIII2",null,"BDMA_VIII2",null,null,"Znaczącemu inwestorowi"]
[null,"BDMA_VIII3",null,"BDMA_VIII3",null,null,"Wspólnikowi jednostki współzależnej"]
[null,"BDMA_VIII4",null,"BDMA_VIII4",null,null,"Jednostkom podporządkowanym"]
[null,"BDMA_VIII5",null,"BDMA_VIII5",null,null,"Pozostałe"]
[null,null,null,null,null,"Wartości niematerialne i prawne"]
[null,"BDMA_IX1",null,"BDMA_IX1",null,null,"Wartość firmy"]
[null,null,null,null,null,null,"Nabyte koncesje, patenty, licencje i podobne wartości"]
[null,"BDMA_IX2A",null,{"$f":"B1028","v":"BDMA_IX2A"},null,null,null,"Oprogramowanie komputerowe"]
[null,"BDMA_IX2B",null,"BDMA_IX2B",null,null,null,"Pozostałe"]
[null,"BDMA_IX3",null,"BDMA_IX3",null,null,"Inne wartości niematerialne i prawne"]
[null,"BDMA_IX4",null,"BDMA_IX4",null,null,"Zaliczki na wartości niematerialne i prawne"]
[null,null,null,null,null,"Rzeczowe aktywa trwałe"]
[null,null,null,null,null,null,"Środki trwałe"]
[null,"BDMA_X1A",null,"BDMA_X1A",null,null,null,"Grunty (w tym prawo użytkowania wieczystego)"]
[null,"BDMA_X1B",null,"BDMA_X1B",null,null,null,"Budynki i lokale"]
[null,"BDMA_X1C",null,"BDMA_X1C",null,null,null,"Zespoły komputerowe"]
[null,"BDMA_X1D",null,"BDMA_X1D",null,null,null,"Pozostałe środki trwałe"]
[null,"BDMA_X2",null,"BDMA_X2",null,null,"Środki trwałe w budowie"]
[null,"BDMA_X3",null,"BDMA_X3",null,null,"Zaliczki na środki trwałe w budowie"]
[null,null,null,null,null,"Długoterminowe rozliczenia międzyokresowe"]
[null,"BDMA_XI1",null,"BDMA_XI1",null,null,"Aktywa z tytułu odroczonego podatku dochodowego"]
[null,"BDMA_XI2",null,"BDMA_XI2",null,null,"Pozostałe rozliczenia międzyokresowe"]
[null,"BDMA_XII",null,"BDMA_XII",null,"Należne wpłaty na kapitał (fundusz) podstawowy"]
[null,"BDMA_XIII",null,"BDMA_XIII",null,"Udziały (akcje) własne"]
[null,null,null,null,"PASYWA"]
[null,null,null,null,null,"Zobowiązania krótkoterminowe"]
[null,"BDMP_I1",null,"BDMP_I1",null,null,"Wobec klientów"]
[null,"BDMP_I2",null,"BDMP_I2",null,null,"Wobec jednostek powiązanych"]
[null,null,null,null,null,null,"Wobec banków prowadzących działalność maklerską, innych domów maklerskich i towarowych domów maklerskich"]
[null,"BDMP_I3A",null,"BDMP_I3A",null,null,null,"Z tytułu zawartych transakcji"]
[null,"BDMP_I3B",null,"BDMP_I3B",null,null,null,"Pozostałe"]
[null,"BDMP_I4",null,"BDMP_I4",null,null,"Wobec podmiotów prowadzących rynki regulowane i giełdy towarowe"]
[null,"BDMP_I5",null,"BDMP_I5",null,null,"Wobec Krajowego Depozytu i izb rozrachunkowych oraz izb rozliczeniowych"]
[null,"BDMP_I5A",null,"BDMP_I5A",null,null,"Wobec CCP"]
[null,"BDMP_I6",null,"BDMP_I6",null,null,"Wobec izby gospodarczej"]
[null,"BDMP_I7",null,"BDMP_I7",null,null,"Wobec emitentów papierów wartościowych lub wprowadzających"]
[null,null,null,null,null,null,"Kredyty i pożyczki"]
[null,"BDMP_I8A",null,"BDMP_I8A",null,null,null,"Od jednostek powiązanych"]
[null,"BDMP_I8B",null,"BDMP_I8B",null,null,null,"Pozostałe"]
[null,"BDMP_I9",null,"BDMP_I9",null,null,"Dłużne papiery wartościowe"]
[null,"BDMP_I9A",null,"BDMP_I9A",null,null,"Ujemna wycena z tytułu instrumentów finansowych przeznaczonych do obrotu"]
[null,"BDMP_I10",null,"BDMP_I10",null,null,"Wekslowe"]
[null,"BDMP_I11",null,"BDMP_I11",null,null,"Z tytułu podatków, ceł, ubezpieczeń społecznych"]
[null,"BDMP_I12",null,"BDMP_I12",null,null,"Z tytułu wynagrodzeń"]
[null,"BDMP_I13",null,"BDMP_I13",null,null,"Wobec towarzystw funduszy inwestycyjnych i emerytalnych oraz funduszy inwestycyjnych i emerytalnych"]
[null,"BDMP_I14",null,"BDMP_I14",null,null,"Wynikające z zawartych umów pożyczek papierów wartościowych"]
[null,"BDMP_I15",null,"BDMP_I15",null,null,"Fundusze specjalne"]
[null,"BDMP_I16",null,"BDMP_I16",null,null,"Pozostałe"]
[null,null,null,null,null,"Zobowiązania długoterminowe"]
[null,null,null,null,null,null,"Kredyty bankowe"]
[null,"BDMP_II1A",null,"BDMP_II1A",null,null,null,"Od jednostek powiązanych"]
[null,"BDMP_II1B",null,"BDMP_II1B",null,null,null,"Pozostałe"]
[null,null,null,null,null,null,"Pożyczki"]
[null,"BDMP_II2A",null,"BDMP_II2A",null,null,null,"Od jednostek powiązanych"]
[null,"BDMP_II2B",null,"BDMP_II2B",null,null,null,"Pozostałe"]
[null,"BDMP_II3",null,"BDMP_II3",null,null,"Dłużne papiery wartościowe"]
[null,"BDMP_II4",null,"BDMP_II4",null,null,"Z tytułu innych instrumentów finansowych"]
[null,null,null,null,null,null,"Z tytułu umów leasingu finansowego"]
[null,"BDMP_II5A",null,"BDMP_II5A",null,null,null,"Od jednostek powiązanych"]
[null,"BDMP_II5B",null,"BDMP_II5B",null,null,null,"Pozostałe"]
[null,"BDMP_II6",null,"BDMP_II6",null,null,"Pozostałe"]
[null,null,null,null,null,"Rozliczenia międzyokresowe"]
[null,"BDMP_III1",null,"BDMP_III1",null,null,"Ujemna wartość firmy"]
[null,null,null,null,null,null,"Inne rozliczenia międzyokresowe"]
[null,"BDMP_III2A",null,"BDMP_III2A",null,null,null,"Długoterminowe"]
[null,"BDMP_III2B",null,"BDMP_III2B",null,null,null,"Krótkoterminowe"]
[null,null,null,null,null,"Rezerwy na zobowiązania"]
[null,"BDMP_IV1",null,"BDMP_IV1",null,null,"Z tytułu odroczonego podatku dochodowego"]
[null,null,null,null,null,null,"Na świadczenia emerytalne i podobne"]
[null,"BDMP_IV2A",null,"BDMP_IV2A",null,null,null,"Długoterminowe"]
[null,"BDMP_IV2B",null,"BDMP_IV2B",null,null,null,"Krótkoterminowe"]
[null,null,null,null,null,null,"Pozostałe"]
[null,"BDMP_IV3A",null,{"$f":"B1093","v":"BDMP_IV3A"},null,null,null,"Długoterminowe"]
[null,"BDMP_IV3B",null,"BDMP_IV3B",null,null,null,"Krótkoterminowe"]
[null,"BDMP_V",null,"BDMP_V",null,"Zobowiązania podporządkowane"]
[null,null,null,null,null,"Kapitał (fundusz) własny"]
[null,"BDMP_VI1",null,"BDMP_VI1",null,null,"Kapitał (fundusz) podstawowy"]
[null,null,null,null,null,null,"Kapitał (fundusz) zapasowy"]
[null,"BDMP_VI4A",null,"BDMP_VI4A",null,null,null,"Ze sprzedaży akcji powyżej ich wartości nominalnej"]
[null,"BDMP_VI4B",null,"BDMP_VI4B",null,null,null,"Utworzony ustawowo"]
[null,"BDMP_VI4C",null,"BDMP_VI4C",null,null,null,"Utworzony zgodnie ze statutem"]
[null,"BDMP_VI4D",null,"BDMP_VI4D",null,null,null,"Z dopłat akcjonariuszy"]
[null,"BDMP_VI4E",null,"BDMP_VI4E",null,null,null,"Inny"]
[null,"BDMP_VI5",null,"BDMP_VI5",null,null,"Kapitał (fundusz) z aktualizacji wyceny"]
[null,"BDMP_VI6",null,"BDMP_VI6",null,null,"Pozostałe kapitały (fundusze) rezerwowe"]
[null,null,null,null,null,null,"Zysk (strata) z lat ubiegłych"]
[null,"BDMP_VI7A",null,"BDMP_VI7A",null,null,null,"Zysk z lat ubiegłych (wartość dodatnia)"]
[null,"BDMP_VI7B",null,"BDMP_VI7B",null,null,null,"Strata z lat ubiegłych (wartość ujemna)"]
[null,"BDMP_VI8",null,"BDMP_VI8",null,null,"Zysk (strata) netto"]
[null,"BDMP_VI9",null,"BDMP_VI9",null,null,"Odpisy z zysku netto w ciągu roku obrotowego (wielkość ujemna)"]
[null,null,null,null,"RZIS"]
[null,null,null,null,null,"Przychody z podstawowej działalności"]
[null,null,null,null,null,null,"Przychody z działalności maklerskiej"]
[null,null,null,null,null,null,null,"Z tytułu przyjmowania i przekazywania zleceń nabycia lub zbycia instrumentów finansowych"]
[null,"RDM_I1A_pow",null,"RDM_I1A_pow",null,null,null,null,"Od jednostek powiązanych"]
[null,null,null,null,null,null,null,"Z tytułu wykonywania zleceń nabycia lub zbycia instrumentów finansowych, na rachunek dającego zlecenie"]
[null,"RDM_I1A_pow",null,"RDM_I1A_pow",null,null,null,null,"Od jednostek powiązanych"]
[null,null,null,null,null,null,null,"Z tytułu zarządzania portfelami, w skład których wchodzi jeden lub większa liczba instrumentów finansowych"]
[null,"RDM_I1A_pow",null,"RDM_I1A_pow",null,null,null,null,"Od jednostek powiązanych"]
[null,null,null,null,null,null,null,"Z tytułu doradztwa inwestycyjnego"]
[null,"RDM_I1A_pow",null,"RDM_I1A_pow",null,null,null,null,"Od jednostek powiązanych"]
[null,null,null,null,null,null,null,"Z tytułu oferowania instrumentów finansowych"]
[null,"RDM_I1A_pow",null,"RDM_I1A_pow",null,null,null,null,"Od jednostek powiązanych"]
[null,null,null,null,null,null,null,"Z tytułu świadczenia usług w wykonywaniu zawartych umów o subemisje inwestycyjne i usługowe lub zawierania i wykonywania innych umów o podobnym charakterze, jeżeli ich przedmiotem są instrumenty finansowe"]
[null,"RDM_I1A_pow",null,"RDM_I1A_pow",null,null,null,null,"Od jednostek powiązanych"]
[null,null,null,null,null,null,null,"Z tytułu prowadzenia rachunków pieniężnych, przechowywania lub rejestrowania instrumentów finansowych, w tym prowadzenia rachunków, o których mowa w art. 69 ust. 4 pkt 1 ustawy o obrocie instrumentami finansowymi"]
[null,"RDM_I1A_pow",null,"RDM_I1A_pow",null,null,null,null,"Od jednostek powiązanych"]
[null,null,null,null,null,null,null,"Pozostałe"]
[null,"RDM_I1A_pow",null,"RDM_I1A_pow",null,null,null,null,"Od jednostek powiązanych"]
[null,null,null,null,null,null,"Przychody z pozostałej działalności podstawowej"]
[null,"RDM_I2_pow",null,"RDM_I2_pow",null,null,null,"Od jednostek powiązanych"]
[null,null,null,null,null,null,"Przychody z działalności maklerskiej"]
[null,null,null,null,null,null,null,"Z tytułu przyjmowania i przekazywania zleceń nabycia lub zbycia instrumentów finansowych"]
[null,"RDM_I1A_poz",null,"RDM_I1A_poz",null,null,null,null,"Od jednostek powiązanych"]
[null,null,null,null,null,null,null,"Z tytułu wykonywania zleceń nabycia lub zbycia instrumentów finansowych, na rachunek dającego zlecenie"]
[null,"RDM_I1A_poz",null,"RDM_I1A_poz",null,null,null,null,"Od jednostek powiązanych"]
[null,null,null,null,null,null,null,"Z tytułu zarządzania portfelami, w skład których wchodzi jeden lub większa liczba instrumentów finansowych"]
[null,"RDM_I1A_poz",null,"RDM_I1A_poz",null,null,null,null,"Od jednostek powiązanych"]
[null,null,null,null,null,null,null,"Z tytułu doradztwa inwestycyjnego"]
[null,"RDM_I1A_poz",null,"RDM_I1A_poz",null,null,null,null,"Od jednostek powiązanych"]
[null,null,null,null,null,null,null,"Z tytułu oferowania instrumentów finansowych"]
[null,"RDM_I1A_poz",null,"RDM_I1A_poz",null,null,null,null,"Od jednostek powiązanych"]
[null,null,null,null,null,null,null,"Z tytułu świadczenia usług w wykonywaniu zawartych umów o subemisje inwestycyjne i usługowe lub zawierania i wykonywania innych umów o podobnym charakterze, jeżeli ich przedmiotem są instrumenty finansowe"]
[null,"RDM_I1A_poz",null,"RDM_I1A_poz",null,null,null,null,"Od jednostek powiązanych"]
[null,null,null,null,null,null,null,"Z tytułu prowadzenia rachunków pieniężnych, przechowywania lub rejestrowania instrumentów finansowych, w tym prowadzenia rachunków, o których mowa w art. 69 ust. 4 pkt 1 ustawy o obrocie instrumentami finansowymi"]
[null,"RDM_I1A_poz",null,"RDM_I1A_poz",null,null,null,null,"Od jednostek powiązanych"]
[null,null,null,null,null,null,null,"Pozostałe"]
[null,"RDM_I1A_poz",null,"RDM_I1A_poz",null,null,null,null,"Od jednostek powiązanych"]
[null,null,null,null,null,null,"Przychody z pozostałej działalności podstawowej"]
[null,"RDM_I2_poz",null,"RDM_I2_poz",null,null,null,"od jednostek pozostałych"]
[null,null,null,null,null,"Koszty działalności podstawowej"]
[null,"RDM_II1",null,"RDM_II1",null,null,"Opłaty na rzecz rynków regulowanych, giełd towarowych, Krajowego Depozytu i izb rozrachunkowych oraz izb rozliczeniowych"]
[null,"RDM_II2",null,"RDM_II2",null,null,"Opłaty na rzecz CCP"]
[null,"RDM_II3",null,"RDM_II3",null,null,"Opłaty na rzecz izby gospodarczej"]
[null,"RDM_II4",null,"RDM_II4",null,null,"Wynagrodzenia"]
[null,"RDM_II5",null,{"$f":"B1156","v":"RDM_II5"},null,null,"Ubezpieczenia społeczne i inne świadczenia"]
[null,"RDM_II6",null,"RDM_II6",null,null,"Świadczenia na rzecz pracowników"]
[null,"RDM_II7",null,"RDM_II7",null,null,"Zużycie materiałów i energii"]
[null,"RDM_II8",null,"RDM_II8",null,null,"Usługi obce"]
[null,"RDM_II9",null,"RDM_II9",null,null,"Koszty utrzymania i wynajmu nieruchomości"]
[null,"RDM_II10",null,"RDM_II10",null,null,"Pozostałe koszty rzeczowe"]
[null,"RDM_II11",null,"RDM_II11",null,null,"Amortyzacja"]
[null,"RDM_II12",null,"RDM_II12",null,null,"Podatki i inne opłaty o charakterze publicznoprawnym"]
[null,"RDM_II13",null,"RDM_II13",null,null,"Prowizje i inne opłaty"]
[null,"RDM_II14",null,"RDM_II14",null,null,"Pozostałe"]
[null,null,null,null,null,"Przychody z instrumentów finansowych przeznaczonych do obrotu"]
[null,null,null,null,null,null,"Dywidendy i inne udziały w zyskach"]
[null,"RDM_IV1_pow",null,"RDM_IV1_pow",null,null,null,"Od jednostek powiązanych"]
[null,"RDM_IV1_poz",null,"RDM_IV1_poz",null,null,null,"Od jednostek pozostałych"]
[null,null,null,null,null,null,"Odsetki"]
[null,"RDM_IV2_pow",null,"RDM_IV2_pow",null,null,null,"Od jednostek powiązanych"]
[null,"RDM_IV2_poz",null,"RDM_IV2_poz",null,null,null,"Od jednostek pozostałych"]
[null,"RDM_IV3",null,"RDM_IV3",null,null,"Korekty aktualizujące wartość"]
[null,"RDM_IV4",null,"RDM_IV4",null,null,"Przychody ze sprzedaży / z umorzenia"]
[null,"RDM_IV5",null,"RDM_IV5",null,null,"Pozostałe"]
[null,null,null,null,null,"Koszty z tytułu instrumentów finansowych przeznaczonych do obrotu"]
[null,"RDM_V1",null,"RDM_V1",null,null,"Korekty aktualizujące wartość"]
[null,"RDM_V2",null,"RDM_V2",null,null,"Koszty sprzedaży/umorzenia"]
[null,"RDM_V3",null,"RDM_V3",null,null,"Pozostałe"]
[null,null,null,null,null,"Przychody z instrumentów finansowych utrzymywanych do terminu zapadalności"]
[null,null,null,null,null,null,"Odsetki"]
[null,"RDM_VII1_pow",null,"RDM_VII1_pow",null,null,null,"Od jednostek powiązanych"]
[null,"RDM_VII1_poz",null,"RDM_VII1_poz",null,null,null,"Od jednostek pozostałych"]
[null,"RDM_VII2",null,"RDM_VII2",null,null,"Korekty aktualizujące wartość"]
[null,"RDM_VII3",null,"RDM_VII3",null,null,"Odpis dyskonta od dłużnych papierów wartościowych"]
[null,"RDM_VII4",null,"RDM_VII4",null,null,"Przychody ze sprzedaży / z umorzenia"]
[null,"RDM_VII5",null,"RDM_VII5",null,null,"Pozostałe"]
[null,null,null,null,null,"Koszty z tytułu instrumentów finansowych utrzymywanych do terminu zapadalności"]
[null,"RDM_VIII1",null,"RDM_VIII1",null,null,"Korekty aktualizujące wartość"]
[null,"RDM_VIII2",null,"RDM_VIII2",null,null,"Amortyzacja premii od dłużnych papierów wartościowych"]
[null,"RDM_VIII3",null,"RDM_VIII3",null,null,"Koszty sprzedaży/umorzenia"]
[null,"RDM_VIII4",null,"RDM_VIII4",null,null,"Pozostałe"]
[null,null,null,null,null,"Przychody z instrumentów finansowych dostępnych do sprzedaży"]
[null,null,null,null,null,null,"Dywidendy i inne udziały w zyskach"]
[null,"RDM_X1_pow",null,"RDM_X1_pow",null,null,null,"Od jednostek powiązanych"]
[null,"RDM_X1_poz",null,"RDM_X1_poz",null,null,null,"Od jednostek pozostałych"]
[null,null,null,null,null,null,"Odsetki"]
[null,"RDM_X2_pow",null,"RDM_X2_pow",null,null,null,"Od jednostek powiązanych"]
[null,"RDM_X2_poz",null,"RDM_X2_poz",null,null,null,"Od jednostek pozostałych"]
[null,"RDM_X3",null,"RDM_X3",null,null,"Korekty aktualizujące wartość"]
[null,"RDM_X4",null,"RDM_X4",null,null,"Przychody ze sprzedaży/umorzenia"]
[null,"RDM_X5",null,"RDM_X5",null,null,"Odpis dyskonta od dłużnych papierów wartościowych"]
[null,"RDM_X6",null,"RDM_X6",null,null,"Pozostałe"]
[null,null,null,null,null,"Koszty z tytułu instrumentów finansowych dostępnych do sprzedaży"]
[null,"RDM_XI1",null,"RDM_XI1",null,null,"Korekty aktualizujące wartość"]
[null,"RDM_XI2",null,"RDM_XI2",null,null,"Koszty sprzedaży/umorzenia"]
[null,"RDM_XI3",null,"RDM_XI3",null,null,"Amortyzacja premii od dłużnych papierów wartościowych"]
[null,"RDM_XI4",null,"RDM_XI4",null,null,"Pozostałe"]
[null,null,null,null,null,"Pozostałe przychody operacyjne"]
[null,"RDM_XIII1",null,"RDM_XIII1",null,null,"Przychody ze sprzedaży rzeczowych składników aktywów trwałych i wartości niematerialnych i prawnych"]
[null,"RDM_XIII2",null,"RDM_XIII2",null,null,"Rozwiązanie rezerw"]
[null,"RDM_XIII3",null,"RDM_XIII3",null,null,"Zmniejszenie odpisów aktualizujących należności"]
[null,"RDM_XIII4",null,"RDM_XIII4",null,null,"Dotacje"]
[null,"RDM_XIII5",null,"RDM_XIII5",null,null,"Pozostałe"]
[null,null,null,null,null,"Pozostałe koszty operacyjne"]
[null,"RDM_XIV1",null,"RDM_XIV1",null,null,"Koszty sprzedaży rzeczowych składników aktywów trwałych i wartości niematerialnych i prawnych"]
[null,"RDM_XIV2",null,"RDM_XIV2",null,null,"Utworzenie rezerw"]
[null,"RDM_XIV3",null,"RDM_XIV3",null,null,"Odpisy aktualizujące należności"]
[null,"RDM_XIV4",null,"RDM_XIV4",null,null,"Odpisy aktualizujące wartość rzeczowych składników aktywów trwałych i wartości niematerialnych i prawnych"]
[null,"RDM_XIV5",null,{"$f":"B1220","v":"RDM_XIV5"},null,null,"Pozostałe"]
[null,null,null,null,null,"Przychody finansowe"]
[null,null,null,null,null,null,"Odsetki od udzielonych pożyczek"]
[null,"RDM_XVII1_pow",null,"RDM_XVII1_pow",null,null,null,"Od jednostek powiązanych"]
[null,"RDM_XVII1_poz",null,"RDM_XVII1_poz",null,null,null,"Od jednostek pozostałych"]
[null,null,null,null,null,null,"Odsetki od lokat i depozytów"]
[null,"RDM_XVII2_pow",null,"RDM_XVII2_pow",null,null,null,"Od jednostek powiązanych"]
[null,"RDM_XVII2_poz",null,"RDM_XVII2_poz",null,null,null,"Od jednostek pozostałych"]
[null,"RDM_XVII3",null,"RDM_XVII3",null,null,"Pozostałe odsetki"]
[null,null,null,null,null,null,"Dodatnie różnice kursowe"]
[null,"RDM_XVII4A",null,"RDM_XVII4A",null,null,null,"Zrealizowane"]
[null,"RDM_XVII4B",null,"RDM_XVII4B",null,null,null,"Niezrealizowane"]
[null,"RDM_XVII5",null,"RDM_XVII5",null,null,"Pozostałe"]
[null,null,null,null,null,"Koszty finansowe"]
[null,null,null,null,null,null,"Odsetki od kredytów i pożyczek"]
[null,"RDM_XVIII1_pow",null,"RDM_XVIII1_pow",null,null,null,"Od jednostek powiązanych"]
[null,"RDM_XVIII1_poz",null,"RDM_XVIII1_poz",null,null,null,"Od jednostek pozostałych"]
[null,"RDM_XVIII2",null,"RDM_XVIII2",null,null,"Pozostałe odsetki"]
[null,null,null,null,null,null,"Ujemne różnice kursowe"]
[null,"RDM_XVIII3A",null,"RDM_XVIII3A",null,null,null,"Zrealizowane"]
[null,"RDM_XVIII3B",null,"RDM_XVIII3B",null,null,null,"Niezrealizowane"]
[null,"RDM_XVIII4",null,"RDM_XVIII4",null,null,"Pozostałe"]
[null,"RDM_PD",null,"RDM_PD",null,"Podatek dochodowy"]
[null,"RDM_XXIV",null,"RDM_XXIV",null,"Pozostałe obowiązkowe zmniejszenia zysku (zwiększenia straty)"]
[null,"INNE",null,"INNE","Inne, niewskazane w słowniku"]
[]
[6,null,"dla:",{"$f":"VLOOKUP(A1246,WariantyZOiS,2,FALSE)","v":"SKOK"}]
[]
[null,null,null,null,"AKTYWA"]
[null,null,null,null,null,"Aktywa pieniężne"]
[null,"BSA_I1",null,{"$f":"B1250","v":"BSA_I1"},null,null,"Środki pieniężne w kasie"]
[null,"BSA_I2",null,"BSA_I2",null,null,"Środki na rachunkach"]
[null,null,null,null,null,"Aktywa finansowe wyceniane w wartości godziwej przez wynik finansowy, w tym aktywa finansowe przeznaczone do obrotu"]
[null,null,null,null,null,null,"Aktywa finansowe wyceniane w wartości godziwej przez wynik finansowy"]
[null,"BSA_II1A",null,"BSA_II1A",null,null,null,"Instrumenty kapitałowe"]
[null,"BSA_II1B",null,"BSA_II1B",null,null,null,"Dłużne papiery wartościowe"]
[null,"BSA_II1C",null,"BSA_II1C",null,null,null,"Pozostałe"]
[null,null,null,null,null,null,"Aktywa finansowe przeznaczone do obrotu"]
[null,"BSA_II2A",null,"BSA_II2A",null,null,null,"Instrumenty kapitałowe"]
[null,"BSA_II2B",null,"BSA_II2B",null,null,null,"Dłużne papiery wartościowe"]
[null,"BSA_II2C",null,"BSA_II2C",null,null,null,"Pozostałe"]
[null,null,null,null,null,"Aktywa finansowe dostępne do sprzedaży"]
[null,"BSA_III1",null,"BSA_III1",null,null,"Instrumenty kapitałowe"]
[null,"BSA_III2",null,"BSA_III2",null,null,"Dłużne papiery wartościowe"]
[null,"BSA_III3",null,"BSA_III3",null,null,"Pozostałe"]
[null,null,null,null,null,"Kredyty i pożyczki oraz inne należności"]
[null,"BSA_IV1",null,"BSA_IV1",null,null,"Kredyty i pożyczki"]
[null,"BSA_IV2",null,"BSA_IV2",null,null,"Dłużne papiery wartościowe"]
[null,"BSA_IV3",null,"BSA_IV3",null,null,"Pozostałe"]
[null,null,null,null,null,"Aktywa finansowe utrzymywane do terminu wymagalności"]
[null,"BSA_V1",null,"BSA_V1",null,null,"Dłużne papiery wartościowe"]
[null,"BSA_V2",null,"BSA_V2",null,null,"Pozostałe"]
[null,"BSA_VI",null,"BSA_VI",null,"Rzeczowe aktywa trwałe"]
[null,"BSA_VII",null,"BSA_VII",null,"Wartości niematerialne i prawne"]
[null,null,null,null,null,"Rozliczenia międzyokresowe"]
[null,"BSA_VIII1",null,"BSA_VIII1",null,null,"Aktywa z tytułu odroczonego podatku dochodowego"]
[null,"BSA_VIII2",null,"BSA_VIII2",null,null,"Pozostałe rozliczenia międzyokresowe"]
[null,null,null,null,null,"Inne aktywa"]
[null,"BSA_IX1",null,"BSA_IX1",null,null,"Wkłady na fundusz stabilizacyjny"]
[null,"BSA_IX2",null,"BSA_IX2",null,null,"Pozostałe"]
[null,null,null,null,"PASYWA"]
[null,null,null,null,null,"Zobowiązania finansowe wyceniane w wartości godziwej przez wynik finansowy, w tym zobowiązania finansowe przeznaczone do obrotu"]
[null,null,null,null,null,null,"Zobowiązania finansowe wyceniane w wartości godziwej przez wynik finansowy"]
[null,"BSP_I1A",null,"BSP_I1A",null,null,null,"Oszczędności"]
[null,"BSP_I1B",null,"BSP_I1B",null,null,null,"Zobowiązania finansowe z tytułu własnej emisji"]
[null,"BSP_I1C",null,"BSP_I1C",null,null,null,"Pozostałe zobowiązania"]
[null,null,null,null,null,null,"Zobowiązania finansowe przeznaczone do obrotu"]
[null,"BSP_I2A",null,"BSP_I2A",null,null,null,"Oszczędności"]
[null,"BSP_I2B",null,"BSP_I2B",null,null,null,"Zobowiązania finansowe z tytułu własnej emisji"]
[null,"BSP_I2C",null,"BSP_I2C",null,null,null,"Pozostałe zobowiązania"]
[null,null,null,null,null,"Zobowiązania finansowe wyceniane według skorygowanej ceny nabycia"]
[null,"BSP_II1",null,"BSP_II1",null,null,"Oszczędności"]
[null,"BSP_II2",null,"BSP_II2",null,null,"Zobowiązania finansowe z tytułu własnej emisji"]
[null,"BSP_II3",null,"BSP_II3",null,null,"Pozostałe zobowiązania"]
[null,null,null,null,null,"Rezerwy"]
[null,"BSP_III1",null,"BSP_III1",null,null,"Rezerwa z tytułu odroczonego podatku dochodowego"]
[null,"BSP_III2",null,"BSP_III2",null,null,"Inne rezerwy"]
[null,"BSP_IV",null,"BSP_IV",null,"Zobowiązania z tytułu podatków"]
[null,"BSP_V",null,"BSP_V",null,"Rozliczenia międzyokresowe"]
[null,"BSP_VI",null,"BSP_VI",null,"Fundusze specjalne i inne zobowiązania"]
[null,"BSP_VII",null,"BSP_VII",null,"Zobowiązania i rezerwy na zobowiązania łącznie"]
[null,"BSP_VIII",null,"BSP_VIII",null,"Fundusz udziałowy"]
[null,"BSP_IX",null,"BSP_IX",null,"Fundusz zasobowy"]
[null,null,null,null,null,"Fundusz z aktualizacji wyceny"]
[null,"BSP_X1",null,"BSP_X1",null,null,"Rzeczowy majątek trwały"]
[null,"BSP_X2",null,"BSP_X2",null,null,"Aktywa finansowe dostępne do sprzedaży"]
[null,"BSP_X3",null,"BSP_X3",null,null,"Pozostałych"]
[null,"BSP_XI",null,"BSP_XI",null,"Zysk (strata) z lat ubiegłych"]
[null,"BSP_XII",null,"BSP_XII",null,"Zysk (strata) netto"]
[null,null,null,null,"RZIS"]
[null,null,null,null,null,"Przychody z tytułu odsetek"]
[null,"RS_I1",null,"RS_I1",null,null,"Aktywa finansowe wyceniane w wartości godziwej przez wynik finansowy, w tym aktywa finansowe przeznaczone do obrotu"]
[null,"RS_I2",null,"RS_I2",null,null,"Aktywa finansowe dostępne do sprzedaży"]
[null,"RS_I3",null,"RS_I3",null,null,"Aktywa finansowe utrzymywane do terminu wymagalności"]
[null,"RS_I4",null,"RS_I4",null,null,"Kredyty i pożyczki oraz inne należności"]
[null,"RS_I5",null,{"$f":"B1315","v":"RS_I5"},null,null,"Inne aktywa"]
[null,null,null,null,null,"Koszty z tytułu odsetek"]
[null,"RS_II1",null,"RS_II1",null,null,"Aktywa finansowe wyceniane w wartości godziwej przez wynik finansowy, w tym aktywa finansowe przeznaczone do obrotu"]
[null,"RS_II2",null,"RS_II2",null,null,"Zobowiązania finansowe wyceniane metodą skorygowanej ceny nabycia"]
[null,"RS_II3",null,"RS_II3",null,null,"Pozostałe zobowiązania"]
[null,"RS_IV",null,"RS_IV",null,"Przychody z tytułu dywidend"]
[null,"RS_V",null,"RS_V",null,"Przychody z tytułu prowizji"]
[null,"RS_VI",null,"RS_VI",null,"Koszty z tytułu prowizji"]
[null,null,null,null,null,"Zrealizowany wynik z aktywów finansowych i zobowiązań finansowych innych niż wyceniane w wartości godziwej przez wynik finansowy oraz innych niż przeznaczone do obrotu – netto"]
[null,"RS_VIII1",null,"RS_VIII1",null,null,"Aktywa finansowe dostępne do sprzedaży"]
[null,"RS_VIII2",null,"RS_VIII2",null,null,"Aktywa finansowe utrzymywane do terminu wymagalności"]
[null,"RS_VIII3",null,"RS_VIII3",null,null,"Kredyty i pożyczki oraz inne należności"]
[null,"RS_VIII4",null,"RS_VIII4",null,null,"Zobowiązania finansowe wyceniane metodą skorygowanej ceny nabycia"]
[null,"RS_VIII5",null,"RS_VIII5",null,null,"Pozostałe zrealizowane zyski (straty)"]
[null,null,null,null,null,"Wynik z tytułu aktywów finansowych i zobowiązań finansowych wycenianych w wartości godziwej przez wynik finansowy, w tym przeznaczonych do obrotu"]
[null,"RS_IX1",null,"RS_IX1",null,null,"Przychody z tytułu aktywów finansowych i zobowiązań finansowych wycenianych w wartości godziwej przez wynik finansowy, w tym przeznaczonych do obrotu"]
[null,"RS_IX2",null,"RS_IX2",null,null,"Koszty z tytułu aktywów finansowych i zobowiązań finansowych wycenianych w wartości godziwej przez wynik finansowy, w tym przeznaczonych do obrotu"]
[null,null,null,null,null,"Wynik z tytułu różnic kursowych"]
[null,"RS_X1",null,"RS_X1",null,null,"Przychody z tytułu różnic kursowych"]
[null,"RS_X2",null,"RS_X2",null,null,"Koszty z tytułu różnic kursowych"]
[null,null,null,null,null,"Pozostałe przychody operacyjne"]
[null,"RS_XII1",null,"RS_XII1",null,null,"Rozwiązane odpisy aktualizujące z tytułu utraty wartości aktywów niefinansowych"]
[null,"RS_XII2",null,"RS_XII2",null,null,"Pozostałe"]
[null,null,null,null,null,"Pozostałe koszty operacyjne"]
[null,"RS_XIII1",null,"RS_XIII1",null,null,"Odpisy aktualizujące z tytułu utraty wartości aktywów niefinansowych"]
[null,"RS_XIII2",null,"RS_XIII2",null,null,"Pozostałe"]
[null,null,null,null,null,"Koszty działania kasy"]
[null,"RS_XIV1",null,"RS_XIV1",null,null,"Amortyzacja"]
[null,"RS_XIV2",null,"RS_XIV2",null,null,"Zużycie materiałów i energii"]
[null,"RS_XIV3",null,"RS_XIV3",null,null,"Usługi obce"]
[null,"RS_XIV4",null,"RS_XIV4",null,null,"Bieżące wpłaty na fundusz stabilizacyjny"]
[null,"RS_XIV5",null,"RS_XIV5",null,null,"Podatki i opłaty"]
[null,"RS_XIV6",null,"RS_XIV6",null,null,"Wynagrodzenia oraz ubezpieczenia społeczne i inne świadczenia"]
[null,"RS_XIV7",null,"RS_XIV7",null,null,"Pozostałe koszty rodzajowe"]
[null,null,null,null,null,"Rezerwy i rozwiązane rezerwy – netto"]
[null,"RS_XV1",null,"RS_XV1",null,null,"Na zobowiązania pozabilansowe finansowe"]
[null,"RS_XV2",null,"RS_XV2",null,null,"Pozostałe rezerwy"]
[null,null,null,null,null,"Odpisy aktualizujące z tytułu utraty wartości i rozwiązane odpisy aktualizujące z tytułu utraty wartości aktywów finansowych – netto"]
[null,"RS_XVI1",null,"RS_XVI1",null,null,"Aktywa finansowe dostępne do sprzedaży"]
[null,"RS_XVI2",null,"RS_XVI2",null,null,"Aktywa finansowe utrzymywane do terminu wymagalności"]
[null,"RS_XVI3",null,"RS_XVI3",null,null,"Kredyty i pożyczki oraz inne należności"]
[null,null,null,null,null,"Wynik operacji nadzwyczajnych"]
[null,"RS_XVIII1",null,"RS_XVIII1",null,null,"Zyski nadzwyczajne"]
[null,"RS_XVIII2",null,"RS_XVIII2",null,null,"Straty nadzwyczajne"]
[null,"RS_XX_PD",null,"RS_XX_PD",null,"Podatek dochodowy"]
[null,"RS_XXI",null,"RS_XXI",null,"Pozostałe obowiązkowe zmniejszenie zysku (zmniejszenie straty)"]
[null,"INNE",null,"INNE","Inne, niewskazane w słowniku"]
[]
[null,null,"znaczniki dla kolumy S_12_3:"]
[null,null,"dla:","wszystkich rodzajów jednostek"]
[]
[null,"PD1",null,{"$f":"B1366","v":"PD1"},"Przychody zwolnione z opodatkowania (trwałe różnice pomiędzy zyskiem/stratą dla celów rachunkowych a dochodem/stratą dla celów podatkowych)"]
[null,"PD1_1",null,"PD1_1",null,"Przychody, w stosunku do których nie stosuje się przepisów ustawy"]
[null,"PD1_2",null,"PD1_2",null,"Przychody, które nie są zaliczane do przychodów podatkowych"]
[null,"PD1_3",null,"PD1_3",null,"Dochody (przychody) wolne"]
[null,"PD2",null,"PD2","Przychody niepodlegające opodatkowaniu w roku bieżącym"]
[null,"PD4",null,"PD4","Koszty niestanowiące kosztów uzyskania przychodów (trwałe różnice pomiędzy zyskiem/stratą dla celów rachunkowych a dochodem/stratą dla celów podatkowych)"]
[null,"PD4_1",null,"PD4_1",null,"Koszty związane z przychodami w stosunku do których przepisów ustawy o podatku dochodowym nie stosuje się"]
[null,"PD4_2",null,"PD4_2",null,"Koszty związane z przychodami, które nie są zaliczane do przychodów podatkowych"]
[null,"PD4_3",null,"PD4_3",null,"Koszty związane z dochodami (przychodami) wolnymi"]
[null,"PD5",null,"PD5","Koszty nieuznawane za koszty uzyskania przychodów w bieżącym roku"]
[null,"PD7",null,"PD7","Koszty uzyskania przychodów poniesione na działalność badawczo-rozwojową (ulga B+R)"]
[null,"PD8_1",null,"PD8_1","Kwalifikowane prawa własności intelektualnej (IP Box) –  przychody będące przychodami podatkowymi"]
[null,"PD8_2",null,"PD8_2","Kwalifikowane prawa własności intelektualnej (IP Box) –  koszty stanowiące koszty uzyskania przychodu"]
[null,null,null,null,"POZABILANSOWE"]
[null,"PD1_PB",null,"PD1_PB",null,"Przychody zwolnione z opodatkowania (trwałe różnice pomiędzy zyskiem/stratą dla celów rachunkowych a dochodem/stratą dla celów podatkowych)"]
[null,"PD1_PB_1",null,"PD1_PB_1",null,null,"Przychody, w stosunku do których nie stosuje się przepisów ustawy"]
[null,"PD1_PB_2",null,"PD1_PB_2",null,null,"Przychody, które nie są zaliczane do przychodów podatkowych"]
[null,"PD1_PB_3",null,"PD1_PB_3",null,null,"Dochody (przychody) wolne"]
[null,"PD2_PB",null,"PD2_PB",null,"Przychody niepodlegające opodatkowaniu w roku bieżącym"]
[null,"PD3_PB",null,"PD3_PB",null,"Przychody podlegające opodatkowaniu w roku bieżącym, ujęte w księgach rachunkowych lat ubiegłych"]
[null,"PD4_PB",null,"PD4_PB",null,"Koszty niestanowiące kosztów uzyskania przychodów (trwałe różnice pomiędzy zyskiem/stratą dla celów rachunkowych a dochodem/stratą dla celów podatkowych)"]
[null,"PD4_PB_1",null,"PD4_PB_1",null,null,"Koszty związane z przychodami, w stosunku do których nie stosuje się przepisów ustawy"]
[null,"PD4_PB_2",null,"PD4_PB_2",null,null,"Koszty związane z przychodami, które nie są zaliczane do przychodów podatkowych"]
[null,"PD4_PB_3",null,"PD4_PB_3",null,null,"Koszty związane z dochodami (przychodami) wolnymi"]
[null,"PD5_PB",null,"PD5_PB",null,"Koszty nieuznawane za koszty uzyskania przychodów w bieżącym roku"]
[null,"PD6_PB",null,"PD6_PB",null,"Koszty uznawane za koszty uzyskania przychodów w roku bieżącym, ujęte w księgach lat ubiegłych"]
[null,"PD7_PB",null,"PD7_PB",null,"Koszty uzyskania przychodów poniesione na działalność badawczo-rozwojową (ulga B+R)"]
[null,"PD8_PB_1",null,"PD8_PB_1",null,"Kwalifikowane prawa własności intelektualnej  (IP Box) –  przychody będące przychodami podatkowymi"]
[null,"PD8_PB_2",null,"PD8_PB_2",null,"Kwalifikowane prawa własności intelektualnej  (IP Box) –  koszty stanowiące koszty uzyskania przychodu"]

{"sheet":"Parametry","index":7,"n_rows":11,"n_cols":3,"rows_kept":11,"cut":false,"hidden":true,"merged":[]}
[]
[null,"Rozszerzenie pliku importu:"]
[]
[]
[null,"Arkusz","Komponent obsługujący import"]
[null,"JPK-Obroty i Salda","brak"]
[null,"JPK-Dzienniki","brak"]
[null,"JPK-Zapisy","brak"]
[]
[]
[null,"Sprawdzanie merytoryczne","tak"]

{"sheet":"techniczne","index":8,"n_rows":133,"n_cols":20,"rows_kept":133,"cut":false,"hidden":true,"merged":[[104,4,105,7],[104,8,105,11],[85,14,85,15],[85,16,85,17],[86,14,86,15],[86,16,86,17],[90,14,90,15],[90,16,90,17],[87,14,87,15],[87,16,87,17],[88,14,88,15],[88,16,88,17],[89,14,89,15],[89,16,89,17]]}
[]
[null,null,null,null,null,null,null,null,null,null,null,null,null,null,"Elementy list","Numery automat:","Nr obowiązkowej kolumny"]
[null,null,null,null,null,null,null,null,null,null,null,null,null,null,"ZOiS",null,2]
[null,null,null,null,null,null,null,null,null,null,null,null,null,null,"Dziennik",null,5]
[null,null,null,null,null,null,null,null,null,null,null,null,null,null,"KontoZapis",null,2]
[null,null,null,null,null,null,null,null,null,null,null,null,null,null,"Kontrahent",null,2]
[]
[null,null,null,null,null,null,null,null,null,null,null,null,null,null,"XED","#4557"]
[null,null,null,null,null,null,null,null,null,null,null,null,null,null,"XSD:","https://www.gov.pl/attachment/4ec8f106-032c-42f2-9fb5-15b5ec5ca670"]
[null,null,null,null,null,null,null,null,null,null,null,null,null,null,"Namespace:","http://jpk.mf.gov.pl/wzor/2024/09/04/09041/"]
[null,null,null,null,null,null,null,null,null,null,null,null,null,null,"AlternateImports","http://jpk.mf.gov.pl/wzor/2024/04/24/04241/;http://jpk.mf.gov.pl/wzor/2016/03/09/03091/;"]
[null,null,null,null,null,null,null,null,null,null,null,null,null,null,"ZeroToEmpty",false]
[null,null,null,null,null,null,null,null,null,null,null,null,null,null,"ZeroFollowsFields:"]
[]
[null,null,null,null,null,null,null,null,null,null,null,null,null,null,"Dodatkowe testy merytoryczne podczas Importu i dopisywania (Append):"]
[null,null,null,null,null,null,null,null,null,null,null,null,null,null,"Sprawdź podczas importu","Sprawdź podczas dołączania","Wykonać przed walidacją XSD?","Węzeł z porównywaną wartością (wyrażenie Xpath) (uruchamiane dla DocumentNode)","Oczekiwana wartość","Komunikat o ewentualnym błędzie (Wpisz {Val} tam, gdzie ma być podstawiona wartość z importowanego dokumentu)"]
[null,null,null,null,null,null,null,null,null,null,null,null,null,null,{"$f":"TRUE","v":true},{"$f":"TRUE","v":true},{"$f":"TRUE","v":true},"//*[local-name()='KodFormularza']","JPK_KR_PD",{"$f":"\"Niewłaściwy typ pliku JPK ({Val}), podczas gdy powinien to być '\" & S17 & \"'\"","v":"Niewłaściwy typ pliku JPK ({Val}), podczas gdy powinien to być 'JPK_KR_PD'"}]
[null,null,null,null,null,null,null,null,null,null,null,null,null,null,{"$f":"FALSE","v":false},{"$f":"TRUE","v":true},{"$f":"FALSE","v":false},"//*[local-name()='NIP']",{"$f":"NIP","v":"1111111111"},{"$f":"\"Plik dotyczy przedsiębiorstwa o innym NIP ({Val}) niż dotychczas wczytane dane (dla przedsiębiorstwa o NIP: \" &S18 & \")\"","v":"Plik dotyczy przedsiębiorstwa o innym NIP ({Val}) niż dotychczas wczytane dane (dla przedsiębiorstwa o NIP: 1111111111)"}]
[null,null,null,null,null,null,null,null,null,null,null,null,null,null,{"$f":"FALSE","v":false},{"$f":"TRUE","v":true},{"$f":"FALSE","v":false},"jpk:Naglowek/jpk:DataOd",{"$f":"TEXT(DataOd,\"rrrr-MM-dd\")","v":"2016-05-01"},{"$f":"\"Plik dotyczy okresu o innej dacie początkowej ({Val}) niż dotychczas wczytane dane (\" & S19 & \")\"","v":"Plik dotyczy okresu o innej dacie początkowej ({Val}) niż dotychczas wczytane dane (2016-05-01)"}]
[null,null,null,null,null,null,null,null,null,null,null,null,null,null,{"$f":"FALSE","v":false},{"$f":"TRUE","v":true},{"$f":"FALSE","v":false},"jpk:Naglowek/jpk:DataDo",{"$f":"TEXT(DataDo,\"rrrr-MM-dd\")","v":"2016-05-31"},{"$f":"\"Plik dotyczy okresu o innej dacie końcowej ({Val}) niż dotychczas wczytane dane (\" & S20 & \")\"","v":"Plik dotyczy okresu o innej dacie końcowej ({Val}) niż dotychczas wczytane dane (2016-05-31)"}]
[]
[null,null,null,null,null,null,null,null,null,null,null,null,null,null,"Nazwa skoroszytu:",null,"JPK_KR"]
[null,null,null,null,null,null,null,null,null,null,null,null,null,null,"Numer seryjny:",null,"EVAL"]
[null,null,null,null,null,null,null,null,null,null,null,null,null,null,"Numer edycji:",null,1.86]
[null,null,null,null,null,null,null,null,null,null,null,null,null,null,"Wygenerowano:",null,"2024-10-14T20:58:13"]
[]
[null,null,null,null,null,null,null,null,null,null,null,null,null,null,"Komunikaty w oknach dialogowych",null,"00"]
[]
[]
[]
[]
[]
[]
[]
[]
[]
[]
[]
[]
[]
[]
[]
[]
[]
[]
[]
[]
[]
[]
[]
[]
[]
[]
[]
[]
[]
[]
[]
[]
[]
[]
[]
[]
[]
[]
[]
[]
[]
[]
[]
[]
[]
[]
[]
[]
[]
[]
[]
[]
[]
[]
[]
[]
[]
[null,null,null,null,null,null,null,null,null,null,null,null,null,null,"Schematy, używane gdy nie można użyć wersji online z Ministerstwa Finansów:"]
[null,null,null,null,null,null,null,null,null,null,null,null,null,null,"Nazwa ramki",null,"Przestrzeń nazw"]
[null,null,null,null,null,null,null,null,null,null,null,null,null,null,"UrzedySkarbowe",null,"http://crd.gov.pl/xml/schematy/dziedzinowe/mf/2022/01/05/eD/KodyUrzedowSkarbowych/"]
[null,null,null,null,null,null,null,null,null,null,null,null,null,null,"KodyKrajow",null,"http://crd.gov.pl/xml/schematy/dziedzinowe/mf/2022/01/05/eD/DefinicjeTypy/"]
[null,null,"Pola list wybieralnych:",null,null,null,null,null,null,null,null,null,null,null,"ElementarneTypyDanych",null,"http://crd.gov.pl/xml/schematy/dziedzinowe/mf/2022/01/05/eD/DefinicjeTypy/"]
[null,null,1,"banków",null,null,null,null,null,null,null,null,null,null,"StrukturyDanych",null,"http://crd.gov.pl/xml/schematy/dziedzinowe/mf/2022/01/05/eD/DefinicjeTypy/"]
[null,null,2,"ubezpieczycieli i zakładów reasekuracji",null,null,null,null,null,null,null,null,null,null,"JPK",null,{"$f":"JPK_Namespace","v":"http://jpk.mf.gov.pl/wzor/2024/09/04/09041/"}]
[null,null,3,"organizacji pożytku publicznego i wolontariatu"]
[null,null,4,"funduszy inwestycyjnych",null,null,null,null,null,null,null,null,null,null,"Kolumny, których zawartość należy zachowac w pomocniczym arkuszu (pierwsza jest traktowana jak indeks):"]
[null,null,5,"domów maklerskich",null,null,null,null,null,null,null,null,null,null,"SaveColumns","S_1,S_12_1,S_12_2,S_12_3"]
[null,null,6,"SKOK",null,null,null,null,null,null,null,null,null,null,"StoringWorksheet","przypisania"]
[null,null,7,"jednostek pozostałych"]
[null,null,8,"jednostek stosujących MSSF"]
[]
[null,null,"Ustaw po resecie:"]
[null,null,"WariantZOiS:7"]
[]
[null,null,null,null,null,null,null,null,null,null,null,null,null,null,"Weryfikacja merytoryczna niektórych pól:"]
["Specyficzne dla tego skoroszytu:",null,null,null,null,null,null,null,null,null,null,null,null,null,"Nazwy pól (kolumn)","Przed walidacją?","Typ testu","Pytanie, czy wyświetlić znalezione nieprawidłowości","Krytyczne?","Wyjaśnienie, towarzyszące wyświetleniu nieprawidłowości"]
["Adres:",{"$f":"IF(OR(KodKraju=\"PL\",KodKraju=\"\"),\nE105,\nI105\n)","v":"\t\t<AdresPol>\n\t\t\t<etd:KodKraju></etd:KodKraju>\n\t\t\t<etd:Wojewodztwo></etd:Wojewodztwo>\n\t\t\t<etd:Powiat></etd:Powiat>\n\t\t\t<etd:Gmina></etd:Gmina>\n\t\t\t<etd:Ulica></etd:Ulica>\n\t\t\t<etd:NrDomu></etd:NrDomu>\n\t\t\t<etd:NrLokalu></etd:NrLokalu>\n\t\t\t<etd:Miejscowosc></etd:Miejscowosc>\n\t\t\t<etd:KodPocztowy></etd:KodPocztowy>\n\t\t</AdresPol>"},null," ","polski:",null,null,null,"zagraniczny:",null,null,null,null,null,"D_1","T","Unikalne","W arkuszu JPK-Dzienniki znaleziono {Count} powtarzających się symboli w kolumnie D_1\n","T","Nieprawidłowe zapisy zostały wyróżnione znakiem \"X\" w kolumnie \"Błąd\" (możesz je szybko wybrać za pomoca funkcji Filtruj).\nWpisz w te pola unikalne, niepuste wartości. (Możesz także poprawić to zestawienie w jakikolwiek inny sposób, który zapewni unikalność symboli w tej kolumnie).\n\n\nGdy skończysz nanosić te poprawki, kliknij powtórnie w przycisk [Zapisz jako plik JPK]."]
[null,null,null,null,"\t\t<AdresPol>\n\t\t\t<etd:KodKraju></etd:KodKraju>\n\t\t\t<etd:Wojewodztwo></etd:Wojewodztwo>\n\t\t\t<etd:Powiat></etd:Powiat>\n\t\t\t<etd:Gmina></etd:Gmina>\n\t\t\t<etd:Ulica></etd:Ulica>\n\t\t\t<etd:NrDomu></etd:NrDomu>\n\t\t\t<etd:NrLokalu></etd:NrLokalu>\n\t\t\t<etd:Miejscowosc></etd:Miejscowosc>\n\t\t\t<etd:KodPocztowy></etd:KodPocztowy>\n\t\t</AdresPol>",null,null,null,"\t\t<AdresZagr>\n\t\t\t<etd:KodKraju></etd:KodKraju>\n\t\t\t<etd:KodPocztowy></etd:KodPocztowy>\n\t\t\t<etd:Miejscowosc></etd:Miejscowosc>\n\t\t\t<etd:Ulica></etd:Ulica>\n\t\t\t<etd:NrDomu></etd:NrDomu>\n\t\t\t<etd:NrLokalu></etd:NrLokalu>\n\t\t</AdresZagr>",null,null,null,null,null,"Z_0,Z_1","T","Unikalne","W arkuszu JPK-Zapisy znaleziono {Count} powtarzających się symboli w kolumnie Z_1\n","T","Nieprawidłowe zapisy zostały wyróżnione znakiem \"X\" w kolumnie \"Błąd\" (możesz je szybko wybrać za pomoca funkcji Filtruj).\nWpisz w te pola unikalne, niepuste wartości. (Możesz także poprawić to zestawienie w jakikolwiek inny sposób, który zapewni unikalność symboli w tej kolumnie).\n\n\nGdy skończysz nanosić te poprawki, kliknij powtórnie w przycisk [Zapisz jako plik JPK]."]
[null,null,null,null,null,null,null,null,null,null,null,null,null,null,"D_1,Z_0","T","A=>B","W arkuszu JPK-Dzienniki znaleziono {Count} dzienników, których numery D_1 nie pojawiają się w zapisach transakcji z arkusza JPK-Zapisy\n","T","Nieprawidłowe zapisy zostały wyróżnione znakiem \"X\" w kolumnie \"Błąd\" (możesz je szybko wybrać za pomoca funkcji Filtruj).\nWpisz w te pola poprawne numery dzienników związanych z transakcjami z JPK-Zapisy. (Możesz także poprawić to zestawienie w jakikolwiek inny sposób, który zapewni spójność listy dzienników i zapisów księgowych)\n\n\nGdy skończysz nanosić te poprawki, kliknij powtórnie w przycisk [Zapisz jako plik JPK]."]
[null,null,null,null,null,null,null,null,null,null,null,null,null,null,"Z_0,D_1","T","A=>B","W arkuszu JPK-Zapisy znaleziono {Count} transakcji związanych z dziennikami, których numerów nie ma w kolumnie D_1 zestawienia dzienników\n","T","Nieprawidłowe zapisy zostały wyróżnione znakiem \"X\" w kolumnie \"Błąd\" (możesz je szybko wybrać za pomoca funkcji Filtruj).\nWpisz w te pola wartości występujące w kolumnie D_1 zestawienia Dzienników (JPK-Dzienniki). (Możesz także poprawić to zestawienie w jakikolwiek inny sposób, który zapewni spójność listy dzienników i zapisów księgowych)\n\n\nGdy skończysz nanosić te poprawki, kliknij powtórnie w przycisk [Zapisz jako plik JPK]."]
[null,null,null,null,null,null,null,null,null,null,null,null,null,null,{"$f":"IF(WariantZOiS < 8,\"S_12_1,\" & INDEX(ListaMap,WariantZOiS,1),\"\")","v":"S_12_1,MapKontaPOZ"},"T","A=>B","W kolumnie S_12_1 arkusza JPK-Obroty i Salda znaleziono {Count} kont przypisanych do nieprawidłowego symbolu znacznika","T","Nieprawidłowe zapisy zostały wyróżnione znakiem \"X\" w kolumnie \"Błąd\" (możesz je szybko wybrać za pomoca funkcji Filtruj).\nWpisz w te pola wartości występujące w odpowiednim słowniku podanym w arkuszu Znaczniki OiS. \n\nGdy skończysz nanosić te poprawki, kliknij powtórnie w przycisk [Zapisz jako plik JPK]."]
[]
[]
[]
[]
["Nietypowe mapowanie nazw XML->arkusz"]
["ExMappedNode:",{"$f":"\"ZOiS\" & WariantZOiS & \":ZOiS\"","v":"ZOiS7:ZOiS"}]
["ExRowMatching:","KontoZapis:../*[local-name()=\"D_1\"]:Z_0;*[local-name()=\"Z_1\"]:Z_1",null,null,null,null,null,null,"(Definiuje wyszukiwanie wierszy  z zapisami na kontach po numerze dowodu i numerze kolejnym. Xpath względem elementu KontoZapis)"]
[]
[null,"Listy wyciagnięte ze schematu JPK_KR (aby zmieścił się w oknie tekstowym, tj. aby miał mniejszy rozmiar od 25kB):"]
["MapKontaBanki","<xsd:simpleType name=\"TMapKontaBanki\">\n      <xsd:restriction base=\"xsd:string\">\n\t<xsd:enumeration value=\"B2AI1\"/>\n\t<xsd:enumeration value=\"B2AI2\"/>\n\t<xsd:enumeration value=\"B2AI3\"/>\n\t<xsd:enumeration value=\"B2AI_A\"/>\n\t<xsd:enumeration value=\"B2AII_W\"/>\n\t<xsd:enumeration value=\"B2AII_A\"/>\n\t<xsd:enumeration value=\"B2AIII1_W\"/>\n\t<xsd:enumeration value=\"B2AIII1_rc\"/>\n\t<xsd:enumeration value=\"B2AIII1_A\"/>\n\t<xsd:enumeration value=\"B2AIII2_W\"/>\n\t<xsd:enumeration value=\"B2AIII2_rc\"/>\n\t<xsd:enumeration value=\"B2AIII2_A\"/>\n\t<xsd:enumeration value=\"B2AIV1_W\"/>\n\t<xsd:enumeration value=\"B2AIV1_rc\"/>\n\t<xsd:enumeration value=\"B2AIV1_A\"/>\n\t<xsd:enumeration value=\"B2AIV2_W\"/>\n\t<xsd:enumeration value=\"B2AIV2_rc\"/>\n\t<xsd:enumeration value=\"B2AIV2_A\"/>\n\t<xsd:enumeration value=\"B2AV1_W\"/>\n\t<xsd:enumeration value=\"B2AV1_rc\"/>\n\t<xsd:enumeration value=\"B2AV1_A\"/>\n\t<xsd:enumeration value=\"B2AV2_W\"/>\n\t<xsd:enumeration value=\"B2AV2_rc\"/>\n\t<xsd:enumeration value=\"B2AV2_A\"/>\n\t<xsd:enumeration value=\"B2AVI_W\"/>\n\t<xsd:enumeration value=\"B2AVI_A\"/>\n\t<xsd:enumeration value=\"B2AVII1\"/>\n\t<xsd:enumeration value=\"B2AVII1_A\"/>\n\t<xsd:enumeration value=\"B2AVII2\"/>\n\t<xsd:enumeration value=\"B2AVII2_A\"/>\n\t<xsd:enumeration value=\"B2AVII3_W\"/>\n\t<xsd:enumeration value=\"B2AVII3_A\"/>\n\t<xsd:enumeration value=\"B2AVIII1_W\"/>\n\t<xsd:enumeration value=\"B2AVIII1_A\"/>\n\t<xsd:enumeration value=\"B2AVIII2_W\"/>\n\t<xsd:enumeration value=\"B2AVIII2_A\"/>\n\t<xsd:enumeration value=\"B2AIX1_W\"/>\n\t<xsd:enumeration value=\"B2AIX1_A\"/>\n\t<xsd:enumeration value=\"B2AIX2_W\"/>\n\t<xsd:enumeration value=\"B2AIX2_A\"/>\n\t<xsd:enumeration value=\"B2AX1_W\"/>\n\t<xsd:enumeration value=\"B2AX1_A\"/>\n\t<xsd:enumeration value=\"B2AX2_W\"/>\n\t<xsd:enumeration value=\"B2AX2_A\"/>\n\t<xsd:enumeration value=\"B2AXI1_W\"/>\n\t<xsd:enumeration value=\"B2AXI1_A\"/>\n\t<xsd:enumeration value=\"B2AXI2_W\"/>\n\t<xsd:enumeration value=\"B2AXI2_A\"/>\n\t<xsd:enumeration value=\"B2AXII_W\"/>\n\t<xsd:enumeration value=\"B2AXII_A\"/>\n\t<xsd:enumeration value=\"B2AXIII1_WF\"/>\n\t<xsd:enumeration value=\"B2AXIII1_WF_A\"/>\n\t<xsd:enumeration value=\"B2AXIII1_WF_U\"/>\n\t<xsd:enumeration value=\"B2AXIII2_inne_W\"/>\n\t<xsd:enumeration value=\"B2AXIII1_inne_A\"/>\n\t<xsd:enumeration value=\"B2AXIII1_inne_U\"/>\n\t<xsd:enumeration value=\"B2AXIV_W\"/>\n\t<xsd:enumeration value=\"B2AXIV_U\"/>\n\t<xsd:enumeration value=\"B2AXIV_A\"/>\n\t<xsd:enumeration value=\"B2AXV1_W\"/>\n\t<xsd:enumeration value=\"B2AXV1_A\"/>\n\t<xsd:enumeration value=\"B2AXV2_W\"/>\n\t<xsd:enumeration value=\"B2AXV2_A\"/>\n\t<xsd:enumeration value=\"B2AXVI1_W\"/>\n\t<xsd:enumeration value=\"B2AXVI1_A\"/>\n\t<xsd:enumeration value=\"B2AXVI2_W\"/>\n\t<xsd:enumeration value=\"B2AXVI2_A\"/>\n\t<xsd:enumeration value=\"B2AXVII\"/>\n\t<xsd:enumeration value=\"B2AXVIII\"/>\n\t<xsd:enumeration value=\"B2PI1\"/>\n\t<xsd:enumeration value=\"B2PII1\"/>\n\t<xsd:enumeration value=\"B2PII2\"/>\n\t<xsd:enumeration value=\"B2PIII1a\"/>\n\t<xsd:enumeration value=\"B2PIII1b\"/>\n\t<xsd:enumeration value=\"B2PIII2a\"/>\n\t<xsd:enumeration value=\"B2PIII2b\"/>\n\t<xsd:enumeration value=\"B2PIV1\"/>\n\t<xsd:enumeration value=\"B2PIV2\"/>\n\t<xsd:enumeration value=\"B2PV\"/>\n\t<xsd:enumeration value=\"B2PVI\"/>\n\t<xsd:enumeration value=\"B2PVII\"/>\n\t<xsd:enumeration value=\"B2PVIII\"/>\n\t<xsd:enumeration value=\"B2PIX1\"/>\n\t<xsd:enumeration value=\"B2PIX2\"/>\n\t<xsd:enumeration value=\"B2PIX3\"/>\n\t<xsd:enumeration value=\"B2PX1\"/>\n\t<xsd:enumeration value=\"B2PX2\"/>\n\t<xsd:enumeration value=\"B2PXI\"/>\n\t<xsd:enumeration value=\"B2PXII\"/>\n\t<xsd:enumeration value=\"B2PXIII\"/>\n\t<xsd:enumeration value=\"B2PXIV\"/>\n\t<xsd:enumeration value=\"B2PXV1\"/>\n\t<xsd:enumeration value=\"B2PXV2\"/>\n\t<xsd:enumeration value=\"B2PXVI\"/>\n\t<xsd:enumeration value=\"B2PXVII\"/>\n\t<xsd:enumeration value=\"B2PXVIII\"/>\n\t<xsd:enumeration value=\"R2I1\"/>\n\t<xsd:enumeration value=\"R2I2\"/>\n\t<xsd:enumeration value=\"R2I3\"/>\n\t<xsd:enumeration value=\"R2I4\"/>\n\t<xsd:enumeration value=\"R2II1\"/>\n\t<xsd:enumeration value=\"R2II2\"/>\n\t<xsd:enumeration value=\"R2II3\"/>\n\t<xsd:enumeration value=\"R2IV\"/>\n\t<xsd:enumeration value=\"R2V\"/>\n\t<xsd:enumeration value=\"R2VII1\"/>\n\t<xsd:enumeration value=\"R2VII2\"/>\n\t<xsd:enumeration value=\"R2VII3\"/>\n\t<xsd:enumeration value=\"R2VII4\"/>\n\t<xsd:enumeration value=\"R2VIII1_P\"/>\n\t<xsd:enumeration value=\"R2VIII1_K\"/>\n\t<xsd:enumeration value=\"R2VIII2_P\"/>\n\t<xsd:enumeration value=\"R2VIII2_K\"/>\n\t<xsd:enumeration value=\"R2IX_P\"/>\n\t<xsd:enumeration value=\"R2IX_K\"/>\n\t<xsd:enumeration value=\"R2XI\"/>\n\t<xsd:enumeration value=\"R2XII\"/>\n\t<xsd:enumeration value=\"R2XIII1\"/>\n\t<xsd:enumeration value=\"R2XIII2\"/>\n\t<xsd:enumeration value=\"R2XIII3\"/>\n\t<xsd:enumeration value=\"R2XIV\"/>\n\t<xsd:enumeration value=\"R2XV1\"/>\n\t<xsd:enumeration value=\"R2XV2\"/>\n\t<xsd:enumeration value=\"R2XVI1\"/>\n\t<xsd:enumeration value=\"R2XVI2\"/>\n\t<xsd:enumeration value=\"R2XIX1\"/>\n\t<xsd:enumeration value=\"R2XIX2\"/>\n\t<xsd:enumeration value=\"R2XXI_B\"/>\n\t<xsd:enumeration value=\"R2XXI_O\"/>\n\t<xsd:enumeration value=\"R2XXII\"/>\n\t<xsd:enumeration value=\"INNE\"/>\n      </xsd:restriction>\n   </xsd:simpleType>\n   "]
["MapKontaUbezp","<xsd:simpleType name=\"TMapKontaUbezp\">\n      <xsd:restriction base=\"xsd:string\">\n\t<xsd:enumeration value=\"B3AA1_W\"/>\n\t<xsd:enumeration value=\"B3AA1_A\"/>\n\t<xsd:enumeration value=\"B3AA1_U\"/>\n\t<xsd:enumeration value=\"B3AA2_W\"/>\n\t<xsd:enumeration value=\"B3AA2_A\"/>\n\t<xsd:enumeration value=\"B3AA2_U\"/>\n\t<xsd:enumeration value=\"B3ABI1_W\"/>\n\t<xsd:enumeration value=\"B3ABI1_A\"/>\n\t<xsd:enumeration value=\"B3ABI2_W\"/>\n\t<xsd:enumeration value=\"B3ABI2_A\"/>\n\t<xsd:enumeration value=\"B3ABI2_U\"/>\n\t<xsd:enumeration value=\"B3ABI3_W\"/>\n\t<xsd:enumeration value=\"B3ABI3_A\"/>\n\t<xsd:enumeration value=\"B3ABI3_U\"/>\n\t<xsd:enumeration value=\"B3ABII1_W\"/>\n\t<xsd:enumeration value=\"B3ABII1_A\"/>\n\t<xsd:enumeration value=\"B3ABII2_W\"/>\n\t<xsd:enumeration value=\"B3ABII2_A\"/>\n\t<xsd:enumeration value=\"B3ABII3_W\"/>\n\t<xsd:enumeration value=\"B3ABII3_A\"/>\n\t<xsd:enumeration value=\"B3ABIII1_W\"/>\n\t<xsd:enumeration value=\"B3ABIII1_A\"/>\n\t<xsd:enumeration value=\"B3ABIII2_W\"/>\n\t<xsd:enumeration value=\"B3ABIII2_A\"/>\n\t<xsd:enumeration value=\"B3ABIII3_W\"/>\n\t<xsd:enumeration value=\"B3ABIII3_A\"/>\n\t<xsd:enumeration value=\"B3ABIII4_W\"/>\n\t<xsd:enumeration value=\"B3ABIII4_A\"/>\n\t<xsd:enumeration value=\"B3ABIII5_W\"/>\n\t<xsd:enumeration value=\"B3ABIII5_A\"/>\n\t<xsd:enumeration value=\"B3ABIII6_W\"/>\n\t<xsd:enumeration value=\"B3ABIII6_A\"/>\n\t<xsd:enumeration value=\"B3ABIII7_W\"/>\n\t<xsd:enumeration value=\"B3ABIII7_A\"/>\n\t<xsd:enumeration value=\"B3ABIV_W\"/>\n\t<xsd:enumeration value=\"B3ABIV_A\"/>\n\t<xsd:enumeration value=\"B3AC\"/>\n\t<xsd:enumeration value=\"B3AC_K\"/>\n\t<xsd:enumeration value=\"B3ADI11_1_W\"/>\n\t<xsd:enumeration value=\"B3ADI11_1_A\"/>\n\t<xsd:enumeration value=\"B3ADI11_2_W\"/>\n\t<xsd:enumeration value=\"B3ADI11_2_A\"/>\n\t<xsd:enumeration value=\"B3ADI22_1_W\"/>\n\t<xsd:enumeration value=\"B3ADI22_1_A\"/>\n\t<xsd:enumeration value=\"B3ADI22_2_W\"/>\n\t<xsd:enumeration value=\"B3ADI22_2_A\"/>\n\t<xsd:enumeration value=\"B3ADI33_1_W\"/>\n\t<xsd:enumeration value=\"B3ADI33_1_A\"/>\n\t<xsd:enumeration value=\"B3ADI33_2_W\"/>\n\t<xsd:enumeration value=\"B3ADI33_2_A\"/>\n\t<xsd:enumeration value=\"B3ADII1_W\"/>\n\t<xsd:enumeration value=\"B3ADII1_A\"/>\n\t<xsd:enumeration value=\"B3ADII2_W\"/>\n\t<xsd:enumeration value=\"B3ADII2_A\"/>\n\t<xsd:enumeration value=\"B3ADIII1\"/>\n\t<xsd:enumeration value=\"B3ADIII22_1_W\"/>\n\t<xsd:enumeration value=\"B3ADIII22_1_A\"/>\n\t<xsd:enumeration value=\"B3ADIII22_2_W\"/>\n\t<xsd:enumeration value=\"B3ADIII22_2_A\"/>\n\t<xsd:enumeration value=\"B3AEI_W\"/>\n\t<xsd:enumeration value=\"B3AEI_U\"/>\n\t<xsd:enumeration value=\"B3AEI_A\"/>\n\t<xsd:enumeration value=\"B3AEII\"/>\n\t<xsd:enumeration value=\"B3AEIII_W\"/>\n\t<xsd:enumeration value=\"B3AEIII_A\"/>\n\t<xsd:enumeration value=\"B3AFI_W\"/>\n\t<xsd:enumeration value=\"B3AFI_A\"/>\n\t<xsd:enumeration value=\"B3AFII_W\"/>\n\t<xsd:enumeration value=\"B3AFII_A\"/>\n\t<xsd:enumeration value=\"B3AFIII_W\"/>\n\t<xsd:enumeration value=\"B3AFIII_A\"/>\n\t<xsd:enumeration value=\"B3AFIV_W\"/>\n\t<xsd:enumeration value=\"B3AFIV_A\"/>\n\t<xsd:enumeration value=\"B3AG\"/>\n\t<xsd:enumeration value=\"B3AH\"/>\n\t<xsd:enumeration value=\"B3PAI\"/>\n\t<xsd:enumeration value=\"B3PAII\"/>\n\t<xsd:enumeration value=\"B3PAIII\"/>\n\t<xsd:enumeration value=\"B3PAIV\"/>\n\t<xsd:enumeration value=\"B3PAV\"/>\n\t<xsd:enumeration value=\"B3PAVI\"/>\n\t<xsd:enumeration value=\"B3PAVII\"/>\n\t<xsd:enumeration value=\"B3PB\"/>\n\t<xsd:enumeration value=\"B3PCI\"/>\n\t<xsd:enumeration value=\"B3PCII\"/>\n\t<xsd:enumeration value=\"B3PCIII\"/>\n\t<xsd:enumeration value=\"B3PCIV\"/>\n\t<xsd:enumeration value=\"B3PCV\"/>\n\t<xsd:enumeration value=\"B3PCVI\"/>\n\t<xsd:enumeration value=\"B3PCVII\"/>\n\t<xsd:enumeration value=\"B3PCVIII\"/>\n\t<xsd:enumeration value=\"B3PDI\"/>\n\t<xsd:enumeration value=\"B3PDII\"/>\n\t<xsd:enumeration value=\"B3PDIII\"/>\n\t<xsd:enumeration value=\"B3PDIV\"/>\n\t<xsd:enumeration value=\"B3PDV\"/>\n\t<xsd:enumeration value=\"B3PDVI\"/>\n\t<xsd:enumeration value=\"B3PE1\"/>\n\t<xsd:enumeration value=\"B3PE2\"/>\n\t<xsd:enumeration value=\"B3PFI\"/>\n\t<xsd:enumeration value=\"B3PFII\"/>\n\t<xsd:enumeration value=\"B3PFIII\"/>\n\t<xsd:enumeration value=\"B3PG\"/>\n\t<xsd:enumeration value=\"B3PHI11_1\"/>\n\t<xsd:enumeration value=\"B3PHI11_2\"/>\n\t<xsd:enumeration value=\"B3PHI22_1\"/>\n\t<xsd:enumeration value=\"B3PHI22_2\"/>\n\t<xsd:enumeration value=\"B3PHI33_1\"/>\n\t<xsd:enumeration value=\"B3PHI33_2\"/>\n\t<xsd:enumeration value=\"B3PHII1\"/>\n\t<xsd:enumeration value=\"B3PHII2\"/>\n\t<xsd:enumeration value=\"B3PHIII1\"/>\n\t<xsd:enumeration value=\"B3PHIII2\"/>\n\t<xsd:enumeration value=\"B3PHIV\"/>\n\t<xsd:enumeration value=\"B3PHV1\"/>\n\t<xsd:enumeration value=\"B3PHV22_1\"/>\n\t<xsd:enumeration value=\"B3PHV22_2\"/>\n\t<xsd:enumeration value=\"B3PHVI\"/>\n\t<xsd:enumeration value=\"B3PI1\"/>\n\t<xsd:enumeration value=\"B3PI2\"/>\n\t<xsd:enumeration value=\"B3PI3\"/>\n\t<xsd:enumeration value=\"R3OII1\"/>\n\t<xsd:enumeration value=\"R3OII22_1\"/>\n\t<xsd:enumeration value=\"R3OII22_2\"/>\n\t<xsd:enumeration value=\"R3OII22_3\"/>\n\t<xsd:enumeration value=\"R3OII33_1\"/>\n\t<xsd:enumeration value=\"R3OII33_2\"/>\n\t<xsd:enumeration value=\"R3OII33_3\"/>\n\t<xsd:enumeration value=\"R3OII33_4\"/>\n\t<xsd:enumeration value=\"R3OII_4\"/>\n\t<xsd:enumeration value=\"R3OII_5\"/>\n\t<xsd:enumeration value=\"R3OIII\"/>\n\t<xsd:enumeration value=\"R3OIV_1\"/>\n\t<xsd:enumeration value=\"R3OIV_2\"/>\n\t<xsd:enumeration value=\"R3OV1\"/>\n\t<xsd:enumeration value=\"R3OV2\"/>\n\t<xsd:enumeration value=\"R3OV3\"/>\n\t<xsd:enumeration value=\"R3OV4\"/>\n\t<xsd:enumeration value=\"R3OVI\"/>\n\t<xsd:enumeration value=\"R3OVIII\"/>\n\t<xsd:enumeration value=\"R3OIX\"/>\n\t<xsd:enumeration value=\"R3OXI\"/>\n\t<xsd:enumeration value=\"R3OXII\"/>\n\t<xsd:enumeration value=\"R3OXIV\"/>\n\t<xsd:enumeration value=\"R3OXV\"/>\n\t<xsd:enumeration value=\"R3MI1\"/>\n\t<xsd:enumeration value=\"R3MI2\"/>\n\t<xsd:enumeration value=\"R3MI3\"/>\n\t<xsd:enumeration value=\"R3MI4\"/>\n\t<xsd:enumeration value=\"R3MII1\"/>\n\t<xsd:enumeration value=\"R3MII2\"/>\n\t<xsd:enumeration value=\"R3MIII\"/>\n\t<xsd:enumeration value=\"R3MIV11_1\"/>\n\t<xsd:enumeration value=\"R3MIV11_2\"/>\n\t<xsd:enumeration value=\"R3MIV22_1\"/>\n\t<xsd:enumeration value=\"R3MIV22_2\"/>\n\t<xsd:enumeration value=\"R3MV1\"/>\n\t<xsd:enumeration value=\"R3MV2\"/>\n\t<xsd:enumeration value=\"R3MVI\"/>\n\t<xsd:enumeration value=\"R3MVII11_1\"/>\n\t<xsd:enumeration value=\"R3MVII11_2\"/>\n\t<xsd:enumeration value=\"R3MVII2\"/>\n\t<xsd:enumeration value=\"R3MVII3\"/>\n\t<xsd:enumeration value=\"R3MVIII\"/>\n\t<xsd:enumeration value=\"R3MIX\"/>\n\t<xsd:enumeration value=\"R3ZI1\"/>\n\t<xsd:enumeration value=\"R3ZI2\"/>\n\t<xsd:enumeration value=\"R3ZI3\"/>\n\t<xsd:enumeration value=\"R3ZI4\"/>\n\t<xsd:enumeration value=\"R3ZII1\"/>\n\t<xsd:enumeration value=\"R3ZII22_1\"/>\n\t<xsd:enumeration value=\"R3ZII22_2\"/>\n\t<xsd:enumeration value=\"R3ZII22_3\"/>\n\t<xsd:enumeration value=\"R3ZII33_1\"/>\n\t<xsd:enumeration value=\"R3ZII33_2\"/>\n\t<xsd:enumeration value=\"R3ZII33_3\"/>\n\t<xsd:enumeration value=\"R3ZII33_4\"/>\n\t<xsd:enumeration value=\"R3ZII4\"/>\n\t<xsd:enumeration value=\"R3ZII5\"/>\n\t<xsd:enumeration value=\"R3ZIII\"/>\n\t<xsd:enumeration value=\"R3ZIV\"/>\n\t<xsd:enumeration value=\"R3ZV\"/>\n\t<xsd:enumeration value=\"R3ZV11_1\"/>\n\t<xsd:enumeration value=\"R3ZV11_2\"/>\n\t<xsd:enumeration value=\"R3ZV22_1\"/>\n\t<xsd:enumeration value=\"R3ZV22_2\"/>\n\t<xsd:enumeration value=\"R3ZVI11_1\"/>\n\t<xsd:enumeration value=\"R3ZVI11_2\"/>\n\t<xsd:enumeration value=\"R3ZVI22_1\"/>\n\t<xsd:enumeration value=\"R3ZVI22_2\"/>\n\t<xsd:enumeration value=\"R3ZVI33_1\"/>\n\t<xsd:enumeration value=\"R3ZVI33_2\"/>\n\t<xsd:enumeration value=\"R3ZVII\"/>\n\t<xsd:enumeration value=\"R3ZVIII11_1\"/>\n\t<xsd:enumeration value=\"R3ZVIII11_2\"/>\n\t<xsd:enumeration value=\"R3ZVIII2\"/>\n\t<xsd:enumeration value=\"R3ZVIII3\"/>\n\t<xsd:enumeration value=\"R3ZIX1\"/>\n\t<xsd:enumeration value=\"R3ZIX2\"/>\n\t<xsd:enumeration value=\"R3ZIX3\"/>\n\t<xsd:enumeration value=\"R3ZIX4\"/>\n\t<xsd:enumeration value=\"R3ZX\"/>\n\t<xsd:enumeration value=\"R3ZXI\"/>\n\t<xsd:enumeration value=\"R3ZXII\"/>\n\t<xsd:enumeration value=\"INNE\"/>\n      </xsd:restriction>\n   </xsd:simpleType>"]
["MapKontaPP","   <xsd:simpleType name=\"TMapKontaPP\">\n      <xsd:restriction base=\"xsd:string\">\n\t<xsd:enumeration value=\"B6AAI1_W\"/>\n\t<xsd:enumeration value=\"B6AAI1_A\"/>\n\t<xsd:enumeration value=\"B6AAI1_U\"/>\n\t<xsd:enumeration value=\"B6AAII1a_W\"/>\n\t<xsd:enumeration value=\"B6AAII1a_A\"/>\n\t<xsd:enumeration value=\"B6AAII1b_W\"/>\n\t<xsd:enumeration value=\"B6AAII1b_A\"/>\n\t<xsd:enumeration value=\"B6AAII1b_U\"/>\n\t<xsd:enumeration value=\"B6AAII1c_W\"/>\n\t<xsd:enumeration value=\"B6AAII1c_A\"/>\n\t<xsd:enumeration value=\"B6AAII1c_U\"/>\n\t<xsd:enumeration value=\"B6AAII1d_W\"/>\n\t<xsd:enumeration value=\"B6AAII1d_A\"/>\n\t<xsd:enumeration value=\"B6AAII1d_U\"/>\n\t<xsd:enumeration value=\"B6AAII1e_W\"/>\n\t<xsd:enumeration value=\"B6AAII1e_A\"/>\n\t<xsd:enumeration value=\"B6AAII1e_U\"/>\n\t<xsd:enumeration value=\"B6AAII2_W\"/>\n\t<xsd:enumeration value=\"B6AAII2_A\"/>\n\t<xsd:enumeration value=\"B6AAII3_W\"/>\n\t<xsd:enumeration value=\"B6AAII3_A\"/>\n\t<xsd:enumeration value=\"B6AAIII_W\"/>\n\t<xsd:enumeration value=\"B6AAIII_A\"/>\n\t<xsd:enumeration value=\"B6AAIV1_W\"/>\n\t<xsd:enumeration value=\"B6AAIV1_A\"/>\n\t<xsd:enumeration value=\"B6AAIV1_U\"/>\n\t<xsd:enumeration value=\"B6AAIV2_W\"/>\n\t<xsd:enumeration value=\"B6AAIV2_A\"/>\n\t<xsd:enumeration value=\"B6AAIV2_U\"/>\n\t<xsd:enumeration value=\"B6AAIV3_uia_W\"/>\n\t<xsd:enumeration value=\"B6AAIV3_uia_A\"/>\n\t<xsd:enumeration value=\"B6AAIV3_ipw_W\"/>\n\t<xsd:enumeration value=\"B6AAIV3_ipw_A\"/>\n\t<xsd:enumeration value=\"B6AAIV3_up_W\"/>\n\t<xsd:enumeration value=\"B6AAIV3_up_A\"/>\n\t<xsd:enumeration value=\"B6AAIV3_inne_W\"/>\n\t<xsd:enumeration value=\"B6AAIV3_inne_A\"/>\n\t<xsd:enumeration value=\"B6AAIV4_W\"/>\n\t<xsd:enumeration value=\"B6AAIV4_A\"/>\n\t<xsd:enumeration value=\"B6AAV_W\"/>\n\t<xsd:enumeration value=\"B6AAV_A\"/>\n\t<xsd:enumeration value=\"B6ABI1_W\"/>\n\t<xsd:enumeration value=\"B6ABI1_OCE\"/>\n\t<xsd:enumeration value=\"B6ABI1_A\"/>\n\t<xsd:enumeration value=\"B6ABI2_W\"/>\n\t<xsd:enumeration value=\"B6ABI2_OCE\"/>\n\t<xsd:enumeration value=\"B6ABI_A\"/>\n\t<xsd:enumeration value=\"B6ABI3_W\"/>\n\t<xsd:enumeration value=\"B6ABI3_A\"/>\n\t<xsd:enumeration value=\"B6ABII_W\"/>\n\t<xsd:enumeration value=\"B6ABII_A\"/>\n\t<xsd:enumeration value=\"B6ABIII_uia_W\"/>\n\t<xsd:enumeration value=\"B6ABIII_uia_A\"/>\n\t<xsd:enumeration value=\"B6ABIII_ipw_W\"/>\n\t<xsd:enumeration value=\"B6ABIII_ipw_A\"/>\n\t<xsd:enumeration value=\"B6ABIII_up_W\"/>\n\t<xsd:enumeration value=\"B6ABIII_up_A\"/>\n\t<xsd:enumeration value=\"B6ABIII_inne_W\"/>\n\t<xsd:enumeration value=\"B6ABIII_inne_A\"/>\n\t<xsd:enumeration value=\"B6ABIV_W\"/>\n\t<xsd:enumeration value=\"B6ABIV_A\"/>\n\t<xsd:enumeration value=\"B6AC\"/>\n\t<xsd:enumeration value=\"B6PAI\"/>\n\t<xsd:enumeration value=\"B6PAII\"/>\n\t<xsd:enumeration value=\"B6PAIII\"/>\n\t<xsd:enumeration value=\"B6PAIV\"/>\n\t<xsd:enumeration value=\"B6PBI\"/>\n\t<xsd:enumeration value=\"B6PBII\"/>\n\t<xsd:enumeration value=\"B6PBIII\"/>\n\t<xsd:enumeration value=\"B6PBIV\"/>\n\t<xsd:enumeration value=\"R6AI_darowizny_PRYW\"/>\n\t<xsd:enumeration value=\"R6AI_darowizny_PUBL\"/>\n\t<xsd:enumeration value=\"R6AI_dotacje\"/>\n\t<xsd:enumeration value=\"R6AI_subwencje\"/>\n\t<xsd:enumeration value=\"R6AI_ofiarnosc\"/>\n\t<xsd:enumeration value=\"R6AI_poddoch\"/>\n\t<xsd:enumeration value=\"R6AI_SZ\"/>\n\t<xsd:enumeration value=\"R6AI_inne_PRYW\"/>\n\t<xsd:enumeration value=\"R6AI_inne_PUBL\"/>\n\t<xsd:enumeration value=\"R6AII_sprzedaz\"/>\n\t<xsd:enumeration value=\"R6AII_inne\"/>\n\t<xsd:enumeration value=\"R6AIII_skladki\"/>\n\t<xsd:enumeration value=\"R6AIII_inne\"/>\n\t<xsd:enumeration value=\"R6BI_poddoch\"/>\n\t<xsd:enumeration value=\"R6BII_poddoch\"/>\n\t<xsd:enumeration value=\"R6BIII\"/>\n\t<xsd:enumeration value=\"R6DI\"/>\n\t<xsd:enumeration value=\"R6EI\"/>\n\t<xsd:enumeration value=\"R6G\"/>\n\t<xsd:enumeration value=\"R6I\"/>\n\t<xsd:enumeration value=\"R6II\"/>\n\t<xsd:enumeration value=\"R6III\"/>\n\t<xsd:enumeration value=\"R6IV\"/>\n\t<xsd:enumeration value=\"R6JI\"/>\n\t<xsd:enumeration value=\"R6JII\"/>\n\t<xsd:enumeration value=\"R6JIII\"/>\n\t<xsd:enumeration value=\"R6KI\"/>\n\t<xsd:enumeration value=\"R6KII\"/>\n\t<xsd:enumeration value=\"R6KIII\"/>\n\t<xsd:enumeration value=\"R6KIV\"/>\n\t<xsd:enumeration value=\"R6KVI_RK\"/>\n\t<xsd:enumeration value=\"R6KVI_POZ\"/>\n\t<xsd:enumeration value=\"R6LI\"/>\n\t<xsd:enumeration value=\"R6LII\"/>\n\t<xsd:enumeration value=\"R6LIII\"/>\n\t<xsd:enumeration value=\"R6LV_RK\"/>\n\t<xsd:enumeration value=\"R6LV_POZ\"/>\n\t<xsd:enumeration value=\"R6N\"/>\n\t<xsd:enumeration value=\"INNE\"/>\n      </xsd:restriction>\n   </xsd:simpleType>"]
["MapKontaFI","   <xsd:simpleType name=\"TMapKontaFI\">\n      <xsd:restriction base=\"xsd:string\">\n\t<xsd:enumeration value=\"BFI_I1\"/>\n\t<xsd:enumeration value=\"BFI_I2\"/>\n\t<xsd:enumeration value=\"BFI_I3\"/>\n\t<xsd:enumeration value=\"BFI_I4\"/>\n\t<xsd:enumeration value=\"BFI_I5\"/>\n\t<xsd:enumeration value=\"BFI_I7\"/>\n\t<xsd:enumeration value=\"BFI_II\"/>\n\t<xsd:enumeration value=\"BFI_IV1A\"/>\n\t<xsd:enumeration value=\"BFI_IV1B\"/>\n\t<xsd:enumeration value=\"BFI_IV2\"/>\n\t<xsd:enumeration value=\"BFI_V1\"/>\n\t<xsd:enumeration value=\"BFI_V2\"/>\n\t<xsd:enumeration value=\"BFI_VI\"/>\n\t<xsd:enumeration value=\"RFI_I1\"/>\n\t<xsd:enumeration value=\"RFI_I2\"/>\n\t<xsd:enumeration value=\"RFI_I3\"/>\n\t<xsd:enumeration value=\"RFI_I4\"/>\n\t<xsd:enumeration value=\"RFI_I5\"/>\n\t<xsd:enumeration value=\"RFI_II1A\"/>\n\t<xsd:enumeration value=\"RFI_II1B\"/>\n\t<xsd:enumeration value=\"RFI_II2\"/>\n\t<xsd:enumeration value=\"RFI_II3\"/>\n\t<xsd:enumeration value=\"RFI_II4\"/>\n\t<xsd:enumeration value=\"RFI_II5\"/>\n\t<xsd:enumeration value=\"RFI_II6\"/>\n\t<xsd:enumeration value=\"RFI_II7\"/>\n\t<xsd:enumeration value=\"RFI_II8\"/>\n\t<xsd:enumeration value=\"RFI_II9\"/>\n\t<xsd:enumeration value=\"RFI_II10\"/>\n\t<xsd:enumeration value=\"RFI_II11\"/>\n\t<xsd:enumeration value=\"RFI_II12\"/>\n\t<xsd:enumeration value=\"RFI_II13\"/>\n\t<xsd:enumeration value=\"RFI_III\"/>\n\t<xsd:enumeration value=\"RFI_VI1A\"/>\n\t<xsd:enumeration value=\"RFI_VI1B\"/>\n\t<xsd:enumeration value=\"RFI_VI2A\"/>\n\t<xsd:enumeration value=\"RFI_VI2B\"/>\n\t<xsd:enumeration value=\"RFI_PD\"/>\n\t<xsd:enumeration value=\"INNE\"/>\n      </xsd:restriction>\n   </xsd:simpleType>\n   "]
["MapKontaDM","   <xsd:simpleType name=\"TMapKontaDM\">\n      <xsd:restriction base=\"xsd:string\">\n\t<xsd:enumeration value=\"BDMA_I1\"/>\n\t<xsd:enumeration value=\"BDMA_I2\"/>\n\t<xsd:enumeration value=\"BDMA_I3\"/>\n\t<xsd:enumeration value=\"BDMA_I4\"/>\n\t<xsd:enumeration value=\"BDMA_II1\"/>\n\t<xsd:enumeration value=\"BDMA_II2\"/>\n\t<xsd:enumeration value=\"BDMA_II3A\"/>\n\t<xsd:enumeration value=\"BDMA_II3B\"/>\n\t<xsd:enumeration value=\"BDMA_II4\"/>\n\t<xsd:enumeration value=\"BDMA_II5\"/>\n\t<xsd:enumeration value=\"BDMA_II5A\"/>\n\t<xsd:enumeration value=\"BDMA_II6\"/>\n\t<xsd:enumeration value=\"BDMA_II7\"/>\n\t<xsd:enumeration value=\"BDMA_II8\"/>\n\t<xsd:enumeration value=\"BDMA_II9\"/>\n\t<xsd:enumeration value=\"BDMA_II10\"/>\n\t<xsd:enumeration value=\"BDMA_II11\"/>\n\t<xsd:enumeration value=\"BDMA_II12\"/>\n\t<xsd:enumeration value=\"BDMA_III1\"/>\n\t<xsd:enumeration value=\"BDMA_III2\"/>\n\t<xsd:enumeration value=\"BDMA_III3\"/>\n\t<xsd:enumeration value=\"BDMA_III4\"/>\n\t<xsd:enumeration value=\"BDMA_III5\"/>\n\t<xsd:enumeration value=\"BDMA_III6\"/>\n\t<xsd:enumeration value=\"BDMA_III7\"/>\n\t<xsd:enumeration value=\"BDMA_III8\"/>\n\t<xsd:enumeration value=\"BDMA_IV\"/>\n\t<xsd:enumeration value=\"BDMA_IVA1\"/>\n\t<xsd:enumeration value=\"BDMA_IVA2\"/>\n\t<xsd:enumeration value=\"BDMA_IVA3\"/>\n\t<xsd:enumeration value=\"BDMA_IVA4\"/>\n\t<xsd:enumeration value=\"BDMA_IVA5\"/>\n\t<xsd:enumeration value=\"BDMA_V1\"/>\n\t<xsd:enumeration value=\"BDMA_V2\"/>\n\t<xsd:enumeration value=\"BDMA_V3\"/>\n\t<xsd:enumeration value=\"BDMA_V4\"/>\n\t<xsd:enumeration value=\"BDMA_VI1A\"/>\n\t<xsd:enumeration value=\"BDMA_VI1B\"/>\n\t<xsd:enumeration value=\"BDMA_VI1C\"/>\n\t<xsd:enumeration value=\"BDMA_VI1D\"/>\n\t<xsd:enumeration value=\"BDMA_VI1E\"/>\n\t<xsd:enumeration value=\"BDMA_VI2\"/>\n\t<xsd:enumeration value=\"BDMA_VI3\"/>\n\t<xsd:enumeration value=\"BDMA_VI4\"/>\n\t<xsd:enumeration value=\"BDMA_VI5\"/>\n\t<xsd:enumeration value=\"BDMA_VI6\"/>\n\t<xsd:enumeration value=\"BDMA_VI7\"/>\n\t<xsd:enumeration value=\"BDMA_VII\"/>\n\t<xsd:enumeration value=\"BDMA_VIII1\"/>\n\t<xsd:enumeration value=\"BDMA_VIII2\"/>\n\t<xsd:enumeration value=\"BDMA_VIII3\"/>\n\t<xsd:enumeration value=\"BDMA_VIII4\"/>\n\t<xsd:enumeration value=\"BDMA_VIII5\"/>\n\t<xsd:enumeration value=\"BDMA_IX1\"/>\n\t<xsd:enumeration value=\"BDMA_IX2A\"/>\n\t<xsd:enumeration value=\"BDMA_IX2B\"/>\n\t<xsd:enumeration value=\"BDMA_IX3\"/>\n\t<xsd:enumeration value=\"BDMA_IX4\"/>\n\t<xsd:enumeration value=\"BDMA_X1A\"/>\n\t<xsd:enumeration value=\"BDMA_X1B\"/>\n\t<xsd:enumeration value=\"BDMA_X1C\"/>\n\t<xsd:enumeration value=\"BDMA_X1D\"/>\n\t<xsd:enumeration value=\"BDMA_X2\"/>\n\t<xsd:enumeration value=\"BDMA_X3\"/>\n\t<xsd:enumeration value=\"BDMA_XI1\"/>\n\t<xsd:enumeration value=\"BDMA_XI2\"/>\n\t<xsd:enumeration value=\"BDMA_XII\"/>\n\t<xsd:enumeration value=\"BDMA_XIII\"/>\n\t<xsd:enumeration value=\"BDMP_I1\"/>\n\t<xsd:enumeration value=\"BDMP_I2\"/>\n\t<xsd:enumeration value=\"BDMP_I3A\"/>\n\t<xsd:enumeration value=\"BDMP_I3B\"/>\n\t<xsd:enumeration value=\"BDMP_I4\"/>\n\t<xsd:enumeration value=\"BDMP_I5\"/>\n\t<xsd:enumeration value=\"BDMP_I5A\"/>\n\t<xsd:enumeration value=\"BDMP_I6\"/>\n\t<xsd:enumeration value=\"BDMP_I7\"/>\n\t<xsd:enumeration value=\"BDMP_I8A\"/>\n\t<xsd:enumeration value=\"BDMP_I8B\"/>\n\t<xsd:enumeration value=\"BDMP_I9\"/>\n\t<xsd:enumeration value=\"BDMP_I9A\"/>\n\t<xsd:enumeration value=\"BDMP_I10\"/>\n\t<xsd:enumeration value=\"BDMP_I11\"/>\n\t<xsd:enumeration value=\"BDMP_I12\"/>\n\t<xsd:enumeration value=\"BDMP_I13\"/>\n\t<xsd:enumeration value=\"BDMP_I14\"/>\n\t<xsd:enumeration value=\"BDMP_I15\"/>\n\t<xsd:enumeration value=\"BDMP_I16\"/>\n\t<xsd:enumeration value=\"BDMP_II1A\"/>\n\t<xsd:enumeration value=\"BDMP_II1B\"/>\n\t<xsd:enumeration value=\"BDMP_II2A\"/>\n\t<xsd:enumeration value=\"BDMP_II2B\"/>\n\t<xsd:enumeration value=\"BDMP_II3\"/>\n\t<xsd:enumeration value=\"BDMP_II4\"/>\n\t<xsd:enumeration value=\"BDMP_II5A\"/>\n\t<xsd:enumeration value=\"BDMP_II5B\"/>\n\t<xsd:enumeration value=\"BDMP_II6\"/>\n\t<xsd:enumeration value=\"BDMP_III1\"/>\n\t<xsd:enumeration value=\"BDMP_III2A\"/>\n\t<xsd:enumeration value=\"BDMP_III2B\"/>\n\t<xsd:enumeration value=\"BDMP_IV1\"/>\n\t<xsd:enumeration value=\"BDMP_IV2A\"/>\n\t<xsd:enumeration value=\"BDMP_IV2B\"/>\n\t<xsd:enumeration value=\"BDMP_IV3A\"/>\n\t<xsd:enumeration value=\"BDMP_IV3B\"/>\n\t<xsd:enumeration value=\"BDMP_V\"/>\n\t<xsd:enumeration value=\"BDMP_VI1\"/>\n\t<xsd:enumeration value=\"BDMP_VI4A\"/>\n\t<xsd:enumeration value=\"BDMP_VI4B\"/>\n\t<xsd:enumeration value=\"BDMP_VI4C\"/>\n\t<xsd:enumeration value=\"BDMP_VI4D\"/>\n\t<xsd:enumeration value=\"BDMP_VI4E\"/>\n\t<xsd:enumeration value=\"BDMP_VI5\"/>\n\t<xsd:enumeration value=\"BDMP_VI6\"/>\n\t<xsd:enumeration value=\"BDMP_VI7A\"/>\n\t<xsd:enumeration value=\"BDMP_VI7B\"/>\n\t<xsd:enumeration value=\"BDMP_VI8\"/>\n\t<xsd:enumeration value=\"BDMP_VI9\"/>\n\t<xsd:enumeration value=\"RDM_I1A_pow\"/>\n\t<xsd:enumeration value=\"RDM_I1B_pow\"/>\n\t<xsd:enumeration value=\"RDM_I1C_pow\"/>\n\t<xsd:enumeration value=\"RDM_I1D_pow\"/>\n\t<xsd:enumeration value=\"RDM_I1E_pow\"/>\n\t<xsd:enumeration value=\"RDM_I1F_pow\"/>\n\t<xsd:enumeration value=\"RDM_I1G_pow\"/>\n\t<xsd:enumeration value=\"RDM_I1H_pow\"/>\n\t<xsd:enumeration value=\"RDM_I2_pow\"/>\n\t<xsd:enumeration value=\"RDM_I1A_poz\"/>\n\t<xsd:enumeration value=\"RDM_I1B_poz\"/>\n\t<xsd:enumeration value=\"RDM_I1C_poz\"/>\n\t<xsd:enumeration value=\"RDM_I1D_poz\"/>\n\t<xsd:enumeration value=\"RDM_I1E_poz\"/>\n\t<xsd:enumeration value=\"RDM_I1F_poz\"/>\n\t<xsd:enumeration value=\"RDM_I1G_poz\"/>\n\t<xsd:enumeration value=\"RDM_I1H_poz\"/>\n\t<xsd:enumeration value=\"RDM_I2_poz\"/>\n\t<xsd:enumeration value=\"RDM_II1\"/>\n\t<xsd:enumeration value=\"RDM_II2\"/>\n\t<xsd:enumeration value=\"RDM_II3\"/>\n\t<xsd:enumeration value=\"RDM_II4\"/>\n\t<xsd:enumeration value=\"RDM_II5\"/>\n\t<xsd:enumeration value=\"RDM_II6\"/>\n\t<xsd:enumeration value=\"RDM_II7\"/>\n\t<xsd:enumeration value=\"RDM_II8\"/>\n\t<xsd:enumeration value=\"RDM_II9\"/>\n\t<xsd:enumeration value=\"RDM_II10\"/>\n\t<xsd:enumeration value=\"RDM_II11\"/>\n\t<xsd:enumeration value=\"RDM_II12\"/>\n\t<xsd:enumeration value=\"RDM_II13\"/>\n\t<xsd:enumeration value=\"RDM_II14\"/>\n\t<xsd:enumeration value=\"RDM_IV1_pow\"/>\n\t<xsd:enumeration value=\"RDM_IV1_poz\"/>\n\t<xsd:enumeration value=\"RDM_IV2_pow\"/>\n\t<xsd:enumeration value=\"RDM_IV2_poz\"/>\n\t<xsd:enumeration value=\"RDM_IV3\"/>\n\t<xsd:enumeration value=\"RDM_IV4\"/>\n\t<xsd:enumeration value=\"RDM_IV5\"/>\n\t<xsd:enumeration value=\"RDM_V1\"/>\n\t<xsd:enumeration value=\"RDM_V2\"/>\n\t<xsd:enumeration value=\"RDM_V3\"/>\n\t<xsd:enumeration value=\"RDM_VII1_pow\"/>\n\t<xsd:enumeration value=\"RDM_VII1_poz\"/>\n\t<xsd:enumeration value=\"RDM_VII2\"/>\n\t<xsd:enumeration value=\"RDM_VII3\"/>\n\t<xsd:enumeration value=\"RDM_VII4\"/>\n\t<xsd:enumeration value=\"RDM_VII5\"/>\n\t<xsd:enumeration value=\"RDM_VIII1\"/>\n\t<xsd:enumeration value=\"RDM_VIII2\"/>\n\t<xsd:enumeration value=\"RDM_VIII3\"/>\n\t<xsd:enumeration value=\"RDM_VIII4\"/>\n\t<xsd:enumeration value=\"RDM_X1_pow\"/>\n\t<xsd:enumeration value=\"RDM_X1_poz\"/>\n\t<xsd:enumeration value=\"RDM_X2_pow\"/>\n\t<xsd:enumeration value=\"RDM_X2_poz\"/>\n\t<xsd:enumeration value=\"RDM_X3\"/>\n\t<xsd:enumeration value=\"RDM_X4\"/>\n\t<xsd:enumeration value=\"RDM_X5\"/>\n\t<xsd:enumeration value=\"RDM_X6\"/>\n\t<xsd:enumeration value=\"RDM_XI1\"/>\n\t<xsd:enumeration value=\"RDM_XI2\"/>\n\t<xsd:enumeration value=\"RDM_XI3\"/>\n\t<xsd:enumeration value=\"RDM_XI4\"/>\n\t<xsd:enumeration value=\"RDM_XIII1\"/>\n\t<xsd:enumeration value=\"RDM_XIII2\"/>\n\t<xsd:enumeration value=\"RDM_XIII3\"/>\n\t<xsd:enumeration value=\"RDM_XIII4\"/>\n\t<xsd:enumeration value=\"RDM_XIII5\"/>\n\t<xsd:enumeration value=\"RDM_XIV1\"/>\n\t<xsd:enumeration value=\"RDM_XIV2\"/>\n\t<xsd:enumeration value=\"RDM_XIV3\"/>\n\t<xsd:enumeration value=\"RDM_XIV4\"/>\n\t<xsd:enumeration value=\"RDM_XIV5\"/>\n\t<xsd:enumeration value=\"RDM_XVII1_pow\"/>\n\t<xsd:enumeration value=\"RDM_XVII1_poz\"/>\n\t<xsd:enumeration value=\"RDM_XVII2_pow\"/>\n\t<xsd:enumeration value=\"RDM_XVII2_poz\"/>\n\t<xsd:enumeration value=\"RDM_XVII3\"/>\n\t<xsd:enumeration value=\"RDM_XVII4A\"/>\n\t<xsd:enumeration value=\"RDM_XVII4B\"/>\n\t<xsd:enumeration value=\"RDM_XVII5\"/>\n\t<xsd:enumeration value=\"RDM_XVIII1_pow\"/>\n\t<xsd:enumeration value=\"RDM_XVIII1_poz\"/>\n\t<xsd:enumeration value=\"RDM_XVIII2\"/>\n\t<xsd:enumeration value=\"RDM_XVIII3A\"/>\n\t<xsd:enumeration value=\"RDM_XVIII3B\"/>\n\t<xsd:enumeration value=\"RDM_XVIII4\"/>\n\t<xsd:enumeration value=\"RDM_PD\"/>\n\t<xsd:enumeration value=\"RDM_XXIV\"/>\n\t<xsd:enumeration value=\"INNE\"/>\n      </xsd:restriction>\n   </xsd:simpleType>"]
["MapKontaSKOK","   <xsd:simpleType name=\"TMapKontaSKOK\">\n      <xsd:restriction base=\"xsd:string\">\n\t<xsd:enumeration value=\"BSA_I1\"/>\n\t<xsd:enumeration value=\"BSA_I2\"/>\n\t<xsd:enumeration value=\"BSA_II1A\"/>\n\t<xsd:enumeration value=\"BSA_II1B\"/>\n\t<xsd:enumeration value=\"BSA_II1C\"/>\n\t<xsd:enumeration value=\"BSA_II2A\"/>\n\t<xsd:enumeration value=\"BSA_II2B\"/>\n\t<xsd:enumeration value=\"BSA_II2C\"/>\n\t<xsd:enumeration value=\"BSA_III1\"/>\n\t<xsd:enumeration value=\"BSA_III2\"/>\n\t<xsd:enumeration value=\"BSA_III3\"/>\n\t<xsd:enumeration value=\"BSA_IV1\"/>\n\t<xsd:enumeration value=\"BSA_IV2\"/>\n\t<xsd:enumeration value=\"BSA_IV3\"/>\n\t<xsd:enumeration value=\"BSA_V1\"/>\n\t<xsd:enumeration value=\"BSA_V2\"/>\n\t<xsd:enumeration value=\"BSA_VI\"/>\n\t<xsd:enumeration value=\"BSA_VII\"/>\n\t<xsd:enumeration value=\"BSA_VIII1\"/>\n\t<xsd:enumeration value=\"BSA_VIII2\"/>\n\t<xsd:enumeration value=\"BSA_IX1\"/>\n\t<xsd:enumeration value=\"BSA_IX2\"/>\n\t<xsd:enumeration value=\"BSP_I1A\"/>\n\t<xsd:enumeration value=\"BSP_I1B\"/>\n\t<xsd:enumeration value=\"BSP_I1C\"/>\n\t<xsd:enumeration value=\"BSP_I2A\"/>\n\t<xsd:enumeration value=\"BSP_I2B\"/>\n\t<xsd:enumeration value=\"BSP_I2C\"/>\n\t<xsd:enumeration value=\"BSP_II1\"/>\n\t<xsd:enumeration value=\"BSP_II2\"/>\n\t<xsd:enumeration value=\"BSP_II3\"/>\n\t<xsd:enumeration value=\"BSP_III1\"/>\n\t<xsd:enumeration value=\"BSP_III2\"/>\n\t<xsd:enumeration value=\"BSP_IV\"/>\n\t<xsd:enumeration value=\"BSP_V\"/>\n\t<xsd:enumeration value=\"BSP_VI\"/>\n\t<xsd:enumeration value=\"BSP_VII\"/>\n\t<xsd:enumeration value=\"BSP_VIII\"/>\n\t<xsd:enumeration value=\"BSP_IX\"/>\n\t<xsd:enumeration value=\"BSP_X1\"/>\n\t<xsd:enumeration value=\"BSP_X2\"/>\n\t<xsd:enumeration value=\"BSP_X3\"/>\n\t<xsd:enumeration value=\"BSP_XI\"/>\n\t<xsd:enumeration value=\"BSP_XII\"/>\n\t<xsd:enumeration value=\"RS_I1\"/>\n\t<xsd:enumeration value=\"RS_I2\"/>\n\t<xsd:enumeration value=\"RS_I3\"/>\n\t<xsd:enumeration value=\"RS_I4\"/>\n\t<xsd:enumeration value=\"RS_I5\"/>\n\t<xsd:enumeration value=\"RS_II1\"/>\n\t<xsd:enumeration value=\"RS_II2\"/>\n\t<xsd:enumeration value=\"RS_II3\"/>\n\t<xsd:enumeration value=\"RS_IV\"/>\n\t<xsd:enumeration value=\"RS_V\"/>\n\t<xsd:enumeration value=\"RS_VI\"/>\n\t<xsd:enumeration value=\"RS_VIII1\"/>\n\t<xsd:enumeration value=\"RS_VIII2\"/>\n\t<xsd:enumeration value=\"RS_VIII3\"/>\n\t<xsd:enumeration value=\"RS_VIII4\"/>\n\t<xsd:enumeration value=\"RS_VIII5\"/>\n\t<xsd:enumeration value=\"RS_IX1\"/>\n\t<xsd:enumeration value=\"RS_IX2\"/>\n\t<xsd:enumeration value=\"RS_X1\"/>\n\t<xsd:enumeration value=\"RS_X2\"/>\n\t<xsd:enumeration value=\"RS_XII1\"/>\n\t<xsd:enumeration value=\"RS_XII2\"/>\n\t<xsd:enumeration value=\"RS_XIII1\"/>\n\t<xsd:enumeration value=\"RS_XIII2\"/>\n\t<xsd:enumeration value=\"RS_XIV1\"/>\n\t<xsd:enumeration value=\"RS_XIV2\"/>\n\t<xsd:enumeration value=\"RS_XIV3\"/>\n\t<xsd:enumeration value=\"RS_XIV4\"/>\n\t<xsd:enumeration value=\"RS_XIV5\"/>\n\t<xsd:enumeration value=\"RS_XIV6\"/>\n\t<xsd:enumeration value=\"RS_XIV7\"/>\n\t<xsd:enumeration value=\"RS_XV1\"/>\n\t<xsd:enumeration value=\"RS_XV2\"/>\n\t<xsd:enumeration value=\"RS_XVI1\"/>\n\t<xsd:enumeration value=\"RS_XVI2\"/>\n\t<xsd:enumeration value=\"RS_XVI3\"/>\n\t<xsd:enumeration value=\"RS_XVIII1\"/>\n\t<xsd:enumeration value=\"RS_XVIII2\"/>\n\t<xsd:enumeration value=\"RS_XX_PD\"/>\n\t<xsd:enumeration value=\"RS_XXI\"/>\n\t<xsd:enumeration value=\"INNE\"/>\n      </xsd:restriction>\n   </xsd:simpleType>"]
["MapKontaPOZ","   <xsd:simpleType name=\"TMapKontaPOZ\">\n      <xsd:restriction base=\"xsd:string\">\n\t<xsd:enumeration value=\"BAAI1_W\"/>\n\t<xsd:enumeration value=\"BAAI1_A\"/>\n\t<xsd:enumeration value=\"BAAI1_U\"/>\n\t<xsd:enumeration value=\"BAAI2_W\"/>\n\t<xsd:enumeration value=\"BAAI2_A\"/>\n\t<xsd:enumeration value=\"BAAI2_U\"/>\n\t<xsd:enumeration value=\"BAAI3_W\"/>\n\t<xsd:enumeration value=\"BAAI3_A\"/>\n\t<xsd:enumeration value=\"BAAI3_U\"/>\n\t<xsd:enumeration value=\"BAAI4_W\"/>\n\t<xsd:enumeration value=\"BAAI4_A\"/>\n\t<xsd:enumeration value=\"BAAII1a_W\"/>\n\t<xsd:enumeration value=\"BAAII1a_A\"/>\n\t<xsd:enumeration value=\"BAAII1a_U\"/>\n\t<xsd:enumeration value=\"BAAII1b_W\"/>\n\t<xsd:enumeration value=\"BAAII1b_A\"/>\n\t<xsd:enumeration value=\"BAAII1b_U\"/>\n\t<xsd:enumeration value=\"BAAII1c_W\"/>\n\t<xsd:enumeration value=\"BAAII1c_A\"/>\n\t<xsd:enumeration value=\"BAAII1c_U\"/>\n\t<xsd:enumeration value=\"BAAII1d_W\"/>\n\t<xsd:enumeration value=\"BAAII1d_A\"/>\n\t<xsd:enumeration value=\"BAAII1d_U\"/>\n\t<xsd:enumeration value=\"BAAII1e_W\"/>\n\t<xsd:enumeration value=\"BAAII1e_A\"/>\n\t<xsd:enumeration value=\"BAAII1e_U\"/>\n\t<xsd:enumeration value=\"BAAII2_W\"/>\n\t<xsd:enumeration value=\"BAAII2_A\"/>\n\t<xsd:enumeration value=\"BAAII3_W\"/>\n\t<xsd:enumeration value=\"BAAII3_A\"/>\n\t<xsd:enumeration value=\"BAAIII1_W\"/>\n\t<xsd:enumeration value=\"BAAIII1_A\"/>\n\t<xsd:enumeration value=\"BAAIII2_W\"/>\n\t<xsd:enumeration value=\"BAAIII2_A\"/>\n\t<xsd:enumeration value=\"BAAIII3_W\"/>\n\t<xsd:enumeration value=\"BAAIII3_A\"/>\n\t<xsd:enumeration value=\"BAAIV1_W\"/>\n\t<xsd:enumeration value=\"BAAIV1_A\"/>\n\t<xsd:enumeration value=\"BAAIV1_U\"/>\n\t<xsd:enumeration value=\"BAAIV2_W\"/>\n\t<xsd:enumeration value=\"BAAIV2_A\"/>\n\t<xsd:enumeration value=\"BAAIV2_U\"/>\n\t<xsd:enumeration value=\"BAAIV3a_ULA_W\"/>\n\t<xsd:enumeration value=\"BAAIV3a_ULA_A\"/>\n\t<xsd:enumeration value=\"BAAIV3a_IPW_W\"/>\n\t<xsd:enumeration value=\"BAAIV3a_IPW_A\"/>\n\t<xsd:enumeration value=\"BAAIV3a_UP_W\"/>\n\t<xsd:enumeration value=\"BAAIV3a_UP_A\"/>\n\t<xsd:enumeration value=\"BAAIV3a_IDAF_W\"/>\n\t<xsd:enumeration value=\"BAAIV3a_IDAF_A\"/>\n\t<xsd:enumeration value=\"BAAIV3b_ULA_W\"/>\n\t<xsd:enumeration value=\"BAAIV3b_ULA_A\"/>\n\t<xsd:enumeration value=\"BAAIV3b_IPW_W\"/>\n\t<xsd:enumeration value=\"BAAIV3b_IPW_A\"/>\n\t<xsd:enumeration value=\"BAAIV3b_UP_W\"/>\n\t<xsd:enumeration value=\"BAAIV3b_UP_A\"/>\n\t<xsd:enumeration value=\"BAAIV3b_IDAF_W\"/>\n\t<xsd:enumeration value=\"BAAIV3b_IDAF_A\"/>\n\t<xsd:enumeration value=\"BAAIV3c_ULA_W\"/>\n\t<xsd:enumeration value=\"BAAIV3c_ULA_A\"/>\n\t<xsd:enumeration value=\"BAAIV3c_IPW_W\"/>\n\t<xsd:enumeration value=\"BAAIV3c_IPW_A\"/>\n\t<xsd:enumeration value=\"BAAIV3c_UP_W\"/>\n\t<xsd:enumeration value=\"BAAIV3c_UP_A\"/>\n\t<xsd:enumeration value=\"BAAIV3c_IDAF_W\"/>\n\t<xsd:enumeration value=\"BAAIV3c_IDAF_A\"/>\n\t<xsd:enumeration value=\"BAAIV4_W\"/>\n\t<xsd:enumeration value=\"BAAIV4_A\"/>\n\t<xsd:enumeration value=\"BAAV1_W\"/>\n\t<xsd:enumeration value=\"BAAV1_A\"/>\n\t<xsd:enumeration value=\"BAAV2_W\"/>\n\t<xsd:enumeration value=\"BAAV2_A\"/>\n\t<xsd:enumeration value=\"BABI1\"/>\n\t<xsd:enumeration value=\"BABI1_O\"/>\n\t<xsd:enumeration value=\"BABI1_A\"/>\n\t<xsd:enumeration value=\"BABI2\"/>\n\t<xsd:enumeration value=\"BABI2_O\"/>\n\t<xsd:enumeration value=\"BABI2_A\"/>\n\t<xsd:enumeration value=\"BABI3\"/>\n\t<xsd:enumeration value=\"BABI3_O\"/>\n\t<xsd:enumeration value=\"BABI3_A\"/>\n\t<xsd:enumeration value=\"BABI4\"/>\n\t<xsd:enumeration value=\"BABI4_O\"/>\n\t<xsd:enumeration value=\"BABI4_A\"/>\n\t<xsd:enumeration value=\"BABI5\"/>\n\t<xsd:enumeration value=\"BABI5_A\"/>\n\t<xsd:enumeration value=\"BABII1a_D12\"/>\n\t<xsd:enumeration value=\"BABII1a_D12_A\"/>\n\t<xsd:enumeration value=\"BABII1a_P12\"/>\n\t<xsd:enumeration value=\"BABII1a_P12_A\"/>\n\t<xsd:enumeration value=\"BABII1b\"/>\n\t<xsd:enumeration value=\"BABII1b_A\"/>\n\t<xsd:enumeration value=\"BABII2a_D12\"/>\n\t<xsd:enumeration value=\"BABII2a_D12_A\"/>\n\t<xsd:enumeration value=\"BABII2a_P12\"/>\n\t<xsd:enumeration value=\"BABII2a_P12_A\"/>\n\t<xsd:enumeration value=\"BABII2b\"/>\n\t<xsd:enumeration value=\"BABII2b_A\"/>\n\t<xsd:enumeration value=\"BABII3a_D12\"/>\n\t<xsd:enumeration value=\"BABII3a_D12_A\"/>\n\t<xsd:enumeration value=\"BABII3a_P12\"/>\n\t<xsd:enumeration value=\"BABII3a_P12_A\"/>\n\t<xsd:enumeration value=\"BABII3b\"/>\n\t<xsd:enumeration value=\"BABII3b_A\"/>\n\t<xsd:enumeration value=\"BABII3c_W\"/>\n\t<xsd:enumeration value=\"BABII3c_A\"/>\n\t<xsd:enumeration value=\"BABII3d_W\"/>\n\t<xsd:enumeration value=\"BABII3d_A\"/>\n\t<xsd:enumeration value=\"BABIII1a1_ULA_W\"/>\n\t<xsd:enumeration value=\"BABIII1a1_ULA_A\"/>\n\t<xsd:enumeration value=\"BABIII1a2_IPW_W\"/>\n\t<xsd:enumeration value=\"BABIII1a2_IPW_A\"/>\n\t<xsd:enumeration value=\"BABIII1a3_UP_W\"/>\n\t<xsd:enumeration value=\"BABIII1a3_UP_A\"/>\n\t<xsd:enumeration value=\"BABIII1a4_IKAF_W\"/>\n\t<xsd:enumeration value=\"BABIII1a4_IKAF_A\"/>\n\t<xsd:enumeration value=\"BABIII1b1_ULA_W\"/>\n\t<xsd:enumeration value=\"BABIII1b1_ULA_A\"/>\n\t<xsd:enumeration value=\"BABIII1b2_IPW_W\"/>\n\t<xsd:enumeration value=\"BABIII1b2_IPW_A\"/>\n\t<xsd:enumeration value=\"BABIII1b3_UP_W\"/>\n\t<xsd:enumeration value=\"BABIII1b3_UP_A\"/>\n\t<xsd:enumeration value=\"BABIII1b4_IKAF_W\"/>\n\t<xsd:enumeration value=\"BABIII1b4_IKAF_A\"/>\n\t<xsd:enumeration value=\"BABIII1c1_SPKR\"/>\n\t<xsd:enumeration value=\"BABIII1c2_ISP\"/>\n\t<xsd:enumeration value=\"BABIII1c2_ISP_A\"/>\n\t<xsd:enumeration value=\"BABIII1c3_IAP\"/>\n\t<xsd:enumeration value=\"BABIII1c3_IAP_A\"/>\n\t<xsd:enumeration value=\"BABIII2_W\"/>\n\t<xsd:enumeration value=\"BABIII2_A\"/>\n\t<xsd:enumeration value=\"BABIV\"/>\n\t<xsd:enumeration value=\"BABIV_A\"/>\n\t<xsd:enumeration value=\"BAC\"/>\n\t<xsd:enumeration value=\"BAD\"/>\n\t<xsd:enumeration value=\"BPAI\"/>\n\t<xsd:enumeration value=\"BPAIIWS\"/>\n\t<xsd:enumeration value=\"BPAII_INN\"/>\n\t<xsd:enumeration value=\"BPAII_ES_ZP\"/>\n\t<xsd:enumeration value=\"BPAII_ES_ZR\"/>\n\t<xsd:enumeration value=\"BPAIIIAWG\"/>\n\t<xsd:enumeration value=\"BPAIII_INN\"/>\n\t<xsd:enumeration value=\"BPAIVU\"/>\n\t<xsd:enumeration value=\"BPAIVUW\"/>\n\t<xsd:enumeration value=\"BPAIV_INN\"/>\n\t<xsd:enumeration value=\"BPAIV_ES_ZP\"/>\n\t<xsd:enumeration value=\"BPAIV_ES_ZR\"/>\n\t<xsd:enumeration value=\"BPAV\"/>\n\t<xsd:enumeration value=\"BPAV_ES_NZP\"/>\n\t<xsd:enumeration value=\"BPAV_ES_NPR\"/>\n\t<xsd:enumeration value=\"BPAV_ES_NSP\"/>\n\t<xsd:enumeration value=\"BPAV_ES_NSR\"/>\n\t<xsd:enumeration value=\"BPAVI\"/>\n\t<xsd:enumeration value=\"BPAVII\"/>\n\t<xsd:enumeration value=\"BPBI1\"/>\n\t<xsd:enumeration value=\"BPBI2_D\"/>\n\t<xsd:enumeration value=\"BPBI2_K\"/>\n\t<xsd:enumeration value=\"BPBI3_D\"/>\n\t<xsd:enumeration value=\"BPBI3_K\"/>\n\t<xsd:enumeration value=\"BPBII1\"/>\n\t<xsd:enumeration value=\"BPBII2\"/>\n\t<xsd:enumeration value=\"BPBII3a\"/>\n\t<xsd:enumeration value=\"BPBII3b\"/>\n\t<xsd:enumeration value=\"BPBII3c\"/>\n\t<xsd:enumeration value=\"BPBII3d\"/>\n\t<xsd:enumeration value=\"BPBII3e\"/>\n\t<xsd:enumeration value=\"BPBIII1a_D12\"/>\n\t<xsd:enumeration value=\"BPBIII1a_P12\"/>\n\t<xsd:enumeration value=\"BPBIII1b\"/>\n\t<xsd:enumeration value=\"BPBIII2a_D12\"/>\n\t<xsd:enumeration value=\"BPBIII2a_P12\"/>\n\t<xsd:enumeration value=\"BPBIII2b\"/>\n\t<xsd:enumeration value=\"BPBIII3a\"/>\n\t<xsd:enumeration value=\"BPBIII3b\"/>\n\t<xsd:enumeration value=\"BPBIII3c\"/>\n\t<xsd:enumeration value=\"BPBIII3d_D12\"/>\n\t<xsd:enumeration value=\"BPBIII3d_P12\"/>\n\t<xsd:enumeration value=\"BPBIII3e\"/>\n\t<xsd:enumeration value=\"BPBIII3f\"/>\n\t<xsd:enumeration value=\"BPBIII3g\"/>\n\t<xsd:enumeration value=\"BPBIII3h\"/>\n\t<xsd:enumeration value=\"BPBIII3i\"/>\n\t<xsd:enumeration value=\"BPBIII4\"/>\n\t<xsd:enumeration value=\"BPBIV1\"/>\n\t<xsd:enumeration value=\"BPBIV2_D\"/>\n\t<xsd:enumeration value=\"BPBIV2_K\"/>\n\t<xsd:enumeration value=\"RPAI_RKAI_POW\"/>\n\t<xsd:enumeration value=\"RPAI_RKAI_POZ\"/>\n\t<xsd:enumeration value=\"RPAII\"/>\n\t<xsd:enumeration value=\"RPAIII\"/>\n\t<xsd:enumeration value=\"RPAIV_RKAII_POW\"/>\n\t<xsd:enumeration value=\"RPAIV_RKAII_POZ\"/>\n\t<xsd:enumeration value=\"RPBI\"/>\n\t<xsd:enumeration value=\"RPBII\"/>\n\t<xsd:enumeration value=\"RPBIII\"/>\n\t<xsd:enumeration value=\"RPBIV_AKC\"/>\n\t<xsd:enumeration value=\"RPBIV_POZ\"/>\n\t<xsd:enumeration value=\"RPBV\"/>\n\t<xsd:enumeration value=\"RPBVI\"/>\n\t<xsd:enumeration value=\"RPBVI_E\"/>\n\t<xsd:enumeration value=\"RPBVII\"/>\n\t<xsd:enumeration value=\"RPBVIII_RKBII_POW\"/>\n\t<xsd:enumeration value=\"RPBVIII_RKBII_POZ\"/>\n\t<xsd:enumeration value=\"RKBI_POW\"/>\n\t<xsd:enumeration value=\"RKBI_POZ\"/>\n\t<xsd:enumeration value=\"RKD\"/>\n\t<xsd:enumeration value=\"RKE\"/>\n\t<xsd:enumeration value=\"RPDI_RKGI_POW\"/>\n\t<xsd:enumeration value=\"RPDI_RKGI_POZ\"/>\n\t<xsd:enumeration value=\"RPDII_RKGII\"/>\n\t<xsd:enumeration value=\"RPDIII_RKGIII\"/>\n\t<xsd:enumeration value=\"RPDIV_RKGIV\"/>\n\t<xsd:enumeration value=\"RPDIV_RKGIV_ZCP\"/>\n\t<xsd:enumeration value=\"RPDIV_RKGIV_WF\"/>\n\t<xsd:enumeration value=\"RPDIV_RKGIV_P\"/>\n\t<xsd:enumeration value=\"RPEI_RKHI_POW\"/>\n\t<xsd:enumeration value=\"RPEI_RKHI_POZ\"/>\n\t<xsd:enumeration value=\"RPEII_RKHII\"/>\n\t<xsd:enumeration value=\"RPEIII_RKHIII\"/>\n\t<xsd:enumeration value=\"RPEIII_RKHIII_ZCP\"/>\n\t<xsd:enumeration value=\"RPEIII_RKHIII_WF\"/>\n\t<xsd:enumeration value=\"RPEIII_RKHIII_P\"/>\n\t<xsd:enumeration value=\"RPGIa_RKJIa_POW_k\"/>\n\t<xsd:enumeration value=\"RPGIa_RKJIa_POW_p\"/>\n\t<xsd:enumeration value=\"RPGIb_RKJIb_POZ_k\"/>\n\t<xsd:enumeration value=\"RPGIb_RKJIb_POZ_p\"/>\n\t<xsd:enumeration value=\"RPGII_RKJII_POW\"/>\n\t<xsd:enumeration value=\"RPGII_RKJII_POZ\"/>\n\t<xsd:enumeration value=\"RPGIII_RKJIII_POW\"/>\n\t<xsd:enumeration value=\"RPGIII_RKJIII_POZ\"/>\n\t<xsd:enumeration value=\"RPGIV_RKJIV\"/>\n\t<xsd:enumeration value=\"RPGV_RKJV_RK\"/>\n\t<xsd:enumeration value=\"RPGV_RKJV_POZ\"/>\n\t<xsd:enumeration value=\"RPHI_RKKI_POW\"/>\n\t<xsd:enumeration value=\"RPHI_RKKI_POZ\"/>\n\t<xsd:enumeration value=\"RPHII_RKKII_POW\"/>\n\t<xsd:enumeration value=\"RPHII_RKKII_POZ\"/>\n\t<xsd:enumeration value=\"RPHIII_RKKIII\"/>\n\t<xsd:enumeration value=\"RPHIV_RKKIV_RK\"/>\n\t<xsd:enumeration value=\"RPHIV_RKKIV_POZ\"/>\n\t<xsd:enumeration value=\"RPJ_RKM_B\"/>\n\t<xsd:enumeration value=\"RPJ_RKM_O\"/>\n\t<xsd:enumeration value=\"RPK_RKN\"/>\n\t<xsd:enumeration value=\"INNE\"/>\n      </xsd:restriction>\n   </xsd:simpleType>"]
["MapKontaPD","   <xsd:simpleType name=\"TMapKontaPD\">\n      <xsd:restriction base=\"xsd:string\">\n\t<xsd:enumeration value=\"PD1\"/>\n\t<xsd:enumeration value=\"PD1_1\"/>\n\t<xsd:enumeration value=\"PD1_2\"/>\n\t<xsd:enumeration value=\"PD1_3\"/>\n\t<xsd:enumeration value=\"PD2\"/>\n\t<xsd:enumeration value=\"PD4\"/>\n\t<xsd:enumeration value=\"PD4_1\"/>\n\t<xsd:enumeration value=\"PD4_2\"/>\n\t<xsd:enumeration value=\"PD4_3\"/>\n\t<xsd:enumeration value=\"PD5\"/>\n\t<xsd:enumeration value=\"PD7\"/>\n\t<xsd:enumeration value=\"PD8_1\"/>\n\t<xsd:enumeration value=\"PD8_2\"/>\n\t<xsd:enumeration value=\"PD1_PB\"/>\n\t<xsd:enumeration value=\"PD1_PB_1\"/>\n\t<xsd:enumeration value=\"PD1_PB_2\"/>\n\t<xsd:enumeration value=\"PD1_PB_3\"/>\n\t<xsd:enumeration value=\"PD2_PB\"/>\n\t<xsd:enumeration value=\"PD3_PB\"/>\n\t<xsd:enumeration value=\"PD4_PB\"/>\n\t<xsd:enumeration value=\"PD4_PB_1\"/>\n\t<xsd:enumeration value=\"PD4_PB_2\"/>\n\t<xsd:enumeration value=\"PD4_PB_3\"/>\n\t<xsd:enumeration value=\"PD5_PB\"/>\n\t<xsd:enumeration value=\"PD6_PB\"/>\n\t<xsd:enumeration value=\"PD7_PB\"/>\n\t<xsd:enumeration value=\"PD8_PB_1\"/>\n\t<xsd:enumeration value=\"PD8_PB_2\"/>\n      </xsd:restriction>\n   </xsd:simpleType>"]
[]
[]
["Arkusze transformacji (potrzebne do rozdzielania na wejściu I scalania na wyjściu elementów <Zamowienie>)"]
["XsltInput:","<xsl:stylesheet version=\"1.0\"\n    xmlns:xsl=\"http://www.w3.org/1999/XSL/Transform\"\n\txmlns:kr1=\"http://jpk.mf.gov.pl/wzor/2016/03/09/03091/\" \n    xmlns:tns=\"http://jpk.mf.gov.pl/wzor/2024/09/04/09041/\" \n    xmlns:tnx=\"http://jpk.mf.gov.pl/wzor/2024/04/24/04241/\"\n\txmlns:xsi=\"http://www.w3.org/2001/XMLSchema-instance\" \n  >\n\t<xsl:output method='xml' indent=\"yes\" encoding=\"UTF-8\"/>\n<!-- basic: identity copy: -->\n\t<xsl:template match=\"@*|node()\">\n\t\t<xsl:copy><xsl:apply-templates select=\"@*|node()\"/></xsl:copy>\n\t</xsl:template>  \n\t\n\t<xsl:template match=\"@xsi:schemaLocation\"/> <!-- Darujmy sobie ewentualne referencję do schemy (i tak by się nie zgadzała) -->\n\t\n<!-- * Transformacja aktualnej JPK_KR_PD * -->\t\n<!-- \"spłaszczenie\" struktury ZOiS/ZOiSx w wiersze ZOiS -->\n\t<xsl:template match=\"tns:ZOiS | tnx:ZOiS\">\n\t\t<tns:WariantZOiS><xsl:value-of select=\"substring(local-name(*[1]),5,1)\"/></tns:WariantZOiS> <!-- numer pierwszego elementu ZOiSx -->\n\t\t<xsl:apply-templates select = \"*\"/> <!-- Kopiuj elementy ZOiSx w oddzielne wiersze ZOiS -->\n\t\t<xsl:apply-templates select = \"//tns:KontoZapis\"/> <!-- zapisz KontoZapis jeden pod drugim -->\n\t\t<xsl:apply-templates select = \"//tnx:KontoZapis\"/> <!-- zapisz KontoZapis jeden pod drugim -->\n\t</xsl:template>\n\t\n\t<xsl:template match=\"*[parent::tns:ZOiS or parent::tnx:ZOiS]\">  <!-- Element ZOiSx -->\n\t\t<tns:ZOiS>\t\t\t\t\t\t\t\t<!-- skopiuj każdy jako ZOiS -->\n\t\t\t<xsl:apply-templates select = \"*\"/>\n\t\t</tns:ZOiS>\n\t</xsl:template>\n\t\n<!-- Wyciągnięcie KontoZapis z dzienników -->\n\t<xsl:template match=\"tns:Dziennik | tnx:Dziennik \">\n\t\t<tns:Dziennik>\n\t\t\t<xsl:apply-templates select = \"*[not(*)]\"/> <!-- skopiuj tylko elementy, które nie mają \"potomków\" (czyli wszystkie D_*) -->\n\t\t</tns:Dziennik>\n\t</xsl:template>\t\n\t\n\t<xsl:template match=\"tns:KontoZapis | tnx:KontoZapis\">\n\t\t<tns:KontoZapis>\n\t\t\t<tns:Z_0><xsl:value-of select=\"../*[local-name() = 'D_1']\"/></tns:Z_0> <!-- do KontoZapis dodaj Z_0, z numerem dowodu -->\n\t\t\t<xsl:apply-templates select = \"*\"/>  <!-- i skopiuj pozostałe pola -->\n\t\t</tns:KontoZapis>\n\t</xsl:template>\t\n\t\n<!-- * Transformacja JPK_KR(1) * -->\t\n\n\t<xsl:template match=\"kr1:JPK\">\n\t\t<kr1:JPK xmlns:etd=\"http://crd.gov.pl/xml/schematy/dziedzinowe/mf/2016/01/25/eD/DefinicjeTypy/\" xmlns:kr1=\"http://jpk.mf.gov.pl/wzor/2016/03/09/03091/\" >\n\t\t\t<xsl:apply-templates select=\"kr1:Naglowek\"/>\n\t\t\t<!-- wypełniamy domyślnie pola okresu -->\n\t\t\t<kr1:RokDataOd><xsl:value-of select=\"substring(//kr1:DataOd,1,4)\"/>-01-01</kr1:RokDataOd>\n\t\t\t<kr1:RokDataDo><xsl:value-of select=\"substring(//kr1:DataDo,1,4)\"/>-12-31</kr1:RokDataDo>\n\t\t\t<xsl:apply-templates select=\"kr1:Podmiot1\"/>\n\t\t\t<kr1:WariantZOiS>8</kr1:WariantZOiS> <!-- Element tymczasowy: zawsze ustawiaj na MSR -->\n\t\t\t<xsl:apply-templates select=\"kr1:ZOiS\"/>\n\t\t\t<xsl:apply-templates select=\"kr1:Dziennik\"/>\n\t\t\t<xsl:apply-templates select=\"kr1:KontoZapis\"/>\n\t\t\t<kr1:RPD>\n\t\t\t\t<kr1:K_1>0</kr1:K_1> <!-- placeholder, aby się wczytały jakieś wartości -->\n\t\t\t\t<kr1:K_2>0</kr1:K_2>\n\t\t\t\t<kr1:K_3>0</kr1:K_3>\n\t\t\t\t<kr1:K_4>0</kr1:K_4>\n\t\t\t\t<kr1:K_5>0</kr1:K_5>\n\t\t\t\t<kr1:K_6>0</kr1:K_6>\n\t\t\t\t<kr1:K_7>0</kr1:K_7>\n\t\t\t\t<kr1:K_8>0</kr1:K_8>\n\t\t\t</kr1:RPD>\n\t\t</kr1:JPK>\n\t</xsl:template>\t\n\t\n\t<xsl:template match=\"kr1:ZOiS\">\n\t\t<kr1:ZOiS>\n\t\t\t<kr1:S_1><xsl:value-of select=\"kr1:KodKonta\"/></kr1:S_1>\n\t\t\t<kr1:S_2><xsl:value-of select=\"kr1:OpisKonta\"/></kr1:S_2>\n\t\t\t<kr1:S_3>--</kr1:S_3>\n\t\t\t<kr1:S_4><xsl:value-of select=\"kr1:BilansOtwarciaWinien\"/></kr1:S_4>\n\t\t\t<kr1:S_5><xsl:value-of select=\"kr1:BilansOtwarciaMa\"/></kr1:S_5>\n\t\t\t<kr1:S_6><xsl:value-of select=\"kr1:ObrotyWinien\"/></kr1:S_6>\n\t\t\t<kr1:S_7><xsl:value-of select=\"kr1:ObrotyMa\"/></kr1:S_7>\n\t\t\t<kr1:S_8><xsl:value-of select=\"kr1:ObrotyWinienNarast\"/></kr1:S_8>\n\t\t\t<kr1:S_9><xsl:value-of select=\"kr1:ObrotyMaNarast\"/></kr1:S_9>\n\t\t\t<kr1:S_10><xsl:value-of select=\"kr1:SaldoWinien\"/></kr1:S_10>\n\t\t\t<kr1:S_11><xsl:value-of select=\"kr1:SaldoMa\"/></kr1:S_11>\n\t\t</kr1:ZOiS>\n\t</xsl:template>\n\n\t<xsl:template match=\"kr1:Dziennik\">\n\t\t<kr1:Dziennik>\n\t\t\t<kr1:D_1><xsl:value-of select=\"kr1:NrZapisuDziennika\"/></kr1:D_1>\n\t\t\t<kr1:D_2><xsl:value-of select=\"kr1:OpisDziennika\"/></kr1:D_2>\n\t\t\t<kr1:D_4><xsl:value-of select=\"kr1:NrDowoduKsiegowego\"/></kr1:D_4>\n\t\t\t<kr1:D_5><xsl:value-of select=\"kr1:RodzajDowodu\"/></kr1:D_5>\n\t\t\t<kr1:D_6><xsl:value-of select=\"kr1:DataOperacji\"/></kr1:D_6>\n\t\t\t<kr1:D_7><xsl:value-of select=\"kr1:DataDowodu\"/></kr1:D_7>\n\t\t\t<kr1:D_8><xsl:value-of select=\"kr1:DataKsiegowania\"/></kr1:D_8>\n\t\t\t<kr1:D_9><xsl:value-of select=\"kr1:KodOperatora\"/></kr1:D_9>\n\t\t\t<kr1:D_10><xsl:value-of select=\"kr1:OpisOperacji\"/></kr1:D_10>\n\t\t\t<kr1:D_11><xsl:value-of select=\"kr1:DziennikKwotaOperacji\"/></kr1:D_11>\n\t\t</kr1:Dziennik>\n\t</xsl:template>\t\n\t\n\t<xsl:template match=\"kr1:KontoZapis\">\n\t\t\t<xsl:apply-templates select=\"kr1:KwotaWinien\"/>\n\t\t\t<xsl:apply-templates select=\"kr1:KwotaMa\"/> \n\t</xsl:template>\t\n\t\n\t<xsl:template match=\"kr1:KwotaWinien[. = 0]\"/>\n\t<xsl:template match=\"kr1:KwotaWinien[. != 0]\">\n\t\t<kr1:KontoZapis>\n\t\t\t<kr1:Z_0><xsl:value-of select=\"../kr1:NrZapisu\"/></kr1:Z_0>\n\t\t\t<kr1:Z_1><xsl:value-of select=\"../kr1:LpZapisu\"/></kr1:Z_1>\n\t\t\t<kr1:Z_2>\n\t\t\t\t<xsl:choose>\n\t\t\t\t\t<xsl:when test=\"../kr1:OpisZapisuWinien\">\n\t\t\t\t\t\t<xsl:value-of select=\"../kr1:OpisZapisuWinien\"/>\n\t\t\t\t\t</xsl:when>\n\t\t\t\t\t<xsl:otherwise>-</xsl:otherwise>\n\t\t\t\t</xsl:choose>\n\t\t\t</kr1:Z_2>\t\t\t\t\n\t\t\t<kr1:Z_3><xsl:value-of select=\"../kr1:KodKontaWinien\"/></kr1:Z_3>\t\t\t\t\n\t\t\t<kr1:Z_4><xsl:value-of select=\"../kr1:KwotaWinien\"/></kr1:Z_4>\t\t\t\t\n\t\t\t<kr1:Z_5><xsl:value-of select=\"../kr1:KwotaWinienWaluta\"/></kr1:Z_5>\t\t\t\t\n\t\t\t<kr1:Z_6><xsl:value-of select=\"../kr1:KodWalutyWinien\"/></kr1:Z_6>\t\t\t\n\t\t</kr1:KontoZapis>\n\t</xsl:template>\n\n\t<xsl:template match=\"kr1:KwotaMa[. = 0]\"/>\n \t<xsl:template match=\"kr1:KwotaMa[. != 0]\">\n\t\t<kr1:KontoZapis>\n\t\t\t<kr1:Z_0><xsl:value-of select=\"../kr1:NrZapisu\"/></kr1:Z_0>\n\t\t\t<kr1:Z_1><xsl:value-of select=\"../kr1:LpZapisu\"/></kr1:Z_1>\n\t\t\t<kr1:Z_2>\n\t\t\t\t<xsl:choose>\n\t\t\t\t\t<xsl:when test=\"../kr1:OpisZapisuMa\">\n\t\t\t\t\t\t<xsl:value-of select=\"../kr1:OpisZapisuMa\"/>\n\t\t\t\t\t</xsl:when>\n\t\t\t\t\t<xsl:otherwise>-</xsl:otherwise>\n\t\t\t\t</xsl:choose>\n\t\t\t</kr1:Z_2>\t\t\t\t\n\t\t\t<kr1:Z_3><xsl:value-of select=\"../kr1:KodKontaMa\"/></kr1:Z_3>\t\t\t\t\n\t\t\t<kr1:Z_7><xsl:value-of select=\"../kr1:KwotaMa\"/></kr1:Z_7>\t\t\t\t\n\t\t\t<kr1:Z_8><xsl:value-of select=\"../kr1:KwotaMaWaluta\"/></kr1:Z_8>\t\t\t\t\n\t\t\t<kr1:Z_9><xsl:value-of select=\"../kr1:KodWalutyMa\"/></kr1:Z_9>\t\t\t\t\n\t\t</kr1:KontoZapis>\n\t</xsl:template>\t\n</xsl:stylesheet>"]
[]
["XsltPrevalidated:","<xsl:stylesheet version=\"1.0\"\n    xmlns:xsl=\"http://www.w3.org/1999/XSL/Transform\"\n    xmlns:tns=\"http://jpk.mf.gov.pl/wzor/2024/09/04/09041/\"\n  >\n\t<xsl:key name=\"zapis\" match=\"tns:KontoZapis\" use=\"tns:Z_0\"/> <!-- optymalizacja wyszukiwania -->\n\t<xsl:output method='xml' indent=\"yes\" encoding=\"UTF-8\"/>\n\t\n<!-- basic: identity copy: -->\n\t<xsl:template match=\"@*|node()\">\n\t\t<xsl:copy><xsl:apply-templates select=\"@*|node()\"/></xsl:copy>\n\t</xsl:template>  \n<!-- remove comments: -->\n\t<xsl:template match=\"comment()\"/>\n\t\n\t<xsl:variable name=\"elm\" select=\"concat('tns:ZOiS',//tns:WariantZOiS)\"/>\t\n\t\n<!-- odtworzenie struktury ZOiS/ZOiSx z wierszy ZOiS i znacznika WariantZOiS  -->\t\n\t<xsl:template match=\"tns:WariantZOiS\">\n\t\t<tns:ZOiS>\n\t\t   <xsl:for-each select=\"../tns:ZOiS\">\n\t\t\t   <xsl:element name=\"{$elm}\">\n\t\t\t\t   <xsl:apply-templates select=\"*\"/>\n\t\t\t   </xsl:element>\n\t\t   </xsl:for-each>\n\t   </tns:ZOiS> \n\t</xsl:template>\n\n\t<xsl:template match=\"tns:ZOiS\"/>\n\n<!-- zwinięcie KontoZapis do odpowiednich dzienników -->\n\t<xsl:template match=\"tns:Dziennik\">\n\t\t<tns:Dziennik>\n\t\t\t<xsl:apply-templates select=\"@*|node()\"/>\n\t\t    <xsl:for-each select=\"key('zapis',tns:D_1)\">\n\t\t\t\t<xsl:copy><xsl:apply-templates select=\"@*|node()\"/></xsl:copy>\n\t\t    </xsl:for-each> \n\t\t</tns:Dziennik>\n\t</xsl:template>\n\t\n\t<xsl:template match=\"tns:KontoZapis\"/>\n\t<xsl:template match=\"tns:Z_0\"/>\n\n</xsl:stylesheet>"]
[]
["XsltOutput:"]

{"sheet":"przypisania","index":9,"n_rows":0,"n_cols":0,"rows_kept":0,"cut":false,"hidden":true,"merged":[]}